Workbook

Sheet Cover
A1: =RIGHT(CELL("filename", $A$1), LEN(CELL("filename", $A$1)) - SEARCH("]", CELL("filename", $A$1))) -> Cover
C3: Model name: | D3: PR19 RCV adjustments feeder model
C4: Version number: | D4: 01r - June 2018 update
C5: Filename: | D5: ="PR19 RCV adjustments feeder model " & D4 & ".xlsm" -> PR19 RCV adjustments feeder model 01r - June 2018 update.xlsm
C6: Date: | D6: 2018-06-20
C7: Author: | D7: Ofwat and F1F9 UK Ltd
C8: Author contact information: | D8: PR19@ofwat.gsi.gov.uk
C11: Summary of model: | D11: The model is designed to take the RCV adjustment outputs from the PR09 and PR14 reconciliations and convert them for use in the PR19 financial model in line
D12: with Delivering Water 2020: PR19 methodology, chapter 12 (accounting for past delivery).
C14: Known limitations: | D14: The model has been subject to internal Ofwat quality assurance.
C16: Feedback: | D16: We would welcome feedback on the PR19 RCV adjustments feeder model. Please send any feedback to the following email address
D17: PR19@ofwat.gsi.gov.uk
A20: End of sheet

Sheet Change Log
A1: Change log
B3: # | C3: Issue | D3: Change | E3: Sheet | F3: Row
A5: 2017-12-01 | B5: 1 | C5: Company noted that the Ofwat feeder model incorrectly deflates prices from 2020 year end prices to 2017-18 financial year average prices by referencing the RPI March index value in the numerator. | D5: Corrected calculation of the deflation factor to reference CPIH March 2020 index value. | E5: Indexation | F5: 102
A6: 2017-12-01 | B6: 2 | C6: Companies noted differences in item labels between the Ofwat feeder model and the business plan tables | D6: Item labels have been aligned with the business plan tables | E6: Calc Summary_Output
A7: 2017-12-01 | B7: 3 | C7: Some business plan tables require RCV items in 2017-18 FYE (financial year end) CPIH deflated price base. | D7: Add 2017-18 FYE CPIH deflation factor | E7: Indexation | F7: 105
A8: 2017-12-01 | B8: 4 | C8: Some business plan tables require RCV items in 2017-18 FYE (financial year end) CPIH deflated price base. | D8: Add the 2017-18 FYE CPIH deflated items to the Calc and Summary_Output sheet | E8: Calc Summary_Output
A9: 2018-06-01 | B9: 5 | C9: Line descriptions for the CIS RCV inflation correction items are not consistent with business plan tables. | D9: Item labels have been aligned with the business plan tables App8 and App25. | E9: Inputs Calc Summary_Output
A10: 2018-06-01 | B10: 6 | C10: IN 18/09 Guidance for reporting operating leases in PR19 business plans. The RCV adjustment calculated for each wholesale control in business plan table App33 flows to business plan table App8. The RCV adjustments feeder model has been updated to reflect the revisions to table App8. | D10: Include the new IFRS16 related RCV adjustments in the calculation of the opening balances for the 2020 RCV RPI inflated and 2020 RCV CPIH inflated RCV. | E10: Inputs Indexation Calc Summary_Output
A11: 2018-06-01 | B11: 7 | C11: In response to a query a new business plan table has been created. The Ofwat feeder model has been updated to reflect the additional table Dmmy10. | D11: Include the Dmmy10 RCV adjustment in the calculation of the opening balances for the dummy price control 2020 RCV RPI inflated and 2020 RCV CPIH inflated RCV. | E11: Inputs Calc Summary_Output
A12: 2018-06-01 | B12: 8 | C12: Change email address | D12: Changed from water2020 mailbox to PR19 mailbox | E12: Cover

Sheet Map & Key
A1: =RIGHT(CELL("filename", $A$1), LEN(CELL("filename", $A$1)) - SEARCH("]", CELL("filename", $A$1))) -> Map & Key
A3: GENERIC MODEL DESIGN
F5: ABOVE BONNET - USER INTERFACE
H8: Inputs | P8: Output Summary
F13: BELOW BONNET - CALCULATION ENGINE
H19: Input Transition | L19: Calculations | P19: Detailed Outputs
F25: Note: FAST strictly applicable below the bonnet
A28: MODEL MAP
F30: MODEL MAP
H32: INPUTS | L32: CALCULATIONS | V32: DOCUMENTATION
H36: =Inputs!$A$1 -> Inputs | L36: =Time!$A$1 -> Time | P36: =Summary_Output!$A$1 -> Summary_Output | V36: =$A$1 -> Map & Key
H37: All the hardcoded inputs used in the model for calculation. | L37: The model timeline and flag calculations are done in this sheet. | P37: A summary of links of major output of this model. | V37: Sheet references and model flow; Sheet tabs colours, colour coding, abbreviations, range names are mentioned in this sheet.
L39: =Indexation!$A$1 -> Indexation
L40: All the indexation related calculations are done in this sheet.
L42: =Calc!$A$1 -> Calc
L43: All the price regulations related calculations are done in this sheet.
A48: SHEET TABS
H50: Light Yellow | J50: Input sheets
H52: No colour (default Excel tab colour) | J52: Calculation and documentation sheets
H54: Pale Blue | J54: Key output sheets
H56: Turquoise | J56: Quality control sheets
H58: Yellow | J58: To be completed, temporary, restructured, or deleted
A61: COLOUR
B63: Font colour only
H64: Blue font | J64: Imported from another sheet
H66: Red font | J66: Exported to another sheet (except from Input sheets)
H68: Black font | J68: Within sheet link or calculation
B70: Font + shade combinations
H71: Black font + Light Yellow shade | J71: Inputs
H73: Black font + Light Grey shade on entire row | J73: Within-worksheet counter-flow
H75: Blue font + Light Grey shade on entire row | J75: Between-worksheet counter-flow
H77: Empty Cell with Light Grey shade | J77: Empty cells being deliberately referenced
B79: Other
H80: Black font + Pale Blue shade on entire row | J80: Section separator
H82: Light Turquoise shade | J82: Stored/dead/hard coded outputs
H84: Tan shade | J84: Pre-model time line actuals
H86: Yellow shade | J86: Work in progress / temporary
H88: Lime shade | J88: Values or logic to be reviewed
B90: Error checks & alerts
H91: Green shade | J91: OK
H93: Red shade | J93: Error
H95: Gold shade | J95: Alert
A98: ABBREVIATIONS
H100: BR | I100: Bio resources
H101: CPIH | I101: Consumer price index housing
H102: RCV | I102: Regulatory capital value
H103: RPI | I103: Retail price index
H104: WR | I104: Water resources
H105: WN | I105: Water network
H106: WWN | I106: Wastewater network
A109: NAMES
H111: NO NAME RANGES PRESENT IN THE MODEL
A114: LIST OF FUNCTIONS USED
H116: SUMPRODUCT | J116: Multiplies corresponding components in the given arrays, and returns the sum of those products.
H117: MATCH | J117: The MATCH function searches for a specified item in a range of cells, and then returns the relative position of that item in the range.
H118: INDEX | J118: Returns a value or the reference to a value from within a table or range, selected by the row and column number indexes
A121: End of sheet

Sheet Inputs
A1: =RIGHT(CELL("FILENAME", $A$1), LEN(CELL("FILENAME", $A$1)) - SEARCH("]", CELL("FILENAME", $A$1))) -> Inputs
E2: =Time!E$25 -> Model period ending | J2: =Time!J$25 -> 2013-03-31 | K2: =Time!K$25 -> 2014-03-31 | L2: =Time!L$25 -> 2015-03-31 | M2: =Time!M$25 -> 2016-03-31 | N2: =Time!N$25 -> 2017-03-31 | O2: =Time!O$25 -> 2018-03-31 | P2: =Time!P$25 -> 2019-03-31 | Q2: =Time!Q$25 -> 2020-03-31 | R2: =Time!R$25 -> 2021-03-31 | S2: =Time!S$25 -> 2022-03-31 | T2: =Time!T$25 -> 2023-03-31 | U2: =Time!U$25 -> 2024-03-31
E3: =Time!E$80 -> Timeline label | J3: =Time!J$80 -> Pre-Fcst | K3: =Time!K$80 -> Pre-Fcst | L3: =Time!L$80 -> Pre-Fcst | M3: =Time!M$80 -> Pre-Fcst | N3: =Time!N$80 -> Pre-Fcst | O3: =Time!O$80 -> Pre-Fcst | P3: =Time!P$80 -> Pre-Fcst | Q3: =Time!Q$80 -> Pre-Fcst | R3: =Time!R$80 -> Forecast | S3: =Time!S$80 -> Forecast | T3: =Time!T$80 -> Forecast | U3: =Time!U$80 -> Forecast
E4: =Time!E$103 -> Financial year ending | J4: =Time!J$103 -> 2013 | K4: =Time!K$103 -> 2014 | L4: =Time!L$103 -> 2015 | M4: =Time!M$103 -> 2016 | N4: =Time!N$103 -> 2017 | O4: =Time!O$103 -> 2018 | P4: =Time!P$103 -> 2019 | Q4: =Time!Q$103 -> 2020 | R4: =Time!R$103 -> 2021 | S4: =Time!S$103 -> 2022 | T4: =Time!T$103 -> 2023 | U4: =Time!U$103 -> 2024
A5: =IF(COUNTIF(A6:A139,"< 0") + COUNTIF(A6:A139,">0") <> 0, 1, 0) -> 0 | D5: Input references | E5: =Time!E$10 -> Model column counter | F5: Constant | G5: Unit | H5: Total | J5: =Time!J$10 -> 1 | K5: =Time!K$10 -> 2 | L5: =Time!L$10 -> 3 | M5: =Time!M$10 -> 4 | N5: =Time!N$10 -> 5 | O5: =Time!O$10 -> 6 | P5: =Time!P$10 -> 7 | Q5: =Time!Q$10 -> 8 | R5: =Time!R$10 -> 9 | S5: =Time!S$10 -> 10 | T5: =Time!T$10 -> 11 | U5: =Time!U$10 -> 12
E6: [Used in formula range - Do not delete]
A8: A: TIME
B10: Timeline setup
C12: Timeline start dates
E13: 1st model column start date | F13: 2012-04-01 | G13: date | H13: Date should be the first date of the financial year
C15: Financial year inputs
E16: First modelling column financial year# | F16: 2013 | G16: year # | H16: Financial model start year
E17: Financial year end month number | F17: 3 | G17: month # | H17: Month of financial year end for financial model
C19: Timeline labels
E20: Pre - forecast period | F20: Pre-Fcst | G20: label
E21: Forecast period | F21: Forecast | G21: label
E22: Post - forecast period | F22: Post-Fcst | G22: label
B24: Project dates
E26: Forecast start date | F26: 2020-04-01 | G26: date
E27: Forecast duration | F27: 5 | G27: years
E28: Forecast duration (text) | F28: =YEAR(F26) & "-" & TEXT(DATE(YEAR(F26) + F27, 1, 1), "yy") -> 2020-25 | G28: years #
A31: B: INDEXATION
B33: CPIH INDEXATION
E35: Consumer Price Index for April | G35: index | J35: 95.9 | K35: 98 | L35: 99.6 | M35: 99.9 | N35: 100.6 | O35: 103.2 | P35: =+'App23'!N22 -> 105.85224 | Q35: =+'App23'!O22 -> 108.3185972 | R35: =+'App23'!P22 -> 110.4849691 | S35: =+'App23'!Q22 -> 112.6946685 | T35: =+'App23'!R22 -> 114.9485619 | U35: =+'App23'!S22 -> 117.2475331
E36: Consumer Price Index for May | G36: index | J36: 95.9 | K36: 98.2 | L36: 99.6 | M36: 100.1 | N36: 100.8 | O36: 103.5 | P36: =+'App23'!N23 -> 106.11855 | Q36: =+'App23'!O23 -> 108.5274411 | R36: =+'App23'!P23 -> 110.6979899 | S36: =+'App23'!Q23 -> 112.9119497 | T36: =+'App23'!R23 -> 115.1701887 | U36: =+'App23'!S23 -> 117.4735925
E37: Consumer Price Index for June | G37: index | J37: 95.6 | K37: 98 | L37: 99.8 | M37: 100.1 | N37: 101 | O37: 103.5 | P37: =+'App23'!N24 -> 106.191 | Q37: =+'App23'!O24 -> 108.6015357 | R37: =+'App23'!P24 -> 110.7735664 | S37: =+'App23'!Q24 -> 112.9890377 | T37: =+'App23'!R24 -> 115.2488185 | U37: =+'App23'!S24 -> 117.5537949
E38: Consumer Price Index for July | G38: index | J38: 95.7 | K38: 98 | L38: 99.6 | M38: 100 | N38: 100.9 | O38: 103.5 | P38: =+'App23'!N25 -> 106.11855 | Q38: =+'App23'!O25 -> 108.5062174 | R38: =+'App23'!P25 -> 110.6763417 | S38: =+'App23'!Q25 -> 112.8898686 | T38: =+'App23'!R25 -> 115.1476659 | U38: =+'App23'!S25 -> 117.4506192
E39: Consumer Price Index for August | G39: index | J39: 96.1 | K39: 98.4 | L39: 99.9 | M39: 100.3 | N39: 101.2 | O39: 104 | P39: =+'App23'!N26 -> 106.6 | Q39: =+'App23'!O26 -> 108.9985 | R39: =+'App23'!P26 -> 111.17847 | S39: =+'App23'!Q26 -> 113.4020394 | T39: =+'App23'!R26 -> 115.6700802 | U39: =+'App23'!S26 -> 117.9834818
E40: Consumer Price Index for September | G40: index | J40: 96.4 | K40: 98.7 | L40: 100 | M40: 100.2 | N40: 101.5 | O40: 104.3 | P40: =+'App23'!N27 -> 106.83449 | Q40: =+'App23'!O27 -> 109.238266 | R40: =+'App23'!P27 -> 111.4230313 | S40: =+'App23'!Q27 -> 113.651492 | T40: =+'App23'!R27 -> 115.9245218 | U40: =+'App23'!S27 -> 118.2430122
E41: Consumer Price Index for October | G41: index | J41: 96.8 | K41: 98.8 | L41: 100.1 | M41: 100.3 | N41: 101.6 | O41: 104.4 | P41: =+'App23'!N28 -> 106.97868 | Q41: =+'App23'!O28 -> 109.332211 | R41: =+'App23'!P28 -> 111.5188552 | S41: =+'App23'!Q28 -> 113.7492323 | T41: =+'App23'!R28 -> 116.0242169 | U41: =+'App23'!S28 -> 118.3447013
E42: Consumer Price Index for November | G42: index | J42: 97 | K42: 98.8 | L42: 99.9 | M42: 100.3 | N42: 101.8 | O42: 104.7 | P42: =+'App23'!N29 -> 107.13951 | Q42: =+'App23'!O29 -> 109.4965792 | R42: =+'App23'!P29 -> 111.6865108 | S42: =+'App23'!Q29 -> 113.920241 | T42: =+'App23'!R29 -> 116.1986458 | U42: =+'App23'!S29 -> 118.5226188
E43: Consumer Price Index for December | G43: index | J43: 97.3 | K43: 99.2 | L43: 99.9 | M43: 100.4 | N43: 102.2 | O43: 105 | P43: =+'App23'!N30 -> 107.4885 | Q43: =+'App23'!O30 -> 109.7995028 | R43: =+'App23'!P30 -> 111.9954928 | S43: =+'App23'!Q30 -> 114.2354027 | T43: =+'App23'!R30 -> 116.5201107 | U43: =+'App23'!S30 -> 118.8505129
E44: Consumer Price Index for January | G44: index | J44: 97 | K44: 98.7 | L44: 99.2 | M44: 99.9 | N44: 101.8 | O44: 104.5 | P44: =+'App23'!N31 -> 107.0576656 | Q44: =+'App23'!O31 -> 109.3058766 | R44: =+'App23'!P31 -> 111.4919941 | S44: =+'App23'!Q31 -> 113.721834 | T44: =+'App23'!R31 -> 115.9962707 | U44: =+'App23'!S31 -> 118.3161961
E45: Consumer Price Index for February | G45: index | J45: 97.5 | K45: 99.1 | L45: 99.5 | M45: 100.1 | N45: 102.4 | O45: 104.9 | P45: =+'App23'!N32 -> 107.5524403 | Q45: =+'App23'!O32 -> 109.8110416 | R45: =+'App23'!P32 -> 112.0072624 | S45: =+'App23'!Q32 -> 114.2474076 | T45: =+'App23'!R32 -> 116.5323558 | U45: =+'App23'!S32 -> 118.8630029
E46: Consumer Price Index for March | G46: index | J46: 97.8 | K46: 99.3 | L46: 99.6 | M46: 100.4 | N46: 102.7 | O46: 105.1 | P46: =+'App23'!N33 -> 107.8570589 | Q46: =+'App23'!O33 -> 110.1220572 | R46: =+'App23'!P33 -> 112.3244983 | S46: =+'App23'!Q33 -> 114.5709883 | T46: =+'App23'!R33 -> 116.862408 | U46: =+'App23'!S33 -> 119.1996562
E48: CPIH: Assumed percentage increase for unpopulated monthly values | G48: %
B50: RPI INDEXATION
E52: Retail Price Index for April | G52: index | J52: 242.5 | K52: 249.5 | L52: 255.7 | M52: 258 | N52: 261.4 | O52: 270.6 | P52: =+'App23'!N7 -> 279.8 | Q52: =+'App23'!O7 -> 288.4 | R52: =+'App23'!P7 -> 297.052 | S52: =+'App23'!Q7 -> 305.96356 | T52: =+'App23'!R7 -> 315.1424668 | U52: =+'App23'!S7 -> 324.5967408
E53: Retail Price Index for May | G53: index | J53: 242.4 | K53: 250 | L53: 255.9 | M53: 258.5 | N53: 262.1 | O53: 271.7 | P53: =+'App23'!N8 -> 280.8 | Q53: =+'App23'!O8 -> 289.3 | R53: =+'App23'!P8 -> 297.979 | S53: =+'App23'!Q8 -> 306.91837 | T53: =+'App23'!R8 -> 316.1259211 | U53: =+'App23'!S8 -> 325.6096987
E54: Retail Price Index for June | G54: index | J54: 241.8 | K54: 249.7 | L54: 256.3 | M54: 258.9 | N54: 263.1 | O54: 272.3 | P54: =+'App23'!N9 -> 281.8 | Q54: =+'App23'!O9 -> 290.2 | R54: =+'App23'!P9 -> 298.906 | S54: =+'App23'!Q9 -> 307.87318 | T54: =+'App23'!R9 -> 317.1093754 | U54: =+'App23'!S9 -> 326.6226567
E55: Retail Price Index for July | G55: index | J55: 242.1 | K55: 249.7 | L55: 256 | M55: 258.6 | N55: 263.4 | O55: 272.9 | P55: =+'App23'!N10 -> 282.2 | Q55: =+'App23'!O10 -> 290.7 | R55: =+'App23'!P10 -> 299.421 | S55: =+'App23'!Q10 -> 308.40363 | T55: =+'App23'!R10 -> 317.6557389 | U55: =+'App23'!S10 -> 327.1854111
E56: Retail Price Index for August | G56: index | J56: 243 | K56: 251 | L56: 257 | M56: 259.8 | N56: 264.4 | O56: 274.7 | P56: =+'App23'!N11 -> 283.8 | Q56: =+'App23'!O11 -> 292.2 | R56: =+'App23'!P11 -> 300.966 | S56: =+'App23'!Q11 -> 309.99498 | T56: =+'App23'!R11 -> 319.2948294 | U56: =+'App23'!S11 -> 328.8736743
E57: Retail Price Index for September | G57: index | J57: 244.2 | K57: 251.9 | L57: 257.6 | M57: 259.6 | N57: 264.9 | O57: 275.1 | P57: =+'App23'!N12 -> 284 | Q57: =+'App23'!O12 -> 292.5 | R57: =+'App23'!P12 -> 301.275 | S57: =+'App23'!Q12 -> 310.31325 | T57: =+'App23'!R12 -> 319.6226475 | U57: =+'App23'!S12 -> 329.2113269
E58: Retail Price Index for October | G58: index | J58: 245.6 | K58: 251.9 | L58: 257.7 | M58: 259.5 | N58: 264.8 | O58: 275.3 | P58: =+'App23'!N13 -> 284.1 | Q58: =+'App23'!O13 -> 292.7 | R58: =+'App23'!P13 -> 301.481 | S58: =+'App23'!Q13 -> 310.52543 | T58: =+'App23'!R13 -> 319.8411929 | U58: =+'App23'!S13 -> 329.4364287
E59: Retail Price Index for November | G59: index | J59: 245.6 | K59: 252.1 | L59: 257.1 | M59: 259.8 | N59: 265.5 | O59: 275.8 | P59: =+'App23'!N14 -> 284.4 | Q59: =+'App23'!O14 -> 293 | R59: =+'App23'!P14 -> 301.79 | S59: =+'App23'!Q14 -> 310.8437 | T59: =+'App23'!R14 -> 320.169011 | U59: =+'App23'!S14 -> 329.7740813
E60: Retail Price Index for December | G60: index | J60: 246.8 | K60: 253.4 | L60: 257.5 | M60: 260.6 | N60: 267.1 | O60: 278.1 | P60: =+'App23'!N15 -> 286.5 | Q60: =+'App23'!O15 -> 295.1 | R60: =+'App23'!P15 -> 303.953 | S60: =+'App23'!Q15 -> 313.07159 | T60: =+'App23'!R15 -> 322.4637377 | U60: =+'App23'!S15 -> 332.1376498
E61: Retail Price Index for January | G61: index | J61: 245.8 | K61: 252.6 | L61: 255.4 | M61: 258.8 | N61: 265.5 | O61: 276 | P61: =+'App23'!N16 -> 284.4 | Q61: =+'App23'!O16 -> 293.2164 | R61: =+'App23'!P16 -> 302.012892 | S61: =+'App23'!Q16 -> 311.0732788 | T61: =+'App23'!R16 -> 320.4054771 | U61: =+'App23'!S16 -> 330.0176414
E62: Retail Price Index for February | G62: index | J62: 247.6 | K62: 254.2 | L62: 256.7 | M62: 260 | N62: 268.4 | O62: 278.1 | P62: =+'App23'!N17 -> 286.5 | Q62: =+'App23'!O17 -> 295.3815 | R62: =+'App23'!P17 -> 304.242945 | S62: =+'App23'!Q17 -> 313.3702333 | T62: =+'App23'!R17 -> 322.7713404 | U62: =+'App23'!S17 -> 332.4544806
E63: Retail Price Index for March | G63: index | J63: 248.7 | K63: 254.8 | L63: 257.1 | M63: 261.1 | N63: 269.3 | O63: 278.3 | P63: =+'App23'!N18 -> 287.1 | Q63: =+'App23'!O18 -> 296.0001 | R63: =+'App23'!P18 -> 304.880103 | S63: =+'App23'!Q18 -> 314.0265061 | T63: =+'App23'!R18 -> 323.4473013 | U63: =+'App23'!S18 -> 333.1507203
E65: RPI: Assumed percentage increase for unpopulated monthly values | G65: %
B67: Inflation
E69: Year reference for FYA base price 1 | F69: 2013 | G69: year #
E70: Year reference for FYA base price 2 | F70: 2018 | G70: year #
E71: Year reference for FYE base price | F71: 2018 | G71: year #
E72: Year reference for FYE end price | F72: 2020 | G72: year #
B74: Deflation
E76: Year reference for FYE base price | F76: 2020 | G76: year #
E77: Year reference for FYA end price | F77: 2018 | G77: year #
E78: Year reference for FYE base price - IFRS 16 | F78: 2018 | G78: year #
A81: C: RCV INPUTS
B83: Water services
E85: Wholesale water closing RCV at 31 March 2020 (from PR14 FD) | G85: £m | H85: 2012/13 FYA
E86: Water ~ Total Adjustment RCV carry forward to PR19 | F86: =+'App 25'!M6 -> 3.029302235 | G86: £m | H86: 2012/13 FYA
E87: Water ~ CIS RCV inflation correction | F87: =+'App 25'!M10 -> -40.0099985 | G87: £m | H87: 2012/13 FYA
E88: Net performance payment / (penalty) applied to RCV for end of period ODI adjustments ~ Water resources | F88: 0 | G88: £m | H88: 2012/13 FYA
E89: Net performance payment / (penalty) applied to RCV for end of period ODI adjustments ~ Water network plus | F89: 0 | G89: £m | H89: 2012/13 FYA
E90: Water: RCV adjustment from totex menu model | F90: =+'WS15 - adj Ofwat'!M42 -> 32.77115488 | G90: £m | H90: 2012/13 FYA
E91: Water ~ Other adjustment to wholesale RCV | F91: 0 | G91: £m | H91: 2017/18 FYE
E92: Water ~ NPV effect of 50% of proceeds from disposals of interest in land | F92: =+'App9'!N15 -> -1.251782808 | G92: £m | H92: 2017/18 FYA
E94: % of RCV to index by RPI - water services | G94: %
E96: Water resources % of total wholesale water RCV ~ 31 March 2020 | G96: %
E97: Water network plus % of total wholesale water RCV ~ 31 March 2020 | F97: =1-F96 -> 1 | G97: %
E99: Water resources IFRS16 RCV adjustment | G99: £m | H99: 2017/18 FYE
E100: Water network plus IFRS16 RCV adjustment | G100: £m | H100: 2017/18 FYE
B102: Wastewater services
E104: Wholesale wastewater closing RCV at 31 March 2020 in 2012-13 prices (PR14 FD) | G104: £m | H104: 2012/13 FYA
E105: Wastewater ~ Total Adjustment RCV carry forward to PR19 | F105: =+'App 25'!M8 -> 3.198466915 | G105: £m | H105: 2012/13 FYA
E106: Wastewater ~ CIS RCV inflation correction | F106: =+'App 25'!M11 -> -61.17497836 | G106: £m | H106: 2012/13 FYA
E107: Net performance payment / (penalty) applied to RCV for end of period ODI adjustments ~ Wastewater network plus | F107: 0 | G107: £m | H107: 2012/13 FYA
E108: Wastewater: RCV adjustment from totex menu model | F108: =+'WWS15 - adj ofwat'!M37 -> -57.50467532 | G108: £m | H108: 2012/13 FYA
E109: Wastewater ~ Other adjustment to wholesale RCV | F109: 0 | G109: £m | H109: 2017/18 FYE
E110: Wastewater ~ NPV effect of 50% of proceeds from disposals of interest in land | F110: =+'App9'!N28 -> 0.2378039965 | G110: £m | H110: 2017/18 FYA
E112: % of RCV to index by RPI - wastewater services | G112: %
E114: Bioresources RCV (prior to midnight adjustments) 31 March 2020 | G114: £m | H114: 2017/18 FYE
E116: Bioresources IFRS16 RCV adjustment | G116: £m | H116: 2017/18 FYE
E117: Wastewater network plus IFRS16 RCV adjustment | G117: £m | H117: 2017/18 FYE
B119: Dummy RCV
E121: Dummy RCV (prior to midnight adjustments) 31 March 2020 | G121: £m | H121: 2017/18 FYE
E122: Net performance payment / (penalty) applied to RCV for end of period ODI adjustments ~ Thames Tideway | G122: £m | H122: 2012/13 FYA
E123: Dummy: RCV adjustment from totex menu model | G123: £m | H123: 2012/13 FYA
E125: % of RCV to index by RPI - dummy | G125: %
E127: Dummy IFRS16 RCV adjustment | G127: £m | H127: 2017/18 FYE
A130: D: NON CHANGEABLE MODEL TECHNICAL INPUTS
E132: Months per model period | F132: 12 | G132: months
E134: Months in a year | F134: 12 | G134: months
E136: Days in a year | F136: 365 | G136: days
E139: [Used in formula range - Do not delete]

Sheet Time
A1: =RIGHT(CELL("FILENAME", $A$1), LEN(CELL("FILENAME", $A$1)) - SEARCH("]", CELL("FILENAME", $A$1))) -> Time
E2: =Time!E$25 -> Model period ending | J2: =Time!J$25 -> 2013-03-31 | K2: =Time!K$25 -> 2014-03-31 | L2: =Time!L$25 -> 2015-03-31 | M2: =Time!M$25 -> 2016-03-31 | N2: =Time!N$25 -> 2017-03-31 | O2: =Time!O$25 -> 2018-03-31 | P2: =Time!P$25 -> 2019-03-31 | Q2: =Time!Q$25 -> 2020-03-31 | R2: =Time!R$25 -> 2021-03-31 | S2: =Time!S$25 -> 2022-03-31 | T2: =Time!T$25 -> 2023-03-31 | U2: =Time!U$25 -> 2024-03-31
E3: =Time!E$80 -> Timeline label | J3: =Time!J$80 -> Pre-Fcst | K3: =Time!K$80 -> Pre-Fcst | L3: =Time!L$80 -> Pre-Fcst | M3: =Time!M$80 -> Pre-Fcst | N3: =Time!N$80 -> Pre-Fcst | O3: =Time!O$80 -> Pre-Fcst | P3: =Time!P$80 -> Pre-Fcst | Q3: =Time!Q$80 -> Pre-Fcst | R3: =Time!R$80 -> Forecast | S3: =Time!S$80 -> Forecast | T3: =Time!T$80 -> Forecast | U3: =Time!U$80 -> Forecast
E4: =Time!E$103 -> Financial year ending | J4: =Time!J$103 -> 2013 | K4: =Time!K$103 -> 2014 | L4: =Time!L$103 -> 2015 | M4: =Time!M$103 -> 2016 | N4: =Time!N$103 -> 2017 | O4: =Time!O$103 -> 2018 | P4: =Time!P$103 -> 2019 | Q4: =Time!Q$103 -> 2020 | R4: =Time!R$103 -> 2021 | S4: =Time!S$103 -> 2022 | T4: =Time!T$103 -> 2023 | U4: =Time!U$103 -> 2024
E5: =Time!E$10 -> Model column counter | F5: Constant | G5: Unit | H5: Total | J5: =Time!J$10 -> 1 | K5: =Time!K$10 -> 2 | L5: =Time!L$10 -> 3 | M5: =Time!M$10 -> 4 | N5: =Time!N$10 -> 5 | O5: =Time!O$10 -> 6 | P5: =Time!P$10 -> 7 | Q5: =Time!Q$10 -> 8 | R5: =Time!R$10 -> 9 | S5: =Time!S$10 -> 10 | T5: =Time!T$10 -> 11 | U5: =Time!U$10 -> 12
A7: MODEL PERIOD
B9: Model column counter
E10: Model column counter | G10: counter | J10: =I10 + 1 -> 1 | K10: 2 | L10: 3 | M10: 4 | N10: 5 | O10: 6 | P10: 7 | Q10: 8 | R10: 9 | S10: =R10 + 1 -> 10 | T10: =S10 + 1 -> 11 | U10: =T10 + 1 -> 12
E11: Model column total | F11: =MAX(J10:U10) -> 12 | G11: columns
E13: =E$10 -> Model column counter | F13: 0 | G13: counter | H13: 0 | I13: 0 | J13: 1 | K13: 2 | L13: 3 | M13: 4 | N13: 5 | O13: 6 | P13: 7 | Q13: 8 | R13: 9 | S13: 10 | T13: 11 | U13: 12
E14: 1st model column flag | G14: flag | H14: =SUM(J14:U14) -> 1 | J14: =IF(J13 = 1, 1, 0) -> 1 | K14: 0 | L14: 0 | M14: 0 | N14: 0 | O14: 0 | P14: 0 | Q14: 0 | R14: 0 | S14: =IF(S13 = 1, 1, 0) -> 0 | T14: =IF(T13 = 1, 1, 0) -> 0 | U14: =IF(U13 = 1, 1, 0) -> 0
B16: Model period beginning
E17: =Inputs!E$13 -> 1st model column start date | F17: =Inputs!F$13 -> 2012-04-01 | G17: =Inputs!G$13 -> date
E18: =Inputs!E$132 -> Months per model period | F18: =Inputs!F$132 -> 12 | G18: =Inputs!G$132 -> months
E19: =E$14 -> 1st model column flag | F19: 0 | G19: flag | H19: 1 | I19: 0 | J19: 1 | K19: 0 | L19: 0 | M19: 0 | N19: 0 | O19: 0 | P19: 0 | Q19: 0 | R19: 0 | S19: 0 | T19: 0 | U19: 0
E20: Model period beginning | G20: date | J20: =IF(J19 = 1, $F17, DATE(YEAR(I20), MONTH(I20) + $F18, DAY(1))) -> 2012-04-01 | K20: 2013-04-01 | L20: 2014-04-01 | M20: 2015-04-01 | N20: 2016-04-01 | O20: 2017-04-01 | P20: 2018-04-01 | Q20: 2019-04-01 | R20: 2020-04-01 | S20: =IF(S19 = 1, $F17, DATE(YEAR(R20), MONTH(R20) + $F18, DAY(1))) -> 2021-04-01 | T20: =IF(T19 = 1, $F17, DATE(YEAR(S20), MONTH(S20) + $F18, DAY(1))) -> 2022-04-01 | U20: =IF(U19 = 1, $F17, DATE(YEAR(T20), MONTH(T20) + $F18, DAY(1))) -> 2023-04-01
B22: Model period ending
E23: =Inputs!E$132 -> Months per model period | F23: =Inputs!F$132 -> 12 | G23: =Inputs!G$132 -> months
E24: =E$20 -> Model period beginning | F24: 00:00:00 | G24: date | H24: 00:00:00 | I24: 00:00:00 | J24: 2012-04-01 | K24: 2013-04-01 | L24: 2014-04-01 | M24: 2015-04-01 | N24: 2016-04-01 | O24: 2017-04-01 | P24: 2018-04-01 | Q24: 2019-04-01 | R24: 2020-04-01 | S24: 2021-04-01 | T24: 2022-04-01 | U24: 2023-04-01
E25: Model period ending | G25: date | J25: =DATE(YEAR(J24), MONTH(J24) + $F23, DAY(J24) - 1) -> 2013-03-31 | K25: 2014-03-31 | L25: 2015-03-31 | M25: 2016-03-31 | N25: 2017-03-31 | O25: 2018-03-31 | P25: 2019-03-31 | Q25: 2020-03-31 | R25: 2021-03-31 | S25: =DATE(YEAR(S24), MONTH(S24) + $F23, DAY(S24) - 1) -> 2022-03-31 | T25: =DATE(YEAR(T24), MONTH(T24) + $F23, DAY(T24) - 1) -> 2023-03-31 | U25: =DATE(YEAR(U24), MONTH(U24) + $F23, DAY(U24) - 1) -> 2024-03-31
A28: FORECAST PERIOD
B30: Forecast start period flag
E31: =Inputs!E$26 -> Forecast start date | F31: =Inputs!F$26 -> 2020-04-01 | G31: =Inputs!G$26 -> date
E32: =E$20 -> Model period beginning | F32: 00:00:00 | G32: date | H32: 00:00:00 | I32: 00:00:00 | J32: 2012-04-01 | K32: 2013-04-01 | L32: 2014-04-01 | M32: 2015-04-01 | N32: 2016-04-01 | O32: 2017-04-01 | P32: 2018-04-01 | Q32: 2019-04-01 | R32: 2020-04-01 | S32: 2021-04-01 | T32: 2022-04-01 | U32: 2023-04-01
E33: =E$25 -> Model period ending | F33: 00:00:00 | G33: date | H33: 00:00:00 | I33: 00:00:00 | J33: 2013-03-31 | K33: 2014-03-31 | L33: 2015-03-31 | M33: 2016-03-31 | N33: 2017-03-31 | O33: 2018-03-31 | P33: 2019-03-31 | Q33: 2020-03-31 | R33: 2021-03-31 | S33: 2022-03-31 | T33: 2023-03-31 | U33: 2024-03-31
E34: Forecast start period flag | G34: flag | H34: =SUM(J34:U34) -> 1 | J34: =IF(AND($F31 >= J32, $F31 <= J33), 1, 0) -> 0 | K34: =IF(AND($F31 >= K32, $F31 <= K33), 1, 0) -> 0 | L34: 0 | M34: 0 | N34: 0 | O34: 0 | P34: 0 | Q34: 0 | R34: 1 | S34: =IF(AND($F31 >= S32, $F31 <= S33), 1, 0) -> 0 | T34: =IF(AND($F31 >= T32, $F31 <= T33), 1, 0) -> 0 | U34: =IF(AND($F31 >= U32, $F31 <= U33), 1, 0) -> 0
B36: Forecast end period flag
E37: =Inputs!E$26 -> Forecast start date | F37: =Inputs!F$26 -> 2020-04-01 | G37: =Inputs!G$26 -> date
E38: =Inputs!E$27 -> Forecast duration | F38: =Inputs!F$27 -> 5 | G38: =Inputs!G$27 -> years
E39: Forecast end date | F39: =DATE(YEAR(F37) + F38, MONTH(F37), DAY(F37) - 1) -> 2025-03-31 | G39: date
E41: =E$39 -> Forecast end date | F41: =F$39 -> 2025-03-31 | G41: =G$39 -> date
E42: =E$20 -> Model period beginning | F42: 00:00:00 | G42: date | H42: 00:00:00 | I42: 00:00:00 | J42: 2012-04-01 | K42: 2013-04-01 | L42: 2014-04-01 | M42: 2015-04-01 | N42: 2016-04-01 | O42: 2017-04-01 | P42: 2018-04-01 | Q42: 2019-04-01 | R42: 2020-04-01 | S42: 2021-04-01 | T42: 2022-04-01 | U42: 2023-04-01
E43: =E$25 -> Model period ending | F43: 00:00:00 | G43: date | H43: 00:00:00 | I43: 00:00:00 | J43: 2013-03-31 | K43: 2014-03-31 | L43: 2015-03-31 | M43: 2016-03-31 | N43: 2017-03-31 | O43: 2018-03-31 | P43: 2019-03-31 | Q43: 2020-03-31 | R43: 2021-03-31 | S43: 2022-03-31 | T43: 2023-03-31 | U43: 2024-03-31
E44: Forecast end period flag | G44: flag | H44: =SUM(J44:U44) -> 0 | J44: =IF(AND($F41 >= J42, $F41 <= J43), 1, 0) -> 0 | K44: 0 | L44: 0 | M44: 0 | N44: 0 | O44: 0 | P44: 0 | Q44: 0 | R44: 0 | S44: 0 | T44: 0 | U44: 0
B46: Forecast period flag
E47: =E$34 -> Forecast start period flag | F47: =F$34 -> 0 | G47: flag | H47: 1 | I47: 0 | J47: 0 | K47: 0 | L47: 0 | M47: 0 | N47: 0 | O47: 0 | P47: 0 | Q47: 0 | R47: 1 | S47: 0 | T47: 0 | U47: 0
E48: =E$44 -> Forecast end period flag | F48: =F$44 -> 0 | G48: flag | H48: 0 | I48: 0 | J48: 0 | K48: 0 | L48: 0 | M48: 0 | N48: 0 | O48: 0 | P48: 0 | Q48: 0 | R48: 0 | S48: 0 | T48: 0 | U48: 0
E49: Forecast period flag | G49: flag | H49: =SUM(J49:U49) -> 4 | J49: =J47 + I49 - I48 -> 0 | K49: =K47 + J49 - J48 -> 0 | L49: 0 | M49: 0 | N49: 0 | O49: 0 | P49: 0 | Q49: 0 | R49: 1 | S49: =S47 + R49 - R48 -> 1 | T49: =T47 + S49 - S48 -> 1 | U49: =U47 + T49 - T48 -> 1
E50: Total number of forecast periods | F50: =SUM(J49:U49) -> 4 | G50: periods
B52: Pre-forecast period flag
E53: =E$14 -> 1st model column flag | F53: =F$14 -> 0 | G53: flag | H53: 1 | I53: 0 | J53: 1 | K53: 0 | L53: 0 | M53: 0 | N53: 0 | O53: 0 | P53: 0 | Q53: 0 | R53: 0 | S53: 0 | T53: 0 | U53: 0
E54: =E$34 -> Forecast start period flag | F54: =F$34 -> 0 | G54: flag | H54: 1 | I54: 0 | J54: 0 | K54: 0 | L54: 0 | M54: 0 | N54: 0 | O54: 0 | P54: 0 | Q54: 0 | R54: 1 | S54: 0 | T54: 0 | U54: 0
E55: Pre-forecast period flag | G55: flag | H55: =SUM(J55:U55) -> 8 | J55: =J53 + I55 - J54 -> 1 | K55: =K53 + J55 - K54 -> 1 | L55: 1 | M55: 1 | N55: 1 | O55: 1 | P55: 1 | Q55: 1 | R55: 0 | S55: =S53 + R55 - S54 -> 0 | T55: =T53 + S55 - T54 -> 0 | U55: =U53 + T55 - U54 -> 0
E56: Pre-forecast period flag - total | F56: =SUM(J55:U55) -> 8 | G56: periods
B58: First post-forecast period flag
E59: =E$44 -> Forecast end period flag | F59: =F$44 -> 0 | G59: flag | H59: 0 | I59: 0 | J59: 0 | K59: 0 | L59: 0 | M59: 0 | N59: 0 | O59: 0 | P59: 0 | Q59: 0 | R59: 0 | S59: 0 | T59: 0 | U59: 0
E60: First post-forecast period flag | G60: flag | H60: =SUM(J60:U60) -> 0 | J60: =I59 -> 0 | K60: =J59 -> 0 | L60: 0 | M60: 0 | N60: 0 | O60: 0 | P60: 0 | Q60: 0 | R60: 0 | S60: =R59 -> 0 | T60: =S59 -> 0 | U60: =T59 -> 0
B62: Post-forecast period flag
E63: =E$60 -> First post-forecast period flag | F63: 0 | G63: flag | H63: 0 | I63: 0 | J63: 0 | K63: 0 | L63: 0 | M63: 0 | N63: 0 | O63: 0 | P63: 0 | Q63: 0 | R63: 0 | S63: 0 | T63: 0 | U63: 0
E64: Post-forecast period flag | G64: flag | H64: =SUM(J64:U64) -> 0 | J64: =J63 + I64 -> 0 | K64: =K63 + J64 -> 0 | L64: 0 | M64: 0 | N64: 0 | O64: 0 | P64: 0 | Q64: 0 | R64: 0 | S64: =S63 + R64 -> 0 | T64: =T63 + S64 -> 0 | U64: =U63 + T64 -> 0
E65: Post-forecast period - total | F65: =SUM(J64:U64) -> 0 | G65: periods
A67: MODEL TIMELINE
B70: Timeline label
E71: =E$14 -> 1st model column flag | F71: 0 | G71: flag | H71: 1 | I71: 0 | J71: 1 | K71: 0 | L71: 0 | M71: 0 | N71: 0 | O71: 0 | P71: 0 | Q71: 0 | R71: 0 | S71: 0 | T71: 0 | U71: 0
E72: =E$34 -> Forecast start period flag | F72: =F$34 -> 0 | G72: flag | H72: 1 | I72: 0 | J72: 0 | K72: 0 | L72: 0 | M72: 0 | N72: 0 | O72: 0 | P72: 0 | Q72: 0 | R72: 1 | S72: 0 | T72: 0 | U72: 0
E73: =E$60 -> First post-forecast period flag | F73: 0 | G73: flag | H73: 0 | I73: 0 | J73: 0 | K73: 0 | L73: 0 | M73: 0 | N73: 0 | O73: 0 | P73: 0 | Q73: 0 | R73: 0 | S73: 0 | T73: 0 | U73: 0
E74: Timeline label counter | G74: counter | J74: =I74 + SUM(J71:J73) -> 1 | K74: 1 | L74: 1 | M74: 1 | N74: 1 | O74: 1 | P74: 1 | Q74: 1 | R74: 2 | S74: =R74 + SUM(S71:S73) -> 2 | T74: =S74 + SUM(T71:T73) -> 2 | U74: =T74 + SUM(U71:U73) -> 2
E76: =Inputs!E$20 -> Pre - forecast period | F76: =Inputs!F$20 -> Pre-Fcst | G76: =Inputs!G$20 -> label
E77: =Inputs!E$21 -> Forecast period | F77: =Inputs!F$21 -> Forecast | G77: =Inputs!G$21 -> label
E78: =Inputs!E$22 -> Post - forecast period | F78: =Inputs!F$22 -> Post-Fcst | G78: =Inputs!G$22 -> label
E79: =E$74 -> Timeline label counter | F79: 0 | G79: counter | H79: 0 | I79: 0 | J79: 1 | K79: 1 | L79: 1 | M79: 1 | N79: 1 | O79: 1 | P79: 1 | Q79: 1 | R79: 2 | S79: 2 | T79: 2 | U79: 2
E80: Timeline label | G80: label | J80: =INDEX($F76:$F78, J79) -> Pre-Fcst | K80: Pre-Fcst | L80: Pre-Fcst | M80: Pre-Fcst | N80: Pre-Fcst | O80: Pre-Fcst | P80: Pre-Fcst | Q80: Pre-Fcst | R80: Forecast | S80: =INDEX($F76:$F78, S79) -> Forecast | T80: =INDEX($F76:$F78, T79) -> Forecast | U80: =INDEX($F76:$F78, U79) -> Forecast
B82: Modelling period check
E83: =E$55 -> Pre-forecast period flag | F83: =F$55 -> 0 | G83: flag | H83: 8 | I83: 0 | J83: 1 | K83: 1 | L83: 1 | M83: 1 | N83: 1 | O83: 1 | P83: 1 | Q83: 1 | R83: 0 | S83: 0 | T83: 0 | U83: 0
E84: =E$49 -> Forecast period flag | F84: =F$49 -> 0 | G84: flag | H84: 4 | I84: 0 | J84: 0 | K84: 0 | L84: 0 | M84: 0 | N84: 0 | O84: 0 | P84: 0 | Q84: 0 | R84: 1 | S84: 1 | T84: 1 | U84: 1
E85: =E$64 -> Post-forecast period flag | F85: 0 | G85: flag | H85: 0 | I85: 0 | J85: 0 | K85: 0 | L85: 0 | M85: 0 | N85: 0 | O85: 0 | P85: 0 | Q85: 0 | R85: 0 | S85: 0 | T85: 0 | U85: 0
E86: No. of overlapping in flags | G86: # | H86: =SUM(J86:U86) -> 0 | J86: =MAX(0, SUM(J83:J85) - 1) -> 0 | K86: 0 | L86: 0 | M86: 0 | N86: 0 | O86: 0 | P86: 0 | Q86: 0 | R86: 0 | S86: =MAX(0, SUM(S83:S85) - 1) -> 0 | T86: =MAX(0, SUM(T83:T85) - 1) -> 0 | U86: =MAX(0, SUM(U83:U85) - 1) -> 0
E87: Overlapping in periods - total | F87: =SUM(J86:U86) -> 0 | G87: periods
E89: =E$11 -> Model column total | F89: =F$11 -> 12 | G89: =G$11 -> columns
E90: =E$87 -> Overlapping in periods - total | F90: =F$87 -> 0 | G90: =G$87 -> periods
E91: =E$56 -> Pre-forecast period flag - total | F91: =F$56 -> 8 | G91: =G$56 -> periods
E92: =E$50 -> Total number of forecast periods | F92: =F$50 -> 4 | G92: =G$50 -> periods
E93: =E$65 -> Post-forecast period - total | F93: =F$65 -> 0 | G93: =G$65 -> periods
E94: Modelling period check | F94: =IF(SUM(F89:F90) - SUM(F91:F93) <> 0, 1, 0) -> 0 | G94: check
A97: FINANCIAL YEAR
E99: =Inputs!E$16 -> First modelling column financial year# | F99: =Inputs!F$16 -> 2013 | G99: =Inputs!G$16 -> year #
E100: =Inputs!E$17 -> Financial year end month number | F100: =Inputs!F$17 -> 3 | G100: =Inputs!G$17 -> month #
E101: =E$25 -> Model period ending | F101: 00:00:00 | G101: date | H101: 00:00:00 | I101: 00:00:00 | J101: 2013-03-31 | K101: 2014-03-31 | L101: 2015-03-31 | M101: 2016-03-31 | N101: 2017-03-31 | O101: 2018-03-31 | P101: 2019-03-31 | Q101: 2020-03-31 | R101: 2021-03-31 | S101: 2022-03-31 | T101: 2023-03-31 | U101: 2024-03-31
E102: =E$14 -> 1st model column flag | F102: 0 | G102: flag | H102: 1 | I102: 0 | J102: 1 | K102: 0 | L102: 0 | M102: 0 | N102: 0 | O102: 0 | P102: 0 | Q102: 0 | R102: 0 | S102: 0 | T102: 0 | U102: 0
E103: Financial year ending | G103: year # | J103: =IF(J102 = 1, $F99, IF(J101 > (DATE(I103, $F100 + 1, 1) - 1), I103 + 1, I103)) -> 2013 | K103: 2014 | L103: 2015 | M103: 2016 | N103: 2017 | O103: 2018 | P103: 2019 | Q103: 2020 | R103: 2021 | S103: =IF(S102 = 1, $F99, IF(S101 > (DATE(R103, $F100 + 1, 1) - 1), R103 + 1, R103)) -> 2022 | T103: =IF(T102 = 1, $F99, IF(T101 > (DATE(S103, $F100 + 1, 1) - 1), S103 + 1, S103)) -> 2023 | U103: =IF(U102 = 1, $F99, IF(U101 > (DATE(T103, $F100 + 1, 1) - 1), T103 + 1, T103)) -> 2024

Sheet Indexation
A1: =RIGHT(CELL("filename", $A$1), LEN(CELL("filename", $A$1)) - SEARCH("]", CELL("filename", $A$1))) -> Indexation
E2: =Time!E$25 -> Model period ending | J2: =Time!J$25 -> 2013-03-31 | K2: =Time!K$25 -> 2014-03-31 | L2: =Time!L$25 -> 2015-03-31 | M2: =Time!M$25 -> 2016-03-31 | N2: =Time!N$25 -> 2017-03-31 | O2: =Time!O$25 -> 2018-03-31 | P2: =Time!P$25 -> 2019-03-31 | Q2: =Time!Q$25 -> 2020-03-31 | R2: =Time!R$25 -> 2021-03-31 | S2: =Time!S$25 -> 2022-03-31 | T2: =Time!T$25 -> 2023-03-31 | U2: =Time!U$25 -> 2024-03-31
E3: =Time!E$80 -> Timeline label | J3: =Time!J$80 -> Pre-Fcst | K3: =Time!K$80 -> Pre-Fcst | L3: =Time!L$80 -> Pre-Fcst | M3: =Time!M$80 -> Pre-Fcst | N3: =Time!N$80 -> Pre-Fcst | O3: =Time!O$80 -> Pre-Fcst | P3: =Time!P$80 -> Pre-Fcst | Q3: =Time!Q$80 -> Pre-Fcst | R3: =Time!R$80 -> Forecast | S3: =Time!S$80 -> Forecast | T3: =Time!T$80 -> Forecast | U3: =Time!U$80 -> Forecast
E4: =Time!E$103 -> Financial year ending | J4: =Time!J$103 -> 2013 | K4: =Time!K$103 -> 2014 | L4: =Time!L$103 -> 2015 | M4: =Time!M$103 -> 2016 | N4: =Time!N$103 -> 2017 | O4: =Time!O$103 -> 2018 | P4: =Time!P$103 -> 2019 | Q4: =Time!Q$103 -> 2020 | R4: =Time!R$103 -> 2021 | S4: =Time!S$103 -> 2022 | T4: =Time!T$103 -> 2023 | U4: =Time!U$103 -> 2024
E5: =Time!E$10 -> Model column counter | F5: Constant | G5: Unit | H5: Total | J5: =Time!J$10 -> 1 | K5: =Time!K$10 -> 2 | L5: =Time!L$10 -> 3 | M5: =Time!M$10 -> 4 | N5: =Time!N$10 -> 5 | O5: =Time!O$10 -> 6 | P5: =Time!P$10 -> 7 | Q5: =Time!Q$10 -> 8 | R5: =Time!R$10 -> 9 | S5: =Time!S$10 -> 10 | T5: =Time!T$10 -> 11 | U5: =Time!U$10 -> 12
A7: CPIH INDEXATION
B9: CPIH: Index value series
E10: =Inputs!E$35 -> Consumer Price Index for April | F10: =Inputs!F$35 -> 0 | G10: =Inputs!G$35 -> index | H10: =Inputs!H$35 -> 0 | I10: =Inputs!I$35 -> 0 | J10: =Inputs!J$35 -> 95.9 | K10: =Inputs!K$35 -> 98 | L10: =Inputs!L$35 -> 99.6 | M10: =Inputs!M$35 -> 99.9 | N10: =Inputs!N$35 -> 100.6 | O10: =Inputs!O$35 -> 103.2 | P10: =Inputs!P$35 -> 105.85224 | Q10: =Inputs!Q$35 -> 108.3185972 | R10: =Inputs!R$35 -> 110.4849691 | S10: =Inputs!S$35 -> 112.6946685 | T10: =Inputs!T$35 -> 114.9485619 | U10: =Inputs!U$35 -> 117.2475331
E11: =Inputs!E$36 -> Consumer Price Index for May | F11: =Inputs!F$36 -> 0 | G11: =Inputs!G$36 -> index | H11: =Inputs!H$36 -> 0 | I11: =Inputs!I$36 -> 0 | J11: =Inputs!J$36 -> 95.9 | K11: =Inputs!K$36 -> 98.2 | L11: =Inputs!L$36 -> 99.6 | M11: =Inputs!M$36 -> 100.1 | N11: =Inputs!N$36 -> 100.8 | O11: =Inputs!O$36 -> 103.5 | P11: =Inputs!P$36 -> 106.11855 | Q11: =Inputs!Q$36 -> 108.5274411 | R11: =Inputs!R$36 -> 110.6979899 | S11: =Inputs!S$36 -> 112.9119497 | T11: =Inputs!T$36 -> 115.1701887 | U11: =Inputs!U$36 -> 117.4735925
E12: =Inputs!E$37 -> Consumer Price Index for June | F12: =Inputs!F$37 -> 0 | G12: =Inputs!G$37 -> index | H12: =Inputs!H$37 -> 0 | I12: =Inputs!I$37 -> 0 | J12: =Inputs!J$37 -> 95.6 | K12: =Inputs!K$37 -> 98 | L12: =Inputs!L$37 -> 99.8 | M12: =Inputs!M$37 -> 100.1 | N12: =Inputs!N$37 -> 101 | O12: =Inputs!O$37 -> 103.5 | P12: =Inputs!P$37 -> 106.191 | Q12: =Inputs!Q$37 -> 108.6015357 | R12: =Inputs!R$37 -> 110.7735664 | S12: =Inputs!S$37 -> 112.9890377 | T12: =Inputs!T$37 -> 115.2488185 | U12: =Inputs!U$37 -> 117.5537949
E13: =Inputs!E$38 -> Consumer Price Index for July | F13: =Inputs!F$38 -> 0 | G13: =Inputs!G$38 -> index | H13: =Inputs!H$38 -> 0 | I13: =Inputs!I$38 -> 0 | J13: =Inputs!J$38 -> 95.7 | K13: =Inputs!K$38 -> 98 | L13: =Inputs!L$38 -> 99.6 | M13: =Inputs!M$38 -> 100 | N13: =Inputs!N$38 -> 100.9 | O13: =Inputs!O$38 -> 103.5 | P13: =Inputs!P$38 -> 106.11855 | Q13: =Inputs!Q$38 -> 108.5062174 | R13: =Inputs!R$38 -> 110.6763417 | S13: =Inputs!S$38 -> 112.8898686 | T13: =Inputs!T$38 -> 115.1476659 | U13: =Inputs!U$38 -> 117.4506192
E14: =Inputs!E$39 -> Consumer Price Index for August | F14: =Inputs!F$39 -> 0 | G14: =Inputs!G$39 -> index | H14: =Inputs!H$39 -> 0 | I14: =Inputs!I$39 -> 0 | J14: =Inputs!J$39 -> 96.1 | K14: =Inputs!K$39 -> 98.4 | L14: =Inputs!L$39 -> 99.9 | M14: =Inputs!M$39 -> 100.3 | N14: =Inputs!N$39 -> 101.2 | O14: =Inputs!O$39 -> 104 | P14: =Inputs!P$39 -> 106.6 | Q14: =Inputs!Q$39 -> 108.9985 | R14: =Inputs!R$39 -> 111.17847 | S14: =Inputs!S$39 -> 113.4020394 | T14: =Inputs!T$39 -> 115.6700802 | U14: =Inputs!U$39 -> 117.9834818
E15: =Inputs!E$40 -> Consumer Price Index for September | F15: =Inputs!F$40 -> 0 | G15: =Inputs!G$40 -> index | H15: =Inputs!H$40 -> 0 | I15: =Inputs!I$40 -> 0 | J15: =Inputs!J$40 -> 96.4 | K15: =Inputs!K$40 -> 98.7 | L15: =Inputs!L$40 -> 100 | M15: =Inputs!M$40 -> 100.2 | N15: =Inputs!N$40 -> 101.5 | O15: =Inputs!O$40 -> 104.3 | P15: =Inputs!P$40 -> 106.83449 | Q15: =Inputs!Q$40 -> 109.238266 | R15: =Inputs!R$40 -> 111.4230313 | S15: =Inputs!S$40 -> 113.651492 | T15: =Inputs!T$40 -> 115.9245218 | U15: =Inputs!U$40 -> 118.2430122
E16: =Inputs!E$41 -> Consumer Price Index for October | F16: =Inputs!F$41 -> 0 | G16: =Inputs!G$41 -> index | H16: =Inputs!H$41 -> 0 | I16: =Inputs!I$41 -> 0 | J16: =Inputs!J$41 -> 96.8 | K16: =Inputs!K$41 -> 98.8 | L16: =Inputs!L$41 -> 100.1 | M16: =Inputs!M$41 -> 100.3 | N16: =Inputs!N$41 -> 101.6 | O16: =Inputs!O$41 -> 104.4 | P16: =Inputs!P$41 -> 106.97868 | Q16: =Inputs!Q$41 -> 109.332211 | R16: =Inputs!R$41 -> 111.5188552 | S16: =Inputs!S$41 -> 113.7492323 | T16: =Inputs!T$41 -> 116.0242169 | U16: =Inputs!U$41 -> 118.3447013
E17: =Inputs!E$42 -> Consumer Price Index for November | F17: =Inputs!F$42 -> 0 | G17: =Inputs!G$42 -> index | H17: =Inputs!H$42 -> 0 | I17: =Inputs!I$42 -> 0 | J17: =Inputs!J$42 -> 97 | K17: =Inputs!K$42 -> 98.8 | L17: =Inputs!L$42 -> 99.9 | M17: =Inputs!M$42 -> 100.3 | N17: =Inputs!N$42 -> 101.8 | O17: =Inputs!O$42 -> 104.7 | P17: =Inputs!P$42 -> 107.13951 | Q17: =Inputs!Q$42 -> 109.4965792 | R17: =Inputs!R$42 -> 111.6865108 | S17: =Inputs!S$42 -> 113.920241 | T17: =Inputs!T$42 -> 116.1986458 | U17: =Inputs!U$42 -> 118.5226188
E18: =Inputs!E$43 -> Consumer Price Index for December | F18: =Inputs!F$43 -> 0 | G18: =Inputs!G$43 -> index | H18: =Inputs!H$43 -> 0 | I18: =Inputs!I$43 -> 0 | J18: =Inputs!J$43 -> 97.3 | K18: =Inputs!K$43 -> 99.2 | L18: =Inputs!L$43 -> 99.9 | M18: =Inputs!M$43 -> 100.4 | N18: =Inputs!N$43 -> 102.2 | O18: =Inputs!O$43 -> 105 | P18: =Inputs!P$43 -> 107.4885 | Q18: =Inputs!Q$43 -> 109.7995028 | R18: =Inputs!R$43 -> 111.9954928 | S18: =Inputs!S$43 -> 114.2354027 | T18: =Inputs!T$43 -> 116.5201107 | U18: =Inputs!U$43 -> 118.8505129
E19: =Inputs!E$44 -> Consumer Price Index for January | F19: =Inputs!F$44 -> 0 | G19: =Inputs!G$44 -> index | H19: =Inputs!H$44 -> 0 | I19: =Inputs!I$44 -> 0 | J19: =Inputs!J$44 -> 97 | K19: =Inputs!K$44 -> 98.7 | L19: =Inputs!L$44 -> 99.2 | M19: =Inputs!M$44 -> 99.9 | N19: =Inputs!N$44 -> 101.8 | O19: =Inputs!O$44 -> 104.5 | P19: =Inputs!P$44 -> 107.0576656 | Q19: =Inputs!Q$44 -> 109.3058766 | R19: =Inputs!R$44 -> 111.4919941 | S19: =Inputs!S$44 -> 113.721834 | T19: =Inputs!T$44 -> 115.9962707 | U19: =Inputs!U$44 -> 118.3161961
E20: =Inputs!E$45 -> Consumer Price Index for February | F20: =Inputs!F$45 -> 0 | G20: =Inputs!G$45 -> index | H20: =Inputs!H$45 -> 0 | I20: =Inputs!I$45 -> 0 | J20: =Inputs!J$45 -> 97.5 | K20: =Inputs!K$45 -> 99.1 | L20: =Inputs!L$45 -> 99.5 | M20: =Inputs!M$45 -> 100.1 | N20: =Inputs!N$45 -> 102.4 | O20: =Inputs!O$45 -> 104.9 | P20: =Inputs!P$45 -> 107.5524403 | Q20: =Inputs!Q$45 -> 109.8110416 | R20: =Inputs!R$45 -> 112.0072624 | S20: =Inputs!S$45 -> 114.2474076 | T20: =Inputs!T$45 -> 116.5323558 | U20: =Inputs!U$45 -> 118.8630029
E21: =Inputs!E$46 -> Consumer Price Index for March | F21: =Inputs!F$46 -> 0 | G21: =Inputs!G$46 -> index | H21: =Inputs!H$46 -> 0 | I21: =Inputs!I$46 -> 0 | J21: =Inputs!J$46 -> 97.8 | K21: =Inputs!K$46 -> 99.3 | L21: =Inputs!L$46 -> 99.6 | M21: =Inputs!M$46 -> 100.4 | N21: =Inputs!N$46 -> 102.7 | O21: =Inputs!O$46 -> 105.1 | P21: =Inputs!P$46 -> 107.8570589 | Q21: =Inputs!Q$46 -> 110.1220572 | R21: =Inputs!R$46 -> 112.3244983 | S21: =Inputs!S$46 -> 114.5709883 | T21: =Inputs!T$46 -> 116.862408 | U21: =Inputs!U$46 -> 119.1996562
E23: =Inputs!E$48 -> CPIH: Assumed percentage increase for unpopulated monthly values | F23: =Inputs!F$48 -> 0 | G23: =Inputs!G$48 -> % | H23: =Inputs!H$48 -> 0 | I23: =Inputs!I$48 -> 0 | J23: =Inputs!J$48 -> 0 | K23: =Inputs!K$48 -> 0 | L23: =Inputs!L$48 -> 0 | M23: =Inputs!M$48 -> 0 | N23: =Inputs!N$48 -> 0 | O23: =Inputs!O$48 -> 0 | P23: =Inputs!P$48 -> 0 | Q23: =Inputs!Q$48 -> 0 | R23: =Inputs!R$48 -> 0 | S23: =Inputs!S$48 -> 0 | T23: =Inputs!T$48 -> 0 | U23: =Inputs!U$48 -> 0
E25: CPIH: April - index | G25: index | J25: =IF(J10 > 0, J10, I25 * (1 + J$23)) -> 95.9 | K25: =IF(K10 > 0, K10, J25 * (1 + K$23)) -> 98 | L25: 99.6 | M25: 99.9 | N25: 100.6 | O25: 103.2 | P25: 105.85224 | Q25: 108.3185972 | R25: 110.4849691 | S25: 112.6946685 | T25: 114.9485619 | U25: 117.2475331
E26: CPIH: May - index | G26: index | J26: =IF(J11 > 0, J11, I26 * (1 + J$23)) -> 95.9 | K26: 98.2 | L26: 99.6 | M26: 100.1 | N26: 100.8 | O26: 103.5 | P26: 106.11855 | Q26: 108.5274411 | R26: 110.6979899 | S26: 112.9119497 | T26: 115.1701887 | U26: 117.4735925
E27: CPIH: June - index | G27: index | J27: 95.6 | K27: 98 | L27: 99.8 | M27: 100.1 | N27: 101 | O27: 103.5 | P27: 106.191 | Q27: 108.6015357 | R27: 110.7735664 | S27: 112.9890377 | T27: 115.2488185 | U27: 117.5537949
E28: CPIH: July - index | G28: index | J28: 95.7 | K28: 98 | L28: 99.6 | M28: 100 | N28: 100.9 | O28: 103.5 | P28: 106.11855 | Q28: 108.5062174 | R28: 110.6763417 | S28: 112.8898686 | T28: 115.1476659 | U28: 117.4506192
E29: CPIH: August - index | G29: index | J29: 96.1 | K29: 98.4 | L29: 99.9 | M29: 100.3 | N29: 101.2 | O29: 104 | P29: 106.6 | Q29: 108.9985 | R29: 111.17847 | S29: 113.4020394 | T29: 115.6700802 | U29: 117.9834818
E30: CPIH: September- index | G30: index | J30: 96.4 | K30: 98.7 | L30: 100 | M30: 100.2 | N30: 101.5 | O30: 104.3 | P30: 106.83449 | Q30: 109.238266 | R30: 111.4230313 | S30: 113.651492 | T30: 115.9245218 | U30: 118.2430122
E31: CPIH: October - index | G31: index | J31: 96.8 | K31: 98.8 | L31: 100.1 | M31: 100.3 | N31: 101.6 | O31: 104.4 | P31: 106.97868 | Q31: 109.332211 | R31: 111.5188552 | S31: 113.7492323 | T31: 116.0242169 | U31: 118.3447013
E32: CPIH: November - index | G32: index | J32: 97 | K32: 98.8 | L32: 99.9 | M32: 100.3 | N32: 101.8 | O32: 104.7 | P32: 107.13951 | Q32: 109.4965792 | R32: 111.6865108 | S32: 113.920241 | T32: 116.1986458 | U32: 118.5226188
E33: CPIH: December - index | G33: index | J33: 97.3 | K33: 99.2 | L33: 99.9 | M33: 100.4 | N33: 102.2 | O33: 105 | P33: 107.4885 | Q33: 109.7995028 | R33: 111.9954928 | S33: 114.2354027 | T33: 116.5201107 | U33: 118.8505129
E34: CPIH: January - index | G34: index | J34: 97 | K34: 98.7 | L34: 99.2 | M34: 99.9 | N34: 101.8 | O34: 104.5 | P34: 107.0576656 | Q34: 109.3058766 | R34: 111.4919941 | S34: 113.721834 | T34: 115.9962707 | U34: 118.3161961
E35: CPIH: February - index | G35: index | J35: 97.5 | K35: 99.1 | L35: 99.5 | M35: 100.1 | N35: 102.4 | O35: 104.9 | P35: 107.5524403 | Q35: 109.8110416 | R35: 112.0072624 | S35: 114.2474076 | T35: 116.5323558 | U35: 118.8630029
E36: CPIH: March - index | G36: index | J36: 97.8 | K36: 99.3 | L36: 99.6 | M36: 100.4 | N36: 102.7 | O36: 105.1 | P36: 107.8570589 | Q36: 110.1220572 | R36: 112.3244983 | S36: 114.5709883 | T36: 116.862408 | U36: 119.1996562
E38: CPIH: Financial year average - index | G38: index | J38: =AVERAGE(J25:J36) -> 96.58333333 | K38: 98.6 | L38: 99.725 | M38: 100.1666667 | N38: 101.5416667 | O38: 104.2166667 | P38: 106.8157237 | Q38: 109.1714855 | R38: 111.3549152 | S38: 113.5820135 | T38: 115.8536538 | U38: 118.1707268
A41: RPI INDEXATION
B43: RPI: Index value series
E44: =Inputs!E$52 -> Retail Price Index for April | F44: =Inputs!F$52 -> 0 | G44: =Inputs!G$52 -> index | H44: =Inputs!H$52 -> 0 | I44: =Inputs!I$52 -> 0 | J44: =Inputs!J$52 -> 242.5 | K44: =Inputs!K$52 -> 249.5 | L44: =Inputs!L$52 -> 255.7 | M44: =Inputs!M$52 -> 258 | N44: =Inputs!N$52 -> 261.4 | O44: =Inputs!O$52 -> 270.6 | P44: =Inputs!P$52 -> 279.8 | Q44: =Inputs!Q$52 -> 288.4 | R44: =Inputs!R$52 -> 297.052 | S44: =Inputs!S$52 -> 305.96356 | T44: =Inputs!T$52 -> 315.1424668 | U44: =Inputs!U$52 -> 324.5967408
E45: =Inputs!E$53 -> Retail Price Index for May | F45: =Inputs!F$53 -> 0 | G45: =Inputs!G$53 -> index | H45: =Inputs!H$53 -> 0 | I45: =Inputs!I$53 -> 0 | J45: =Inputs!J$53 -> 242.4 | K45: =Inputs!K$53 -> 250 | L45: =Inputs!L$53 -> 255.9 | M45: =Inputs!M$53 -> 258.5 | N45: =Inputs!N$53 -> 262.1 | O45: =Inputs!O$53 -> 271.7 | P45: =Inputs!P$53 -> 280.8 | Q45: =Inputs!Q$53 -> 289.3 | R45: =Inputs!R$53 -> 297.979 | S45: =Inputs!S$53 -> 306.91837 | T45: =Inputs!T$53 -> 316.1259211 | U45: =Inputs!U$53 -> 325.6096987
E46: =Inputs!E$54 -> Retail Price Index for June | F46: =Inputs!F$54 -> 0 | G46: =Inputs!G$54 -> index | H46: =Inputs!H$54 -> 0 | I46: =Inputs!I$54 -> 0 | J46: =Inputs!J$54 -> 241.8 | K46: =Inputs!K$54 -> 249.7 | L46: =Inputs!L$54 -> 256.3 | M46: =Inputs!M$54 -> 258.9 | N46: =Inputs!N$54 -> 263.1 | O46: =Inputs!O$54 -> 272.3 | P46: =Inputs!P$54 -> 281.8 | Q46: =Inputs!Q$54 -> 290.2 | R46: =Inputs!R$54 -> 298.906 | S46: =Inputs!S$54 -> 307.87318 | T46: =Inputs!T$54 -> 317.1093754 | U46: =Inputs!U$54 -> 326.6226567
E47: =Inputs!E$55 -> Retail Price Index for July | F47: =Inputs!F$55 -> 0 | G47: =Inputs!G$55 -> index | H47: =Inputs!H$55 -> 0 | I47: =Inputs!I$55 -> 0 | J47: =Inputs!J$55 -> 242.1 | K47: =Inputs!K$55 -> 249.7 | L47: =Inputs!L$55 -> 256 | M47: =Inputs!M$55 -> 258.6 | N47: =Inputs!N$55 -> 263.4 | O47: =Inputs!O$55 -> 272.9 | P47: =Inputs!P$55 -> 282.2 | Q47: =Inputs!Q$55 -> 290.7 | R47: =Inputs!R$55 -> 299.421 | S47: =Inputs!S$55 -> 308.40363 | T47: =Inputs!T$55 -> 317.6557389 | U47: =Inputs!U$55 -> 327.1854111
E48: =Inputs!E$56 -> Retail Price Index for August | F48: =Inputs!F$56 -> 0 | G48: =Inputs!G$56 -> index | H48: =Inputs!H$56 -> 0 | I48: =Inputs!I$56 -> 0 | J48: =Inputs!J$56 -> 243 | K48: =Inputs!K$56 -> 251 | L48: =Inputs!L$56 -> 257 | M48: =Inputs!M$56 -> 259.8 | N48: =Inputs!N$56 -> 264.4 | O48: =Inputs!O$56 -> 274.7 | P48: =Inputs!P$56 -> 283.8 | Q48: =Inputs!Q$56 -> 292.2 | R48: =Inputs!R$56 -> 300.966 | S48: =Inputs!S$56 -> 309.99498 | T48: =Inputs!T$56 -> 319.2948294 | U48: =Inputs!U$56 -> 328.8736743
E49: =Inputs!E$57 -> Retail Price Index for September | F49: =Inputs!F$57 -> 0 | G49: =Inputs!G$57 -> index | H49: =Inputs!H$57 -> 0 | I49: =Inputs!I$57 -> 0 | J49: =Inputs!J$57 -> 244.2 | K49: =Inputs!K$57 -> 251.9 | L49: =Inputs!L$57 -> 257.6 | M49: =Inputs!M$57 -> 259.6 | N49: =Inputs!N$57 -> 264.9 | O49: =Inputs!O$57 -> 275.1 | P49: =Inputs!P$57 -> 284 | Q49: =Inputs!Q$57 -> 292.5 | R49: =Inputs!R$57 -> 301.275 | S49: =Inputs!S$57 -> 310.31325 | T49: =Inputs!T$57 -> 319.6226475 | U49: =Inputs!U$57 -> 329.2113269
E50: =Inputs!E$58 -> Retail Price Index for October | F50: =Inputs!F$58 -> 0 | G50: =Inputs!G$58 -> index | H50: =Inputs!H$58 -> 0 | I50: =Inputs!I$58 -> 0 | J50: =Inputs!J$58 -> 245.6 | K50: =Inputs!K$58 -> 251.9 | L50: =Inputs!L$58 -> 257.7 | M50: =Inputs!M$58 -> 259.5 | N50: =Inputs!N$58 -> 264.8 | O50: =Inputs!O$58 -> 275.3 | P50: =Inputs!P$58 -> 284.1 | Q50: =Inputs!Q$58 -> 292.7 | R50: =Inputs!R$58 -> 301.481 | S50: =Inputs!S$58 -> 310.52543 | T50: =Inputs!T$58 -> 319.8411929 | U50: =Inputs!U$58 -> 329.4364287
E51: =Inputs!E$59 -> Retail Price Index for November | F51: =Inputs!F$59 -> 0 | G51: =Inputs!G$59 -> index | H51: =Inputs!H$59 -> 0 | I51: =Inputs!I$59 -> 0 | J51: =Inputs!J$59 -> 245.6 | K51: =Inputs!K$59 -> 252.1 | L51: =Inputs!L$59 -> 257.1 | M51: =Inputs!M$59 -> 259.8 | N51: =Inputs!N$59 -> 265.5 | O51: =Inputs!O$59 -> 275.8 | P51: =Inputs!P$59 -> 284.4 | Q51: =Inputs!Q$59 -> 293 | R51: =Inputs!R$59 -> 301.79 | S51: =Inputs!S$59 -> 310.8437 | T51: =Inputs!T$59 -> 320.169011 | U51: =Inputs!U$59 -> 329.7740813
E52: =Inputs!E$60 -> Retail Price Index for December | F52: =Inputs!F$60 -> 0 | G52: =Inputs!G$60 -> index | H52: =Inputs!H$60 -> 0 | I52: =Inputs!I$60 -> 0 | J52: =Inputs!J$60 -> 246.8 | K52: =Inputs!K$60 -> 253.4 | L52: =Inputs!L$60 -> 257.5 | M52: =Inputs!M$60 -> 260.6 | N52: =Inputs!N$60 -> 267.1 | O52: =Inputs!O$60 -> 278.1 | P52: =Inputs!P$60 -> 286.5 | Q52: =Inputs!Q$60 -> 295.1 | R52: =Inputs!R$60 -> 303.953 | S52: =Inputs!S$60 -> 313.07159 | T52: =Inputs!T$60 -> 322.4637377 | U52: =Inputs!U$60 -> 332.1376498
E53: =Inputs!E$61 -> Retail Price Index for January | F53: =Inputs!F$61 -> 0 | G53: =Inputs!G$61 -> index | H53: =Inputs!H$61 -> 0 | I53: =Inputs!I$61 -> 0 | J53: =Inputs!J$61 -> 245.8 | K53: =Inputs!K$61 -> 252.6 | L53: =Inputs!L$61 -> 255.4 | M53: =Inputs!M$61 -> 258.8 | N53: =Inputs!N$61 -> 265.5 | O53: =Inputs!O$61 -> 276 | P53: =Inputs!P$61 -> 284.4 | Q53: =Inputs!Q$61 -> 293.2164 | R53: =Inputs!R$61 -> 302.012892 | S53: =Inputs!S$61 -> 311.0732788 | T53: =Inputs!T$61 -> 320.4054771 | U53: =Inputs!U$61 -> 330.0176414
E54: =Inputs!E$62 -> Retail Price Index for February | F54: =Inputs!F$62 -> 0 | G54: =Inputs!G$62 -> index | H54: =Inputs!H$62 -> 0 | I54: =Inputs!I$62 -> 0 | J54: =Inputs!J$62 -> 247.6 | K54: =Inputs!K$62 -> 254.2 | L54: =Inputs!L$62 -> 256.7 | M54: =Inputs!M$62 -> 260 | N54: =Inputs!N$62 -> 268.4 | O54: =Inputs!O$62 -> 278.1 | P54: =Inputs!P$62 -> 286.5 | Q54: =Inputs!Q$62 -> 295.3815 | R54: =Inputs!R$62 -> 304.242945 | S54: =Inputs!S$62 -> 313.3702333 | T54: =Inputs!T$62 -> 322.7713404 | U54: =Inputs!U$62 -> 332.4544806
E55: =Inputs!E$63 -> Retail Price Index for March | F55: =Inputs!F$63 -> 0 | G55: =Inputs!G$63 -> index | H55: =Inputs!H$63 -> 0 | I55: =Inputs!I$63 -> 0 | J55: =Inputs!J$63 -> 248.7 | K55: =Inputs!K$63 -> 254.8 | L55: =Inputs!L$63 -> 257.1 | M55: =Inputs!M$63 -> 261.1 | N55: =Inputs!N$63 -> 269.3 | O55: =Inputs!O$63 -> 278.3 | P55: =Inputs!P$63 -> 287.1 | Q55: =Inputs!Q$63 -> 296.0001 | R55: =Inputs!R$63 -> 304.880103 | S55: =Inputs!S$63 -> 314.0265061 | T55: =Inputs!T$63 -> 323.4473013 | U55: =Inputs!U$63 -> 333.1507203
E57: =Inputs!E$65 -> RPI: Assumed percentage increase for unpopulated monthly values | F57: =Inputs!F$65 -> 0 | G57: =Inputs!G$65 -> % | H57: =Inputs!H$65 -> 0 | I57: =Inputs!I$65 -> 0 | J57: =Inputs!J$65 -> 0 | K57: =Inputs!K$65 -> 0 | L57: =Inputs!L$65 -> 0 | M57: =Inputs!M$65 -> 0 | N57: =Inputs!N$65 -> 0 | O57: =Inputs!O$65 -> 0 | P57: =Inputs!P$65 -> 0 | Q57: =Inputs!Q$65 -> 0 | R57: =Inputs!R$65 -> 0 | S57: =Inputs!S$65 -> 0 | T57: =Inputs!T$65 -> 0 | U57: =Inputs!U$65 -> 0
E59: RPI: April - index | G59: index | J59: =IF(J44 > 0, J44, I59 * (1 + J$57)) -> 242.5 | K59: =IF(K44 > 0, K44, J59 * (1 + K$57)) -> 249.5 | L59: 255.7 | M59: 258 | N59: 261.4 | O59: 270.6 | P59: 279.8 | Q59: 288.4 | R59: 297.052 | S59: 305.96356 | T59: 315.1424668 | U59: 324.5967408
E60: RPI: May - index | G60: index | J60: =IF(J45 > 0, J45, I60 * (1 + J$57)) -> 242.4 | K60: 250 | L60: 255.9 | M60: 258.5 | N60: 262.1 | O60: 271.7 | P60: 280.8 | Q60: 289.3 | R60: 297.979 | S60: 306.91837 | T60: 316.1259211 | U60: 325.6096987
E61: RPI: June - index | G61: index | J61: =IF(J46 > 0, J46, I61 * (1 + J$57)) -> 241.8 | K61: 249.7 | L61: 256.3 | M61: 258.9 | N61: 263.1 | O61: 272.3 | P61: 281.8 | Q61: 290.2 | R61: 298.906 | S61: 307.87318 | T61: 317.1093754 | U61: 326.6226567
E62: RPI: July - index | G62: index | J62: =IF(J47 > 0, J47, I62 * (1 + J$57)) -> 242.1 | K62: 249.7 | L62: 256 | M62: 258.6 | N62: 263.4 | O62: 272.9 | P62: 282.2 | Q62: 290.7 | R62: 299.421 | S62: 308.40363 | T62: 317.6557389 | U62: 327.1854111
E63: RPI: August - index | G63: index | J63: =IF(J48 > 0, J48, I63 * (1 + J$57)) -> 243 | K63: 251 | L63: 257 | M63: 259.8 | N63: 264.4 | O63: 274.7 | P63: 283.8 | Q63: 292.2 | R63: 300.966 | S63: 309.99498 | T63: 319.2948294 | U63: 328.8736743
E64: RPI: September- index | G64: index | J64: =IF(J49 > 0, J49, I64 * (1 + J$57)) -> 244.2 | K64: 251.9 | L64: 257.6 | M64: 259.6 | N64: 264.9 | O64: 275.1 | P64: 284 | Q64: 292.5 | R64: 301.275 | S64: 310.31325 | T64: 319.6226475 | U64: 329.2113269
E65: RPI: October - index | G65: index | J65: =IF(J50 > 0, J50, I65 * (1 + J$57)) -> 245.6 | K65: 251.9 | L65: 257.7 | M65: 259.5 | N65: 264.8 | O65: 275.3 | P65: 284.1 | Q65: 292.7 | R65: 301.481 | S65: 310.52543 | T65: 319.8411929 | U65: 329.4364287
E66: RPI: November - index | G66: index | J66: =IF(J51 > 0, J51, I66 * (1 + J$57)) -> 245.6 | K66: 252.1 | L66: 257.1 | M66: 259.8 | N66: 265.5 | O66: 275.8 | P66: 284.4 | Q66: 293 | R66: 301.79 | S66: 310.8437 | T66: 320.169011 | U66: 329.7740813
E67: RPI: December - index | G67: index | J67: =IF(J52 > 0, J52, I67 * (1 + J$57)) -> 246.8 | K67: 253.4 | L67: 257.5 | M67: 260.6 | N67: 267.1 | O67: 278.1 | P67: 286.5 | Q67: 295.1 | R67: 303.953 | S67: 313.07159 | T67: 322.4637377 | U67: 332.1376498
E68: RPI: January - index | G68: index | J68: =IF(J53 > 0, J53, I68 * (1 + J$57)) -> 245.8 | K68: 252.6 | L68: 255.4 | M68: 258.8 | N68: 265.5 | O68: 276 | P68: 284.4 | Q68: 293.2164 | R68: 302.012892 | S68: 311.0732788 | T68: 320.4054771 | U68: 330.0176414
E69: RPI: February - index | G69: index | J69: =IF(J54 > 0, J54, I69 * (1 + J$57)) -> 247.6 | K69: 254.2 | L69: 256.7 | M69: 260 | N69: 268.4 | O69: 278.1 | P69: 286.5 | Q69: 295.3815 | R69: 304.242945 | S69: 313.3702333 | T69: 322.7713404 | U69: 332.4544806
E70: RPI: March - index | G70: index | J70: =IF(J55 > 0, J55, I70 * (1 + J$57)) -> 248.7 | K70: 254.8 | L70: 257.1 | M70: 261.1 | N70: 269.3 | O70: 278.3 | P70: 287.1 | Q70: 296.0001 | R70: 304.880103 | S70: 314.0265061 | T70: 323.4473013 | U70: 333.1507203
E72: RPI: Financial year average - index | G72: index | J72: =AVERAGE(J59:J70) -> 244.675 | K72: 251.7333333 | L72: 256.6666667 | M72: 259.4333333 | N72: 264.9916667 | O72: 274.9083333 | P72: 283.7833333 | Q72: 292.3915 | R72: 301.163245 | S72: 310.1981424 | T72: 319.5040866 | U72: 329.0892092
A75: INFLATION
B77: Inflation of 2013 base prices FYA - RPI
E78: =Inputs!E$69 -> Year reference for FYA base price 1 | F78: =Inputs!F$69 -> 2013 | G78: =Inputs!G$69 -> year #
E79: =Inputs!E$72 -> Year reference for FYE end price | F79: =Inputs!F$72 -> 2020 | G79: =Inputs!G$72 -> year #
E80: =E$72 -> RPI: Financial year average - index | F80: 0 | G80: index | H80: 0 | I80: 0 | J80: 244.675 | K80: 251.7333333 | L80: 256.6666667 | M80: 259.4333333 | N80: 264.9916667 | O80: 274.9083333 | P80: 283.7833333 | Q80: 292.3915 | R80: 301.163245 | S80: 310.1981424 | T80: 319.5040866 | U80: 329.0892092
E81: =E$70 -> RPI: March - index | F81: 0 | G81: index | H81: 0 | I81: 0 | J81: 248.7 | K81: 254.8 | L81: 257.1 | M81: 261.1 | N81: 269.3 | O81: 278.3 | P81: 287.1 | Q81: 296.0001 | R81: 304.880103 | S81: 314.0265061 | T81: 323.4473013 | U81: 333.1507203
E82: ="RPI inflate from " & F78 & " FYA to " & F79 & " FYE" -> RPI inflate from 2013 FYA to 2020 FYE | F82: =INDEX($J81:$U81, 1, MATCH($F79,$J$4:$U$4)) / INDEX($J80:$U80, 1, MATCH($F78,$J$4:$U$4)) -> 1.209768468 | G82: factor
B84: Inflation of 2018 base prices FYA - RPI
E85: =Inputs!E$70 -> Year reference for FYA base price 2 | F85: =Inputs!F$70 -> 2018 | G85: =Inputs!G$70 -> year #
E86: =Inputs!E$72 -> Year reference for FYE end price | F86: =Inputs!F$72 -> 2020 | G86: =Inputs!G$72 -> year #
E87: =E$72 -> RPI: Financial year average - index | F87: 0 | G87: index | H87: 0 | I87: 0 | J87: 244.675 | K87: 251.7333333 | L87: 256.6666667 | M87: 259.4333333 | N87: 264.9916667 | O87: 274.9083333 | P87: 283.7833333 | Q87: 292.3915 | R87: 301.163245 | S87: 310.1981424 | T87: 319.5040866 | U87: 329.0892092
E88: =E$70 -> RPI: March - index | F88: 0 | G88: index | H88: 0 | I88: 0 | J88: 248.7 | K88: 254.8 | L88: 257.1 | M88: 261.1 | N88: 269.3 | O88: 278.3 | P88: 287.1 | Q88: 296.0001 | R88: 304.880103 | S88: 314.0265061 | T88: 323.4473013 | U88: 333.1507203
E89: ="RPI inflate from " & F85 & " FYA to " & F86 & " FYE" -> RPI inflate from 2018 FYA to 2020 FYE | F89: =INDEX($J88:$U88, 1, MATCH($F86,$J$4:$U$4)) / INDEX($J87:$U87, 1, MATCH($F85,$J$4:$U$4)) -> 1.076722908 | G89: factor
B91: Inflation of 2018 base prices FYE - RPI
E92: =Inputs!E$71 -> Year reference for FYE base price | F92: =Inputs!F$71 -> 2018 | G92: =Inputs!G$71 -> year #
E93: =Inputs!E$72 -> Year reference for FYE end price | F93: =Inputs!F$72 -> 2020 | G93: =Inputs!G$72 -> year #
E94: =E$70 -> RPI: March - index | F94: 0 | G94: index | H94: 0 | I94: 0 | J94: 248.7 | K94: 254.8 | L94: 257.1 | M94: 261.1 | N94: 269.3 | O94: 278.3 | P94: 287.1 | Q94: 296.0001 | R94: 304.880103 | S94: 314.0265061 | T94: 323.4473013 | U94: 333.1507203
E95: ="RPI inflate from " & F92 & " FYE to " & F93 & " FYE" -> RPI inflate from 2018 FYE to 2020 FYE | F95: =INDEX($J94:$U94, 1, MATCH($F93,$J$4:$U$4)) / INDEX($J94:$U94, 1, MATCH($F92,$J$4:$U$4)) -> 1.063600791 | G95: factor
A98: DEFLATION
E100: =Inputs!E$76 -> Year reference for FYE base price | F100: =Inputs!F$76 -> 2020 | G100: =Inputs!G$76 -> year #
E101: =Inputs!E$77 -> Year reference for FYA end price | F101: =Inputs!F$77 -> 2018 | G101: =Inputs!G$77 -> year #
E102: =Inputs!E$78 -> Year reference for FYE base price - IFRS 16 | F102: =Inputs!F$78 -> 2018 | G102: =Inputs!G$78 -> year #
E103: =E$36 -> CPIH: March - index | F103: =F$36 -> 0 | G103: index | H103: 0 | I103: 0 | J103: 97.8 | K103: 99.3 | L103: 99.6 | M103: 100.4 | N103: 102.7 | O103: 105.1 | P103: 107.8570589 | Q103: 110.1220572 | R103: 112.3244983 | S103: 114.5709883 | T103: 116.862408 | U103: 119.1996562
E104: =E$38 -> CPIH: Financial year average - index | F104: 0 | G104: index | H104: 0 | I104: 0 | J104: 96.58333333 | K104: 98.6 | L104: 99.725 | M104: 100.1666667 | N104: 101.5416667 | O104: 104.2166667 | P104: 106.8157237 | Q104: 109.1714855 | R104: 111.3549152 | S104: 113.5820135 | T104: 115.8536538 | U104: 118.1707268
E105: ="CPIH deflate from " & F100 & " FYE to " & F101 & " FYA" -> CPIH deflate from 2020 FYE to 2018 FYA | F105: =INDEX($J104:$U104, 1, MATCH($F101,$J$4:$U$4)) / INDEX($J103:$U103, 1, MATCH($F100,$J$4:$U$4)) -> 0.9463741356 | G105: factor
E106: ="CPIH deflate from " & F100 & " FYE to " & F101 & " FYE" -> CPIH deflate from 2020 FYE to 2018 FYE | F106: =INDEX($J103:$U103, 1, MATCH($F101,$J$4:$U$4)) / INDEX($J103:$U103, 1, MATCH($F100,$J$4:$U$4)) -> 0.954395538 | G106: factor
E107: CPIH deflate from 2018 FYE to 2018 FYA - IFRS 16 | F107: =INDEX($J104:$U104, 1, MATCH($F101,$J$4:$U$4)) / INDEX($J103:$U103, 1, MATCH($F102,$J$4:$U$4)) -> 0.9915953061 | G107: factor

Sheet Calc
A1: =RIGHT(CELL("filename", $A$1), LEN(CELL("filename", $A$1)) - SEARCH("]", CELL("filename", $A$1))) -> Calc
E2: =Time!E$25 -> Model period ending | J2: =Time!J$25 -> 2013-03-31 | K2: =Time!K$25 -> 2014-03-31 | L2: =Time!L$25 -> 2015-03-31 | M2: =Time!M$25 -> 2016-03-31 | N2: =Time!N$25 -> 2017-03-31 | O2: =Time!O$25 -> 2018-03-31 | P2: =Time!P$25 -> 2019-03-31 | Q2: =Time!Q$25 -> 2020-03-31 | R2: =Time!R$25 -> 2021-03-31 | S2: =Time!S$25 -> 2022-03-31 | T2: =Time!T$25 -> 2023-03-31 | U2: =Time!U$25 -> 2024-03-31
E3: =Time!E$80 -> Timeline label | J3: =Time!J$80 -> Pre-Fcst | K3: =Time!K$80 -> Pre-Fcst | L3: =Time!L$80 -> Pre-Fcst | M3: =Time!M$80 -> Pre-Fcst | N3: =Time!N$80 -> Pre-Fcst | O3: =Time!O$80 -> Pre-Fcst | P3: =Time!P$80 -> Pre-Fcst | Q3: =Time!Q$80 -> Pre-Fcst | R3: =Time!R$80 -> Forecast | S3: =Time!S$80 -> Forecast | T3: =Time!T$80 -> Forecast | U3: =Time!U$80 -> Forecast
E4: =Time!E$103 -> Financial year ending | J4: =Time!J$103 -> 2013 | K4: =Time!K$103 -> 2014 | L4: =Time!L$103 -> 2015 | M4: =Time!M$103 -> 2016 | N4: =Time!N$103 -> 2017 | O4: =Time!O$103 -> 2018 | P4: =Time!P$103 -> 2019 | Q4: =Time!Q$103 -> 2020 | R4: =Time!R$103 -> 2021 | S4: =Time!S$103 -> 2022 | T4: =Time!T$103 -> 2023 | U4: =Time!U$103 -> 2024
E5: =Time!E$10 -> Model column counter | F5: Constant | G5: Unit | H5: Total | J5: =Time!J$10 -> 1 | K5: =Time!K$10 -> 2 | L5: =Time!L$10 -> 3 | M5: =Time!M$10 -> 4 | N5: =Time!N$10 -> 5 | O5: =Time!O$10 -> 6 | P5: =Time!P$10 -> 7 | Q5: =Time!Q$10 -> 8 | R5: =Time!R$10 -> 9 | S5: =Time!S$10 -> 10 | T5: =Time!T$10 -> 11 | U5: =Time!U$10 -> 12
A7: WATER SERVICES
B9: Water RCV closing balance at 31 March 2020
E10: =Inputs!E$85 -> Wholesale water closing RCV at 31 March 2020 (from PR14 FD) | F10: =Inputs!F$85 -> 0 | G10: =Inputs!G$85 -> £m
E11: =Inputs!E$86 -> Water ~ Total Adjustment RCV carry forward to PR19 | F11: =Inputs!F$86 -> 3.029302235 | G11: =Inputs!G$86 -> £m
E12: =Inputs!E$87 -> Water ~ CIS RCV inflation correction | F12: =Inputs!F$87 -> -40.0099985 | G12: =Inputs!G$87 -> £m
E13: =Inputs!E$88 -> Net performance payment / (penalty) applied to RCV for end of period ODI adjustments ~ Water resources | F13: =Inputs!F$88 -> 0 | G13: =Inputs!G$88 -> £m
E14: =Inputs!E$89 -> Net performance payment / (penalty) applied to RCV for end of period ODI adjustments ~ Water network plus | F14: =Inputs!F$89 -> 0 | G14: =Inputs!G$89 -> £m
E15: =Inputs!E$90 -> Water: RCV adjustment from totex menu model | F15: =Inputs!F$90 -> 32.77115488 | G15: =Inputs!G$90 -> £m
E17: =Indexation!E$82 -> RPI inflate from 2013 FYA to 2020 FYE | F17: =Indexation!F$82 -> 1.209768468 | G17: =Indexation!G$82 -> factor
E19: =E10 & " at 2020 FYE price base" -> Wholesale water closing RCV at 31 March 2020 (from PR14 FD) at 2020 FYE price base | F19: =F10 * F$17 -> 0 | G19: £m
E20: Water ~ Total Adjustment RCV carry forward to PR19 at 2020 FYE price base | F20: 3.664754326 | G20: £m
E21: Water ~ CIS RCV inflation correction at 2020 FYE price base | F21: -48.40283461 | G21: £m
E22: Net performance payment / (penalty) applied to RCV for end of period ODI adjustments ~ Water resources at 2020 FYE price base | F22: 0 | G22: £m
E23: Net performance payment / (penalty) applied to RCV for end of period ODI adjustments ~ Water network plus at 2020 FYE price base | F23: 0 | G23: £m
E24: Water: RCV adjustment from totex menu model at 2020 FYE price base | F24: 39.64550984 | G24: £m
E26: =Inputs!E$91 -> Water ~ Other adjustment to wholesale RCV | F26: =Inputs!F$91 -> 0 | G26: =Inputs!G$91 -> £m
E27: =Inputs!E$92 -> Water ~ NPV effect of 50% of proceeds from disposals of interest in land | F27: =Inputs!F$92 -> -1.251782808 | G27: =Inputs!G$92 -> £m
E29: =Indexation!E$95 -> RPI inflate from 2018 FYE to 2020 FYE | F29: =Indexation!F$95 -> 1.063600791 | G29: =Indexation!G$95 -> factor
E30: =Indexation!E$89 -> RPI inflate from 2018 FYA to 2020 FYE | F30: =Indexation!F$89 -> 1.076722908 | G30: =Indexation!G$89 -> factor
E32: =E26 & " at 2020 FYE price base" -> Water ~ Other adjustment to wholesale RCV at 2020 FYE price base | F32: =F26 * F29 -> 0 | G32: £m
E33: =E27 & " at 2020 FYE price base" -> Water ~ NPV effect of 50% of proceeds from disposals of interest in land at 2020 FYE price base | F33: =F27 * F30 -> -1.347823224 | G33: £m
C35: Values expressed in 2017-18 FYE CPIH deflated price base for table App8
E36: =E$19 -> Wholesale water closing RCV at 31 March 2020 (from PR14 FD) at 2020 FYE price base | F36: =F$19 -> 0 | G36: £m
E37: =E$20 -> Water ~ Total Adjustment RCV carry forward to PR19 at 2020 FYE price base | F37: =F$20 -> 3.664754326 | G37: £m
E38: =E$21 -> Water ~ CIS RCV inflation correction at 2020 FYE price base | F38: =F$21 -> -48.40283461 | G38: £m
E39: =E$33 -> Water ~ NPV effect of 50% of proceeds from disposals of interest in land at 2020 FYE price base | F39: =F$33 -> -1.347823224 | G39: £m
E40: =E$22 -> Net performance payment / (penalty) applied to RCV for end of period ODI adjustments ~ Water resources at 2020 FYE price base | F40: =F$22 -> 0 | G40: £m
E41: =E$23 -> Net performance payment / (penalty) applied to RCV for end of period ODI adjustments ~ Water network plus at 2020 FYE price base | F41: =F$23 -> 0 | G41: £m
E42: =E$24 -> Water: RCV adjustment from totex menu model at 2020 FYE price base | F42: =F$24 -> 39.64550984 | G42: £m
E43: =E$32 -> Water ~ Other adjustment to wholesale RCV at 2020 FYE price base | F43: =F$32 -> 0 | G43: £m
E45: =Indexation!E$106 -> CPIH deflate from 2020 FYE to 2018 FYE | F45: =Indexation!F$106 -> 0.954395538 | G45: =Indexation!G$106 -> factor
E47: Wholesale water closing RCV at 31 March 2020 before midnight adjustments at 2017-18 FYE CPIH deflated price base | F47: =F36 * F$45 -> 0 | G47: £m
E48: Water ~ Total Adjustment RCV carry forward to PR19 at 2017-18 FYE CPIH deflated price base | F48: 3.497625176 | G48: £m
E49: Water ~ CIS RCV inflation correction at 2017-18 FYE CPIH deflated price base | F49: -46.19544938 | G49: £m
E50: Water ~ NPV effect of 50% of proceeds from disposals of interest in land at 2017-18 FYE CPIH deflated price base | F50: -1.286356471 | G50: £m
E51: Water ~ ODI RCV adjustment allocated to Water resources at 2017-18 FYE CPIH deflated price base | F51: 0 | G51: £m
E52: Water ~ ODI RCV adjustment allocated to Water network plus at 2017-18 FYE CPIH deflated price base | F52: 0 | G52: £m
E53: Water ~ Totex menu RCV adjustment at 2017-18 FYE CPIH deflated price base | F53: 37.8374977 | G53: £m
E54: Water ~ Other adjustment to wholesale RCV at 2017-18 FYE CPIH deflated price base | F54: 0 | G54: £m
E55: Total wholesale water RCV at 31 March 2020 post midnight adjustments before allocation to price control units at 2017-18 FYE CPIH deflated price base | F55: =SUM(F47:F54) -> -6.146682976 | G55: £m
C57: PR14 reconciliation adjustments expressed in 2017-18 FYA CPIH deflated price base
E58: =E$20 -> Water ~ Total Adjustment RCV carry forward to PR19 at 2020 FYE price base | F58: =F$20 -> 3.664754326 | G58: £m
E59: =E$21 -> Water ~ CIS RCV inflation correction at 2020 FYE price base | F59: =F$21 -> -48.40283461 | G59: £m
E60: =E$33 -> Water ~ NPV effect of 50% of proceeds from disposals of interest in land at 2020 FYE price base | F60: =F$33 -> -1.347823224 | G60: £m
E61: =E$22 -> Net performance payment / (penalty) applied to RCV for end of period ODI adjustments ~ Water resources at 2020 FYE price base | F61: =F$22 -> 0 | G61: £m
E62: =E$23 -> Net performance payment / (penalty) applied to RCV for end of period ODI adjustments ~ Water network plus at 2020 FYE price base | F62: =F$23 -> 0 | G62: £m
E63: =E$24 -> Water: RCV adjustment from totex menu model at 2020 FYE price base | F63: =F$24 -> 39.64550984 | G63: £m
E64: =E$32 -> Water ~ Other adjustment to wholesale RCV at 2020 FYE price base | F64: =F$32 -> 0 | G64: £m
E66: =Indexation!E$105 -> CPIH deflate from 2020 FYE to 2018 FYA | F66: =Indexation!F$105 -> 0.9463741356 | G66: =Indexation!G$105 -> factor
E68: Water ~ Total adjustment RCV carry forward to PR19 at 2017-18 FYA CPIH deflated price base | F68: =F58 * F$66 -> 3.468228707 | G68: £m
E69: Water ~ CIS RCV inflation correction at 2017-18 FYA CPIH deflated price base | F69: -45.80719076 | G69: £m
E70: Water ~ NPV effect of 50% of proceeds from disposals of interest in land at 2017-18 FYA CPIH deflated price base | F70: -1.275545039 | G70: £m
E71: ODI end of period RCV adjustment ~ Water resources at 2017-18 FYA CPIH deflated price base | F71: 0 | G71: £m
E72: ODI end of period RCV adjustment ~ Water network plus at 2017-18 FYA CPIH deflated price base | F72: 0 | G72: £m
E73: Water: Totex menu RCV adjustment at 2017-18 FYA CPIH deflated price base | F73: 37.51948511 | G73: £m
E74: Water ~ Other adjustment to wholesale RCV at 2017-18 FYA CPIH deflated price base | F74: 0 | G74: £m
C76: IFRS16 RCV adjustments expressed in 2017-18 FYA CPIH deflated price base
E77: =Inputs!E$99 -> Water resources IFRS16 RCV adjustment | F77: =Inputs!F$99 -> 0 | G77: =Inputs!G$99 -> £m
E78: =Inputs!E$100 -> Water network plus IFRS16 RCV adjustment | F78: =Inputs!F$100 -> 0 | G78: =Inputs!G$100 -> £m
E80: =Indexation!E$107 -> CPIH deflate from 2018 FYE to 2018 FYA - IFRS 16 | F80: =Indexation!F$107 -> 0.9915953061 | G80: =Indexation!G$107 -> factor
E82: Water resources IFRS16 RCV adjustment at 2017-18 FYA CPIH deflated price base | F82: =F77 * F$80 -> 0 | G82: £m
E83: Water network plus IFRS16 RCV adjustment at 2017-18 FYA CPIH deflated price base | F83: =F78 * F$80 -> 0 | G83: £m
B85: Total wholesale water RCV at 31 March 2020 post midnight adjustments before allocation to price control units at 2020 FYE price base
E86: =E$19 -> Wholesale water closing RCV at 31 March 2020 (from PR14 FD) at 2020 FYE price base | F86: 0 | G86: £m
E87: =E$20 -> Water ~ Total Adjustment RCV carry forward to PR19 at 2020 FYE price base | F87: =F$20 -> 3.664754326 | G87: =G$20 -> £m
E88: =E$21 -> Water ~ CIS RCV inflation correction at 2020 FYE price base | F88: =F$21 -> -48.40283461 | G88: =G$21 -> £m
E89: =E$22 -> Net performance payment / (penalty) applied to RCV for end of period ODI adjustments ~ Water resources at 2020 FYE price base | F89: =F$22 -> 0 | G89: =G$22 -> £m
E90: =E$23 -> Net performance payment / (penalty) applied to RCV for end of period ODI adjustments ~ Water network plus at 2020 FYE price base | F90: =F$23 -> 0 | G90: £m
E91: =E$24 -> Water: RCV adjustment from totex menu model at 2020 FYE price base | F91: =F$24 -> 39.64550984 | G91: =G$24 -> £m
E92: =E$32 -> Water ~ Other adjustment to wholesale RCV at 2020 FYE price base | F92: 0 | G92: £m
E93: =E$33 -> Water ~ NPV effect of 50% of proceeds from disposals of interest in land at 2020 FYE price base | F93: =F$33 -> -1.347823224 | G93: =G$33 -> £m
E94: Total wholesale water RCV at 31 March 2020 post midnight adjustments before allocation to price control units at 2020 FYE price base | F94: =SUM(F86:F93) -> -6.440393664 | G94: £m
B96: Water resources
E97: =E$94 -> Total wholesale water RCV at 31 March 2020 post midnight adjustments before allocation to price control units at 2020 FYE price base | F97: -6.440393664 | G97: £m
E98: =Inputs!E$96 -> Water resources % of total wholesale water RCV ~ 31 March 2020 | F98: =Inputs!F$96 -> 0 | G98: =Inputs!G$96 -> %
E99: =E$89 -> Net performance payment / (penalty) applied to RCV for end of period ODI adjustments ~ Water resources at 2020 FYE price base | F99: =F$89 -> 0 | G99: £m
E100: =E$90 -> Net performance payment / (penalty) applied to RCV for end of period ODI adjustments ~ Water network plus at 2020 FYE price base | F100: =F$90 -> 0 | G100: £m
E101: Water resources opening RCV at 2020 FYE price base | F101: =(F97 - F99 - F100) * F98 + F99 -> 0 | G101: £m
E103: =E$101 -> Water resources opening RCV at 2020 FYE price base | F103: 0 | G103: £m
E104: =Inputs!E$94 -> % of RCV to index by RPI - water services | F104: =Inputs!F$94 -> 0 | G104: =Inputs!G$94 -> %
E105: Water resources RPI linked RCV at 2020 FYE price base | F105: =F103 * F104 -> 0 | G105: £m
E107: =E$101 -> Water resources opening RCV at 2020 FYE price base | F107: 0 | G107: £m
E108: =Inputs!E$94 -> % of RCV to index by RPI - water services | F108: =Inputs!F$94 -> 0 | G108: =Inputs!G$94 -> %
E109: Water resources CPIH linked RCV at 2020 FYE price base | F109: =F107 * (1 - F108) -> 0 | G109: £m
E111: =E$105 -> Water resources RPI linked RCV at 2020 FYE price base | F111: 0 | G111: £m
E112: =E$109 -> Water resources CPIH linked RCV at 2020 FYE price base | F112: 0 | G112: £m
E114: =Indexation!E$105 -> CPIH deflate from 2020 FYE to 2018 FYA | F114: =Indexation!F$105 -> 0.9463741356 | G114: =Indexation!G$105 -> factor
E116: Water resources 2020 RCV RPI inflated ~ 1 April (opening balance excluding IFRS16 adjustment) at 2017-18 CPIH deflated price base | F116: =F111 * F$114 -> 0 | G116: £m
E117: Water resources 2020 RCV CPIH inflated ~ 1 April (opening balance excluding IFRS16 adjustment) at 2017-18 CPIH deflated price base | F117: =F112 * F$114 -> 0 | G117: £m
E119: =E82 -> Water resources IFRS16 RCV adjustment at 2017-18 FYA CPIH deflated price base | F119: =F82 -> 0 | G119: =G82 -> £m
E120: =Inputs!E$94 -> % of RCV to index by RPI - water services | F120: =Inputs!F$94 -> 0 | G120: =Inputs!G$94 -> %
E121: Water resources IFRS16 adjustment RPI inflated RCV at 2017-18 FYA CPIH deflated price base | F121: =F119 * F120 -> 0 | G121: £m
E123: =E82 -> Water resources IFRS16 RCV adjustment at 2017-18 FYA CPIH deflated price base | F123: =F82 -> 0 | G123: =G82 -> £m
E124: =Inputs!E$94 -> % of RCV to index by RPI - water services | F124: =Inputs!F$94 -> 0 | G124: =Inputs!G$94 -> %
E125: Water resources IFRS16 adjustment CPIH inflated RCV at 2017-18 FYA CPIH deflated price base | F125: =F123 * (1 - F124) -> 0 | G125: £m
E127: =E116 -> Water resources 2020 RCV RPI inflated ~ 1 April (opening balance excluding IFRS16 adjustment) at 2017-18 CPIH deflated price base | F127: =F116 -> 0 | G127: £m
E128: =E121 -> Water resources IFRS16 adjustment RPI inflated RCV at 2017-18 FYA CPIH deflated price base | F128: =F121 -> 0 | G128: £m
E129: Water resources 2020 RCV RPI inflated ~ 1 April (opening balance) at 2017-18 CPIH deflated price base | F129: =F127 + F128 -> 0 | G129: £m
E131: =E117 -> Water resources 2020 RCV CPIH inflated ~ 1 April (opening balance excluding IFRS16 adjustment) at 2017-18 CPIH deflated price base | F131: =F117 -> 0 | G131: =G117 -> £m
E132: =E125 -> Water resources IFRS16 adjustment CPIH inflated RCV at 2017-18 FYA CPIH deflated price base | F132: =F125 -> 0 | G132: £m
E133: Water resources 2020 RCV CPIH inflated ~ 1 April (opening balance) at 2017-18 CPIH deflated price base | F133: =F131 + F132 -> 0 | G133: £m
B135: Water network plus
E136: =E$94 -> Total wholesale water RCV at 31 March 2020 post midnight adjustments before allocation to price control units at 2020 FYE price base | F136: -6.440393664 | G136: £m
E137: =Inputs!E$97 -> Water network plus % of total wholesale water RCV ~ 31 March 2020 | F137: =Inputs!F$97 -> 1 | G137: =Inputs!G$97 -> %
E138: =E$89 -> Net performance payment / (penalty) applied to RCV for end of period ODI adjustments ~ Water resources at 2020 FYE price base | F138: =F$89 -> 0 | G138: £m
E139: =E$90 -> Net performance payment / (penalty) applied to RCV for end of period ODI adjustments ~ Water network plus at 2020 FYE price base | F139: =F$90 -> 0 | G139: £m
E140: Water network plus opening RCV at 2020 FYE price base | F140: =(F136 - F138 - F139) * F137 + F139 -> -6.440393664 | G140: £m
E142: =E$140 -> Water network plus opening RCV at 2020 FYE price base | F142: -6.440393664 | G142: £m
E143: =Inputs!E$94 -> % of RCV to index by RPI - water services | F143: =Inputs!F$94 -> 0 | G143: =Inputs!G$94 -> %
E144: Water network plus RPI linked RCV at 2020 FYE price base | F144: =F142 * F143 -> 0 | G144: £m
E146: =E$140 -> Water network plus opening RCV at 2020 FYE price base | F146: -6.440393664 | G146: £m
E147: =Inputs!E$94 -> % of RCV to index by RPI - water services | F147: =Inputs!F$94 -> 0 | G147: =Inputs!G$94 -> %
E148: Water network plus CPIH linked RCV at 2020 FYE price base | F148: =F146 * (1 - F147) -> -6.440393664 | G148: £m
E150: =E$144 -> Water network plus RPI linked RCV at 2020 FYE price base | F150: =F$144 -> 0 | G150: £m
E151: =E$148 -> Water network plus CPIH linked RCV at 2020 FYE price base | F151: -6.440393664 | G151: £m
E153: =Indexation!E$105 -> CPIH deflate from 2020 FYE to 2018 FYA | F153: =Indexation!F$105 -> 0.9463741356 | G153: =Indexation!G$105 -> factor
E155: Water network plus RCV RPI inflated ~ 1 April (opening balance excluding IFRS16 adjustment) at 2017-18 CPIH deflated price base | F155: =F150 * F$153 -> 0 | G155: £m
E156: Water network plus RCV CPIH inflated ~ 1 April (opening balance excluding IFRS16 adjustment) at 2017-18 CPIH deflated price base | F156: =F151 * F$153 -> -6.095021987 | G156: £m
E158: =E83 -> Water network plus IFRS16 RCV adjustment at 2017-18 FYA CPIH deflated price base | F158: =F83 -> 0 | G158: =G83 -> £m
E159: =Inputs!E$94 -> % of RCV to index by RPI - water services | F159: =Inputs!F$94 -> 0 | G159: =Inputs!G$94 -> %
E160: Water network plus IFRS16 adjustment RPI inflated RCV at 2017-18 FYA CPIH deflated price base | F160: =F158 * F159 -> 0 | G160: £m
E162: =E83 -> Water network plus IFRS16 RCV adjustment at 2017-18 FYA CPIH deflated price base | F162: =F83 -> 0 | G162: £m
E163: =Inputs!E$94 -> % of RCV to index by RPI - water services | F163: =Inputs!F$94 -> 0 | G163: =Inputs!G$94 -> %
E164: Water network plus IFRS16 adjustment CPIH inflated RCV at 2017-18 FYA CPIH deflated price base | F164: =F162 * (1 - F163) -> 0 | G164: £m
E166: =E155 -> Water network plus RCV RPI inflated ~ 1 April (opening balance excluding IFRS16 adjustment) at 2017-18 CPIH deflated price base | F166: =F155 -> 0 | G166: £m
E167: =E160 -> Water network plus IFRS16 adjustment RPI inflated RCV at 2017-18 FYA CPIH deflated price base | F167: =F160 -> 0 | G167: £m
E168: Water network plus RCV RPI inflated ~ 1 April (opening balance) at 2017-18 CPIH deflated price base | F168: =F166 + F167 -> 0 | G168: £m
E170: =E156 -> Water network plus RCV CPIH inflated ~ 1 April (opening balance excluding IFRS16 adjustment) at 2017-18 CPIH deflated price base | F170: =F156 -> -6.095021987 | G170: £m
E171: =E164 -> Water network plus IFRS16 adjustment CPIH inflated RCV at 2017-18 FYA CPIH deflated price base | F171: =F164 -> 0 | G171: £m
E172: Water network plus RCV CPIH inflated ~ 1 April (opening balance) at 2017-18 CPIH deflated price base | F172: =F170 + F171 -> -6.095021987 | G172: £m
A175: WASTEWATER SERVICES
B177: Wastewater RCV closing balance at 31 March 2020
E178: =Inputs!E$104 -> Wholesale wastewater closing RCV at 31 March 2020 in 2012-13 prices (PR14 FD) | F178: =Inputs!F$104 -> 0 | G178: =Inputs!G$104 -> £m
E179: =Inputs!E$105 -> Wastewater ~ Total Adjustment RCV carry forward to PR19 | F179: =Inputs!F$105 -> 3.198466915 | G179: =Inputs!G$105 -> £m
E180: =Inputs!E$106 -> Wastewater ~ CIS RCV inflation correction | F180: =Inputs!F$106 -> -61.17497836 | G180: =Inputs!G$106 -> £m
E181: =Inputs!E$107 -> Net performance payment / (penalty) applied to RCV for end of period ODI adjustments ~ Wastewater network plus | F181: =Inputs!F$107 -> 0 | G181: =Inputs!G$107 -> £m
E182: =Inputs!E$108 -> Wastewater: RCV adjustment from totex menu model | F182: =Inputs!F$108 -> -57.50467532 | G182: =Inputs!G$108 -> £m
E184: =Indexation!E$82 -> RPI inflate from 2013 FYA to 2020 FYE | F184: =Indexation!F$82 -> 1.209768468 | G184: =Indexation!G$82 -> factor
E186: =E178 & " at 2020 FYE price base" -> Wholesale wastewater closing RCV at 31 March 2020 in 2012-13 prices (PR14 FD) at 2020 FYE price base | F186: =F178 * F$184 -> 0 | G186: £m
E187: =E179 & " at 2020 FYE price base" -> Wastewater ~ Total Adjustment RCV carry forward to PR19 at 2020 FYE price base | F187: =F179 * F$184 -> 3.869404421 | G187: £m
E188: =E180 & " at 2020 FYE price base" -> Wastewater ~ CIS RCV inflation correction at 2020 FYE price base | F188: =F180 * F$184 -> -74.00755988 | G188: £m
E189: =E181 & " at 2020 FYE price base" -> Net performance payment / (penalty) applied to RCV for end of period ODI adjustments ~ Wastewater network plus at 2020 FYE price base | F189: =F181 * F$184 -> 0 | G189: £m
E190: =E182 & " at 2020 FYE price base" -> Wastewater: RCV adjustment from totex menu model at 2020 FYE price base | F190: =F182 * F$184 -> -69.56734299 | G190: £m
E192: =Inputs!E$114 -> Bioresources RCV (prior to midnight adjustments) 31 March 2020 | F192: =Inputs!F$114 -> 0 | G192: =Inputs!G$114 -> £m
E193: =Inputs!E$109 -> Wastewater ~ Other adjustment to wholesale RCV | F193: =Inputs!F$109 -> 0 | G193: =Inputs!G$109 -> £m
E194: =Inputs!E$110 -> Wastewater ~ NPV effect of 50% of proceeds from disposals of interest in land | F194: =Inputs!F$110 -> 0.2378039965 | G194: =Inputs!G$110 -> £m
E196: =Indexation!E$95 -> RPI inflate from 2018 FYE to 2020 FYE | F196: =Indexation!F$95 -> 1.063600791 | G196: =Indexation!G$95 -> factor
E197: =Indexation!E$89 -> RPI inflate from 2018 FYA to 2020 FYE | F197: =Indexation!F$89 -> 1.076722908 | G197: =Indexation!G$89 -> factor
E199: =E192 & " at 2020 FYE price base" -> Bioresources RCV (prior to midnight adjustments) 31 March 2020 at 2020 FYE price base | F199: =F192 * F196 -> 0 | G199: £m
E200: =E193 & " at 2020 FYE price base" -> Wastewater ~ Other adjustment to wholesale RCV at 2020 FYE price base | F200: =F193 * F196 -> 0 | G200: £m
E201: =E194 & " at 2020 FYE price base" -> Wastewater ~ NPV effect of 50% of proceeds from disposals of interest in land at 2020 FYE price base | F201: =F194 * F197 -> 0.2560490106 | G201: £m
C203: Values expressed in 2017-18 FYE CPIH deflated price base for table App8
E204: =E$186 -> Wholesale wastewater closing RCV at 31 March 2020 in 2012-13 prices (PR14 FD) at 2020 FYE price base | F204: =F$186 -> 0 | G204: £m
E205: =E$187 -> Wastewater ~ Total Adjustment RCV carry forward to PR19 at 2020 FYE price base | F205: 3.869404421 | G205: £m
E206: =E$188 -> Wastewater ~ CIS RCV inflation correction at 2020 FYE price base | F206: -74.00755988 | G206: £m
E207: =E$201 -> Wastewater ~ NPV effect of 50% of proceeds from disposals of interest in land at 2020 FYE price base | F207: 0.2560490106 | G207: £m
E208: =E$189 -> Net performance payment / (penalty) applied to RCV for end of period ODI adjustments ~ Wastewater network plus at 2020 FYE price base | F208: 0 | G208: £m
E209: =E$190 -> Wastewater: RCV adjustment from totex menu model at 2020 FYE price base | F209: -69.56734299 | G209: £m
E210: =E$200 -> Wastewater ~ Other adjustment to wholesale RCV at 2020 FYE price base | F210: 0 | G210: £m
E212: =Indexation!E$106 -> CPIH deflate from 2020 FYE to 2018 FYE | F212: =Indexation!F$106 -> 0.954395538 | G212: =Indexation!G$106 -> factor
E214: Wholesale wastewater closing RCV at 31 March 2020 before midnight adjustments at 2017-18 FYE CPIH deflated price base | F214: =F204 * F$212 -> 0 | G214: £m
E215: Wastewater ~ Total adjustment RCV carry forward to PR19 at 2017-18 FYE CPIH deflated price base | F215: 3.692942314 | G215: £m
E216: Wastewater ~ CIS RCV inflation correction at 2017-18 FYE CPIH deflated price base | F216: -70.63248493 | G216: £m
E217: Wastewater ~ NPV effect of 50% of proceeds from disposals of interest in land at 2017-18 FYE CPIH deflated price base | F217: 0.2443720332 | G217: £m
E218: Wastewater ~ ODI RCV adjustment allocated to Wastewater network plus at 2017-18 FYE CPIH deflated price base | F218: 0 | G218: £m
E219: Wastewater ~ Totex menu RCV adjustment at 2017-18 FYE CPIH deflated price base | F219: -66.39476174 | G219: £m
E220: Wastewater ~ Other adjustment to wholesale RCV at 2017-18 FYE CPIH deflated price base | F220: 0 | G220: £m
E221: Total wholesale wastewater RCV at 31 March 2020 post midnight adjustments before allocation to price control units at 2017-18 FYE CPIH deflated price base | F221: =SUM(F214:F220) -> -133.0899323 | G221: £m
C223: PR14 reconciliation adjustments expressed in 2017-18 FYA CPIH deflated price base
E224: =E$187 -> Wastewater ~ Total Adjustment RCV carry forward to PR19 at 2020 FYE price base | F224: 3.869404421 | G224: £m
E225: =E$188 -> Wastewater ~ CIS RCV inflation correction at 2020 FYE price base | F225: -74.00755988 | G225: £m
E226: =E$201 -> Wastewater ~ NPV effect of 50% of proceeds from disposals of interest in land at 2020 FYE price base | F226: 0.2560490106 | G226: £m
E227: =E$189 -> Net performance payment / (penalty) applied to RCV for end of period ODI adjustments ~ Wastewater network plus at 2020 FYE price base | F227: 0 | G227: £m
E228: =E$190 -> Wastewater: RCV adjustment from totex menu model at 2020 FYE price base | F228: -69.56734299 | G228: £m
E229: =E$200 -> Wastewater ~ Other adjustment to wholesale RCV at 2020 FYE price base | F229: 0 | G229: £m
E231: =Indexation!E$105 -> CPIH deflate from 2020 FYE to 2018 FYA | F231: =Indexation!F$105 -> 0.9463741356 | G231: =Indexation!G$105 -> factor
E233: Wastewater ~ Total Adjustment RCV carry forward to PR19 at 2017-18 FYA CPIH deflated price base | F233: =F224 * F$231 -> 3.661904265 | G233: £m
E234: Wastewater ~ CIS RCV inflation correction at 2017-18 FYA CPIH deflated price base | F234: -70.03884051 | G234: £m
E235: Wastewater ~ NPV effect of 50% of proceeds from disposals of interest in land at 2017-18 FYA CPIH deflated price base | F235: 0.2423181611 | G235: £m
E236: ODI end of period RCV adjustment ~ Wastewater network plus at 2017-18 FYA CPIH deflated price base | F236: 0 | G236: £m
E237: Wastewater: Totex menu RCV adjustment at 2017-18 FYA CPIH deflated price base | F237: -65.83673409 | G237: £m
E238: Wastewater ~ Other adjustment to wholesale RCV at 2017-18 FYA CPIH deflated price base | F238: 0 | G238: £m
E240: =E199 -> Bioresources RCV (prior to midnight adjustments) 31 March 2020 at 2020 FYE price base | F240: =F199 -> 0 | G240: £m
E242: =Indexation!E$105 -> CPIH deflate from 2020 FYE to 2018 FYA | F242: =Indexation!F$105 -> 0.9463741356 | G242: =Indexation!G$105 -> factor
E244: Bioresources RCV (prior to midnight adjustments) 31 March 2020 at 2017-18 FYA CPIH deflated price base | F244: =F240 * F$242 -> 0 | G244: £m
C246: IFRS16 RCV adjustments expressed in 2017-18 FYA CPIH deflated price base
E247: =Inputs!E$116 -> Bioresources IFRS16 RCV adjustment | F247: =Inputs!F$116 -> 0 | G247: =Inputs!G$116 -> £m
E248: =Inputs!E$117 -> Wastewater network plus IFRS16 RCV adjustment | F248: =Inputs!F$117 -> 0 | G248: =Inputs!G$117 -> £m
E250: =Indexation!E$107 -> CPIH deflate from 2018 FYE to 2018 FYA - IFRS 16 | F250: =Indexation!F$107 -> 0.9915953061 | G250: =Indexation!G$107 -> factor
E252: Bioresources IFRS16 RCV adjustment at 2017-18 FYA CPIH deflated price base | F252: =F247 * F$250 -> 0 | G252: £m
E253: Wastewater network plus IFRS16 RCV adjustment at 2017-18 FYA CPIH deflated price base | F253: =F248 * F$250 -> 0 | G253: £m
B255: Total wholesale wastewater RCV at 31 March 2020 post midnight adjustments before allocation to price control units at 2020 FYE price base
E256: =E$186 -> Wholesale wastewater closing RCV at 31 March 2020 in 2012-13 prices (PR14 FD) at 2020 FYE price base | F256: 0 | G256: £m
E257: =E$187 -> Wastewater ~ Total Adjustment RCV carry forward to PR19 at 2020 FYE price base | F257: 3.869404421 | G257: £m
E258: =E$188 -> Wastewater ~ CIS RCV inflation correction at 2020 FYE price base | F258: -74.00755988 | G258: £m
... 113 more rows

Sheet Summary_Output
A1: =RIGHT(CELL("filename", $A$1), LEN(CELL("filename", $A$1)) - SEARCH("]", CELL("filename", $A$1))) -> Summary_Output
E2: =Time!E$25 -> Model period ending | K2: =Time!K$25 -> 2014-03-31 | L2: =Time!L$25 -> 2015-03-31 | M2: =Time!M$25 -> 2016-03-31 | N2: =Time!N$25 -> 2017-03-31 | O2: =Time!O$25 -> 2018-03-31 | P2: =Time!P$25 -> 2019-03-31 | Q2: =Time!Q$25 -> 2020-03-31 | R2: =Time!R$25 -> 2021-03-31 | S2: =Time!S$25 -> 2022-03-31 | T2: =Time!T$25 -> 2023-03-31 | U2: =Time!U$25 -> 2024-03-31
E3: =Time!E$80 -> Timeline label | K3: =Time!K$80 -> Pre-Fcst | L3: =Time!L$80 -> Pre-Fcst | M3: =Time!M$80 -> Pre-Fcst | N3: =Time!N$80 -> Pre-Fcst | O3: =Time!O$80 -> Pre-Fcst | P3: =Time!P$80 -> Pre-Fcst | Q3: =Time!Q$80 -> Pre-Fcst | R3: =Time!R$80 -> Forecast | S3: =Time!S$80 -> Forecast | T3: =Time!T$80 -> Forecast | U3: =Time!U$80 -> Forecast
E4: =Time!E$103 -> Financial year ending | K4: =Time!K$103 -> 2014 | L4: =Time!L$103 -> 2015 | M4: =Time!M$103 -> 2016 | N4: =Time!N$103 -> 2017 | O4: =Time!O$103 -> 2018 | P4: =Time!P$103 -> 2019 | Q4: =Time!Q$103 -> 2020 | R4: =Time!R$103 -> 2021 | S4: =Time!S$103 -> 2022 | T4: =Time!T$103 -> 2023 | U4: =Time!U$103 -> 2024
E5: =Time!E$10 -> Model column counter | F5: Constant | G5: Unit | K5: =Time!K$10 -> 2 | L5: =Time!L$10 -> 3 | M5: =Time!M$10 -> 4 | N5: =Time!N$10 -> 5 | O5: =Time!O$10 -> 6 | P5: =Time!P$10 -> 7 | Q5: =Time!Q$10 -> 8 | R5: =Time!R$10 -> 9 | S5: =Time!S$10 -> 10 | T5: =Time!T$10 -> 11 | U5: =Time!U$10 -> 12
A7: WATER SERVICES
B9: Values expressed in 2017-18 FYE CPIH deflated price base for table App8
E10: =Calc!E$47 -> Wholesale water closing RCV at 31 March 2020 before midnight adjustments at 2017-18 FYE CPIH deflated price base | F10: =Calc!F$47 -> 0 | G10: =Calc!G$47 -> £m
E11: =Calc!E$48 -> Water ~ Total Adjustment RCV carry forward to PR19 at 2017-18 FYE CPIH deflated price base | F11: =Calc!F$48 -> 3.497625176 | G11: =Calc!G$48 -> £m
E12: =Calc!E$49 -> Water ~ CIS RCV inflation correction at 2017-18 FYE CPIH deflated price base | F12: =Calc!F$49 -> -46.19544938 | G12: =Calc!G$49 -> £m
E13: =Calc!E$50 -> Water ~ NPV effect of 50% of proceeds from disposals of interest in land at 2017-18 FYE CPIH deflated price base | F13: =Calc!F$50 -> -1.286356471 | G13: =Calc!G$50 -> £m
E14: =Calc!E$51 -> Water ~ ODI RCV adjustment allocated to Water resources at 2017-18 FYE CPIH deflated price base | F14: =Calc!F$51 -> 0 | G14: =Calc!G$51 -> £m
E15: =Calc!E$52 -> Water ~ ODI RCV adjustment allocated to Water network plus at 2017-18 FYE CPIH deflated price base | F15: =Calc!F$52 -> 0 | G15: =Calc!G$52 -> £m
E16: =Calc!E$53 -> Water ~ Totex menu RCV adjustment at 2017-18 FYE CPIH deflated price base | F16: =Calc!F$53 -> 37.8374977 | G16: =Calc!G$53 -> £m
E17: =Calc!E$54 -> Water ~ Other adjustment to wholesale RCV at 2017-18 FYE CPIH deflated price base | F17: =Calc!F$54 -> 0 | G17: =Calc!G$54 -> £m
E18: =Calc!E$55 -> Total wholesale water RCV at 31 March 2020 post midnight adjustments before allocation to price control units at 2017-18 FYE CPIH deflated price base | F18: =Calc!F$55 -> -6.146682976 | G18: =Calc!G$55 -> £m
B20: Values expressed in 2017-18 FYA CPIH deflated price base on table App8
E21: =Calc!E$82 -> Water resources IFRS16 RCV adjustment at 2017-18 FYA CPIH deflated price base | F21: =Calc!F$82 -> 0 | G21: =Calc!G$82 -> £m
E22: =Calc!E$129 -> Water resources 2020 RCV RPI inflated ~ 1 April (opening balance) at 2017-18 CPIH deflated price base | F22: =Calc!F$129 -> 0 | G22: =Calc!G$129 -> £m
E23: =Calc!E$133 -> Water resources 2020 RCV CPIH inflated ~ 1 April (opening balance) at 2017-18 CPIH deflated price base | F23: =Calc!F$133 -> 0 | G23: =Calc!G$133 -> £m
E25: =Calc!E$83 -> Water network plus IFRS16 RCV adjustment at 2017-18 FYA CPIH deflated price base | F25: =Calc!F$83 -> 0 | G25: =Calc!G$83 -> £m
E26: =Calc!E$168 -> Water network plus RCV RPI inflated ~ 1 April (opening balance) at 2017-18 CPIH deflated price base | F26: =Calc!F$168 -> 0 | G26: =Calc!G$168 -> £m
E27: =Calc!E$172 -> Water network plus RCV CPIH inflated ~ 1 April (opening balance) at 2017-18 CPIH deflated price base | F27: =Calc!F$172 -> -6.095021987 | G27: =Calc!G$172 -> £m
B30: PR14 reconciliation adjustments expressed in 2017-18 FYA CPIH deflated price base by table
C31: Table App9
E32: =Calc!E$70 -> Water ~ NPV effect of 50% of proceeds from disposals of interest in land at 2017-18 FYA CPIH deflated price base | F32: =Calc!F$70 -> -1.275545039 | G32: =Calc!G$70 -> £m
C33: Table App25
E34: =Calc!E$68 -> Water ~ Total adjustment RCV carry forward to PR19 at 2017-18 FYA CPIH deflated price base | F34: =Calc!F$68 -> 3.468228707 | G34: =Calc!G$68 -> £m
E35: =Calc!E$69 -> Water ~ CIS RCV inflation correction at 2017-18 FYA CPIH deflated price base | F35: =Calc!F$69 -> -45.80719076 | G35: =Calc!G$69 -> £m
C36: Table App27
E37: =Calc!E$71 -> ODI end of period RCV adjustment ~ Water resources at 2017-18 FYA CPIH deflated price base | F37: =Calc!F$71 -> 0 | G37: =Calc!G$71 -> £m
E38: =Calc!E$72 -> ODI end of period RCV adjustment ~ Water network plus at 2017-18 FYA CPIH deflated price base | F38: =Calc!F$72 -> 0 | G38: =Calc!G$72 -> £m
C39: Table WS15
E40: =Calc!E$73 -> Water: Totex menu RCV adjustment at 2017-18 FYA CPIH deflated price base | F40: =Calc!F$73 -> 37.51948511 | G40: =Calc!G$73 -> £m
C41: No table
E42: =Calc!E$74 -> Water ~ Other adjustment to wholesale RCV at 2017-18 FYA CPIH deflated price base | F42: =Calc!F$74 -> 0 | G42: =Calc!G$74 -> £m
A45: WASTEWATER SERVICES
B47: Values expressed in 2017-18 FYE CPIH deflated price base for table App8
E48: =Calc!E$214 -> Wholesale wastewater closing RCV at 31 March 2020 before midnight adjustments at 2017-18 FYE CPIH deflated price base | F48: =Calc!F$214 -> 0 | G48: =Calc!G$214 -> £m
E49: =Calc!E$215 -> Wastewater ~ Total adjustment RCV carry forward to PR19 at 2017-18 FYE CPIH deflated price base | F49: =Calc!F$215 -> 3.692942314 | G49: =Calc!G$215 -> £m
E50: =Calc!E$216 -> Wastewater ~ CIS RCV inflation correction at 2017-18 FYE CPIH deflated price base | F50: =Calc!F$216 -> -70.63248493 | G50: =Calc!G$216 -> £m
E51: =Calc!E$217 -> Wastewater ~ NPV effect of 50% of proceeds from disposals of interest in land at 2017-18 FYE CPIH deflated price base | F51: =Calc!F$217 -> 0.2443720332 | G51: =Calc!G$217 -> £m
E52: =Calc!E$218 -> Wastewater ~ ODI RCV adjustment allocated to Wastewater network plus at 2017-18 FYE CPIH deflated price base | F52: =Calc!F$218 -> 0 | G52: =Calc!G$218 -> £m
E53: =Calc!E$219 -> Wastewater ~ Totex menu RCV adjustment at 2017-18 FYE CPIH deflated price base | F53: =Calc!F$219 -> -66.39476174 | G53: =Calc!G$219 -> £m
E54: =Calc!E$220 -> Wastewater ~ Other adjustment to wholesale RCV at 2017-18 FYE CPIH deflated price base | F54: =Calc!F$220 -> 0 | G54: =Calc!G$220 -> £m
E55: =Calc!E$221 -> Total wholesale wastewater RCV at 31 March 2020 post midnight adjustments before allocation to price control units at 2017-18 FYE CPIH deflated price base | F55: =Calc!F$221 -> -133.0899323 | G55: =Calc!G$221 -> £m
B57: Values expressed in 2017-18 FYA CPIH deflated price base on table App8
E58: =Calc!E$244 -> Bioresources RCV (prior to midnight adjustments) 31 March 2020 at 2017-18 FYA CPIH deflated price base | F58: =Calc!F$244 -> 0 | G58: =Calc!G$244 -> £m
E59: =Calc!E$253 -> Wastewater network plus IFRS16 RCV adjustment at 2017-18 FYA CPIH deflated price base | F59: =Calc!F$253 -> 0 | G59: =Calc!G$253 -> £m
E60: =Calc!E$296 -> Wastewater network plus RCV RPI inflated ~ 1 April (opening balance) at 2017-18 CPIH deflated price base | F60: =Calc!F$296 -> 0 | G60: =Calc!G$296 -> £m
E61: =Calc!E$300 -> Wastewater network plus RCV CPIH inflated ~ 1 April (opening balance) at 2017-18 CPIH deflated price base | F61: =Calc!F$300 -> -131.9713522 | G61: =Calc!G$300 -> £m
E63: =Calc!E$252 -> Bioresources IFRS16 RCV adjustment at 2017-18 FYA CPIH deflated price base | F63: =Calc!F$252 -> 0 | G63: =Calc!G$252 -> £m
E64: =Calc!E$329 -> Bioresources 2020 RCV RPI inflated ~ 1 April (opening balance) at 2017-18 CPIH deflated price base | F64: =Calc!F$329 -> 0 | G64: =Calc!G$329 -> £m
E65: =Calc!E$333 -> Bioresources 2020 RCV CPIH inflated ~ 1 April (opening balance) at 2017-18 CPIH deflated price base | F65: =Calc!F$333 -> 0 | G65: =Calc!G$333 -> £m
B68: PR14 reconciliation adjustments expressed in 2017-18 FYA CPIH deflated price base by table
C69: Table App9
E70: =Calc!E$235 -> Wastewater ~ NPV effect of 50% of proceeds from disposals of interest in land at 2017-18 FYA CPIH deflated price base | F70: =Calc!F$235 -> 0.2423181611 | G70: =Calc!G$235 -> £m
C71: Table App25
E72: =Calc!E$233 -> Wastewater ~ Total Adjustment RCV carry forward to PR19 at 2017-18 FYA CPIH deflated price base | F72: =Calc!F$233 -> 3.661904265 | G72: =Calc!G$233 -> £m
E73: =Calc!E$234 -> Wastewater ~ CIS RCV inflation correction at 2017-18 FYA CPIH deflated price base | F73: =Calc!F$234 -> -70.03884051 | G73: =Calc!G$234 -> £m
C74: Table App27
E75: =Calc!E$236 -> ODI end of period RCV adjustment ~ Wastewater network plus at 2017-18 FYA CPIH deflated price base | F75: =Calc!F$236 -> 0 | G75: =Calc!G$236 -> £m
C76: Table WWS15
E77: =Calc!E$237 -> Wastewater: Totex menu RCV adjustment at 2017-18 FYA CPIH deflated price base | F77: =Calc!F$237 -> -65.83673409 | G77: =Calc!G$237 -> £m
C78: No table
E79: =Calc!E$238 -> Wastewater ~ Other adjustment to wholesale RCV at 2017-18 FYA CPIH deflated price base | F79: =Calc!F$238 -> 0 | G79: =Calc!G$238 -> £m
A82: DUMMY
B84: Values expressed in 2017-18 FYE CPIH deflated price base for table App8
E85: =Calc!E$360 -> Dummy RCV (prior to midnight adjustments) 31 March 2020 at 2017-18 FYE CPIH deflated price base | F85: =Calc!F$360 -> 0 | G85: =Calc!G$360 -> £m
E86: =Calc!E$361 -> ODI end of period RCV adjustment allocated to dummy at 2017-18 FYE CPIH deflated price base | F86: =Calc!F$361 -> 0 | G86: =Calc!G$361 -> £m
E87: =Calc!E$362 -> Dummy ~ Totex menu RCV adjustment at 2017-18 FYE CPIH deflated price base | F87: =Calc!F$362 -> 0 | G87: =Calc!G$362 -> £m
E88: =Calc!E$363 -> Total dummy RCV at 31 March 2020 post midnight adjustments at 2017-18 FYE CPIH deflated price base | F88: =Calc!F$363 -> 0 | G88: =Calc!G$363 -> £m
B90: Values expressed in 2017-18 FYA CPIH deflated price base on table App8
E91: =Calc!E$379 -> Dummy IFRS16 RCV adjustment at 2017-18 FYA CPIH deflated price base | F91: =Calc!F$379 -> 0 | G91: =Calc!G$379 -> £m
E92: =Calc!E$413 -> Dummy 2020 RCV RPI inflated ~ 1 April (opening balance) at 2017-18 CPIH deflated price base | F92: =Calc!F$413 -> 0 | G92: =Calc!G$413 -> £m
E93: =Calc!E$417 -> Dummy 2020 RCV CPIH inflated ~ 1 April (opening balance) at 2017-18 CPIH deflated price base | F93: =Calc!F$417 -> 0 | G93: =Calc!G$417 -> £m
B95: PR14 reconciliation adjustments expressed in 2017-18 FYA CPIH deflated price base by table
C96: Table App27
E97: =Calc!E$371 -> ODI end of period RCV adjustment ~ Thames Tideway at 2017-18 FYA CPIH deflated price base | F97: =Calc!F$371 -> 0 | G97: =Calc!G$371 -> £m
C98: Table Dmmy10
E99: =Calc!E$372 -> Dummy ~ Totex menu RCV adjustment at 2017-18 FYA CPIH deflated price base | F99: =Calc!F$372 -> 0 | G99: =Calc!G$372 -> £m

Sheet PR19 data tables>

Sheet App9
B1: App9 - Adjustments to RCV from disposals of interest in land | N1: =[16]AppValidation!$D$2 -> Yorkshire Water | P1: Data validation
B3: Line description | D3: Item reference | E3: Units | F3: DPs | G3: Price base | H3: 2014-15 | I3: 2015-16 | J3: 2016-17 | K3: 2017-18 | L3: 2018-19 | M3: 2019-20 | N3: 2014-20 | P3: Calculation, copy or download rule | Q3: Validation description | S3: Completion
V4: Completion checks
B5: A | C5: RCV midnight adjustment ~ land sales water | V5: Please complete all cells in row
B6: 1 | C6: Forecast at previous review | D6: A7001W | E6: £m | F6: 3 | G6: Outturn (nominal) | H6: 1.427631168 | P6: Input | S6: =IF( SUM( U6:AB6 ) = 0, 0, $V$5 ) -> 0 | V6: =IF( ISNUMBER(H6), 0, 1 ) -> 0
B7: 2 | C7: Actual and current forecast sales | D7: BT39301PW | E7: £000 | F7: 3 | G7: Outturn (nominal) | H7: 1243.596 | I7: 1740 | J7: 721 | K7: 135.63825 | L7: 137.5 | M7: 137.5 | P7: Input; RAG 4.07 2E | S7: =IF( SUM( U7:AB7 ) = 0, 0, $V$5 ) -> 0 | V7: =IF( ISNUMBER(H7), 0, 1 ) -> 0 | W7: =IF( ISNUMBER(I7), 0, 1 ) -> 0 | X7: =IF( ISNUMBER(J7), 0, 1 ) -> 0 | Y7: =IF( ISNUMBER(K7), 0, 1 ) -> 0 | Z7: =IF( ISNUMBER(L7), 0, 1 ) -> 0 | AA7: =IF( ISNUMBER(M7), 0, 1 ) -> 0
B8: 3 | C8: Impact of 50% of proceeds | D8: A7003W | E8: £m | F8: 3 | G8: Outturn (nominal) | H8: =(H7/1000 - H6) / 2 -> -0.09201758394 | I8: 0.87 | J8: 0.3605 | K8: 0.067819125 | L8: 0.06875 | M8: 0.06875 | P8: Calculated; (Line 2 minus line 1) divided by 2
B9: 4 | C9: WACC - fully post tax on notional structure | D9: A7004AW | E9: % | F9: 2 | G9: - | H9: =[16]F_Inputs!I16 -> 0.036 | I9: =[16]F_Inputs!J16 -> 0.036 | J9: =[16]F_Inputs!K16 -> 0.036 | K9: =[16]F_Inputs!L16 -> 0.036 | L9: =[16]F_Inputs!M16 -> 0.036 | M9: =[16]F_Inputs!N16 -> 0.036 | P9: Pre populated
B10: 5 | C10: RPI: Financial year average year on year % | D10: A7004BW | E10: % | F10: 2 | G10: - | H10: =AVERAGE([16]App23!$K$44:$O$44) -> 0.02644875159 | I10: =AVERAGE([16]App23!$K$44:$O$44) -> 0.02644875159 | J10: =AVERAGE([16]App23!$K$44:$O$44) -> 0.02644875159 | K10: =AVERAGE([16]App23!$K$44:$O$44) -> 0.02644875159 | L10: =AVERAGE([16]App23!$K$44:$O$44) -> 0.02644875159 | M10: =AVERAGE([16]App23!$K$44:$O$44) -> 0.02644875159 | P10: Average of App23 line 31 years 2015-20
B11: 6 | C11: Discount rate (nominal) | D11: A7004W | E11: % | F11: 2 | G11: - | H11: =H9 + H10 -> 0.06244875159 | I11: 0.06244875159 | J11: 0.06244875159 | K11: 0.06244875159 | L11: 0.06244875159 | M11: 0.06244875159 | P11: Calculated; sum of line 4 and line 5
B12: 7 | C12: Years for discounting purposes | D12: A7005YR | E12: nr | F12: 0 | G12: - | H12: =[16]F_Inputs!I17 -> -3 | I12: =[16]F_Inputs!J17 -> -2 | J12: =[16]F_Inputs!K17 -> -1 | K12: =[16]F_Inputs!L17 -> 0 | L12: =[16]F_Inputs!M17 -> 1 | M12: =[16]F_Inputs!N17 -> 2 | P12: Pre populate. Generic values (replicate code in PR14 RCV midnight adjustment model)
B13: 8 | C13: Discount factor | D13: A7005W | E13: ratio | F13: 2 | G13: - | H13: =(1 + H11) ^ (H12) -> 0.8338271431 | I13: 0.8858986072 | J13: 0.9412218693 | K13: 1 | L13: 1.062448752 | M13: 1.12879735 | P13: Calculated using discount factor formulae using rate in line 6.
B14: 9 | C14: PV effect of 50% of proceeds from disposals of interest in land | D14: A7006W | E14: £m | F14: 3 | G14: 2017-18 FYA (RPI) | H14: =H8 * H13 -> -0.07672675913 | I14: 0.7707317883 | J14: 0.3393104839 | K14: 0.067819125 | L14: 0.07304335167 | M14: 0.0776048178 | P14: Calculated; Line 3 multiplied by line 8.
B15: 10 | C15: NPV effect of 50% of proceeds from disposals of interest in land | D15: A7010W | E15: £m | F15: 3 | G15: 2017-18 FYA (RPI) | N15: =-1 * SUM(H14:M14) -> -1.251782808 | P15: Sum of line 9 columns H to M with signage reversed. This is an input to the RCV adjustment feeder model
B16: 11 | C16: Water ~ NPV effect of 50% of proceeds from disposals of interest in land at 2017-18 FYA CPIH deflated price base | D16: A7011W | E16: £m | F16: 3 | G16: 2017-18 FYA (CPIH deflated) | N16: =+ROUND(Summary_Output!F32,3) -> -1.276 | P16: This is an output from the RCV adjustments model. | S16: =IF( SUM( U16:AB16 ) = 0, 0, $V$5 ) -> 0 | AB16: =IF( ISNUMBER(N16), 0, 1 ) -> 0
B18: B | C18: RCV midnight adjustment ~ land sales wastewater
B19: 12 | C19: Forecast at previous review | D19: A7001WW | E19: £m | F19: 3 | G19: Outturn (nominal) | H19: 1.997368832 | P19: Input | S19: =IF( SUM( U19:AB19 ) = 0, 0, $V$5 ) -> 0 | V19: =IF('[16]Validation flags'!$H$3=1,0, IF( ISNUMBER(H19), 0, 1 )) -> 0
B20: 13 | C20: Actual and current forecast sales | D20: BT39301PS | E20: £000 | F20: 3 | G20: Outturn (nominal) | H20: 254.7124127 | I20: 400 | J20: 224 | K20: 110.97675 | L20: 137.5 | M20: 137.5 | P20: Input; RAG 4.07 2E | S20: =IF( SUM( U20:AB20 ) = 0, 0, $V$5 ) -> 0 | V20: =IF('[16]Validation flags'!$H$3=1,0, IF( ISNUMBER(H20), 0, 1 )) -> 0 | W20: =IF('[16]Validation flags'!$H$3=1,0, IF( ISNUMBER(I20), 0, 1 )) -> 0 | X20: =IF('[16]Validation flags'!$H$3=1,0, IF( ISNUMBER(J20), 0, 1 )) -> 0 | Y20: =IF('[16]Validation flags'!$H$3=1,0, IF( ISNUMBER(K20), 0, 1 )) -> 0 | Z20: =IF('[16]Validation flags'!$H$3=1,0, IF( ISNUMBER(L20), 0, 1 )) -> 0 | AA20: =IF('[16]Validation flags'!$H$3=1,0, IF( ISNUMBER(M20), 0, 1 )) -> 0
B21: 14 | C21: Impact of 50% of proceeds | D21: A7003WW | E21: £m | F21: 3 | G21: Outturn (nominal) | H21: =(H20/1000 - H19) / 2 -> -0.8713282097 | I21: 0.2 | J21: 0.112 | K21: 0.055488375 | L21: 0.06875 | M21: 0.06875 | P21: Calculated; (Line 12 minus line 11) divided by 2
B22: 15 | C22: WACC - fully post tax on notional structure | D22: A7004AWW | E22: % | F22: 2 | G22: - | H22: =[16]F_Inputs!I18 -> 0.036 | I22: =[16]F_Inputs!J18 -> 0.036 | J22: =[16]F_Inputs!K18 -> 0.036 | K22: =[16]F_Inputs!L18 -> 0.036 | L22: =[16]F_Inputs!M18 -> 0.036 | M22: =[16]F_Inputs!N18 -> 0.036 | P22: Pre populated | S22: =IF( SUM( U22:AB22 ) = 0, 0, $V$5 ) -> 0
B23: 16 | C23: RPI: Financial year average year on year % | D23: A7004BWW | E23: % | F23: 2 | G23: - | H23: =AVERAGE([16]App23!$K$44:$O$44) -> 0.02644875159 | I23: =AVERAGE([16]App23!$K$44:$O$44) -> 0.02644875159 | J23: =AVERAGE([16]App23!$K$44:$O$44) -> 0.02644875159 | K23: =AVERAGE([16]App23!$K$44:$O$44) -> 0.02644875159 | L23: =AVERAGE([16]App23!$K$44:$O$44) -> 0.02644875159 | M23: =AVERAGE([16]App23!$K$44:$O$44) -> 0.02644875159 | P23: Average of App23 line 31 years 2015-20
B24: 17 | C24: Discount rate (nominal) | D24: A7004WW | E24: % | F24: 2 | G24: - | H24: =H22 + H23 -> 0.06244875159 | I24: 0.06244875159 | J24: 0.06244875159 | K24: 0.06244875159 | L24: 0.06244875159 | M24: 0.06244875159 | P24: Calculated; sum of line 14 and line 15
B25: 18 | C25: Years for discounting purposes | D25: A7005YR | E25: nr | F25: 0 | G25: - | H25: =[16]F_Inputs!I17 -> -3 | I25: =[16]F_Inputs!J17 -> -2 | J25: =[16]F_Inputs!K17 -> -1 | K25: =[16]F_Inputs!L17 -> 0 | L25: =[16]F_Inputs!M17 -> 1 | M25: =[16]F_Inputs!N17 -> 2 | P25: Pre populate. Generic values (replicate code in PR14 RCV midnight adjustment model)
B26: 19 | C26: Discount factor | D26: A7005WW | E26: ratio | F26: 2 | G26: - | H26: =(1 + H24) ^ (H25) -> 0.8338271431 | I26: 0.8858986072 | J26: 0.9412218693 | K26: 1 | L26: 1.062448752 | M26: 1.12879735 | P26: Calculated using discount factor formulae using rate in line 16.
B27: 20 | C27: PV effect of 50% of proceeds from disposals of interest in land | D27: A7006WW | E27: £m | F27: 3 | G27: 2017-18 FYA (RPI) | H27: =H21 * H26 -> -0.7265371118 | I27: 0.1771797214 | J27: 0.1054168494 | K27: 0.055488375 | L27: 0.07304335167 | M27: 0.0776048178 | P27: Calculated; Line 13 multiplied by line 18.
B28: 21 | C28: NPV effect of 50% of proceeds from disposals of interest in land | D28: A7010WW | E28: £m | F28: 3 | G28: 2017-18 FYA (RPI) | N28: =-1 * SUM(H27:M27) -> 0.2378039965 | P28: Sum of line 20 columns H to M with signage reversed. This is an input to the RCV adjustment feeder model.
B29: 22 | C29: Wastewater ~ NPV effect of 50% of proceeds from disposals of interest in land at 2017-18 FYA CPIH deflated price base | D29: A7011WW | E29: £m | F29: 3 | G29: 2017-18 FYA (CPIH deflated) | N29: =+Summary_Output!F70 -> 0.2423181611 | P29: This is an output from the RCV adjustments model. | S29: =IF( SUM( U29:AB29 ) = 0, 0, $V$5 ) -> 0 | AB29: =IF('[16]Validation flags'!$H$3=1,0, IF( ISNUMBER(N29), 0, 1 )) -> 0
B31: KEY
C32: Input
C33: Copy
C34: Calculation
C35: Pre populated
B37: App9 guidance and line definitions
B39: This table collates information actual and forecast land sale proceeds and applicable discount rate to calculate the RCV midnight adjustment arising from land disposals occuring in the years from 2014-15 to 2019-20.
B41: Line | C41: Definition
B42: Block A | C42: =$C$5 -> RCV midnight adjustment ~ land sales water
B43: 1 | C43: The water share of the forecast used for 2014-15 in the PR14 final determination RCV midnight adjustment model.
B44: 2 | C44: Proceeds from land sales (net of associated offsetting costs). For 2014-15 to 2017-18 input actual data reported in RAG 4 table 2E. Forecasts are required for 2018-20.
B45: 3 | C45: Calculated. Half of the proceeds from land sales.
B46: 4 | C46: Real fully post tax WACC that applied at PR14.
B47: 5 | C47: Calculated. Average of the year on year % change in the financial year average RPI for the 2015-20 period.
B48: 6 | C48: Calculated. The discount rate is the sum of the WACC and the RPI forecast.
B49: 7 | C49: Generic values.
B50: 8 | C50: Calculated. The discount factor based on the discount rate and is centred on the base year.
B51: 9 | C51: Calculated. Present value of half of the cash flow arising from the land sales using the service specific discount factor.
B52: 10 | C52: Calculated. The net present value adjustment for the RCV. This is the sum of the present values with signage reversed.
B53: 11 | C53: This is an output from the RCV adjustments model.
B54: Block B | C54: =$C$18 -> RCV midnight adjustment ~ land sales wastewater
B55: 12 | C55: The wastewater share of the forecast used for 2014-15 in the PR14 final determination RCV midnight adjustment model.
B56: 13 | C56: Proceeds from land sales (net of associated offsetting costs). For 2014-15 to 2017-18 input actual data reported in RAG 4 table 2E. Forecasts are required for 2018-20.
B57: 14 | C57: Calculated. Half of the proceeds from land sales.
B58: 15 | C58: Real fully post tax WACC that applied at PR14.
B59: 16 | C59: Calculated. Average of the year on year % change in the financial year average RPI for the 2015-20 period.
B60: 17 | C60: Calculated. The discount rate is the sum of the WACC and the RPI forecast.
B61: 18 | C61: Generic values.
B62: 19 | C62: Calculated. The discount factor based on the discount rate and is centred on the base year.
B63: 20 | C63: Calculated. Present value of half of the cash flow arising from the land sales using the service specific discount factor.
B64: 21 | C64: Calculated. The net present value adjustment for the RCV. This is the sum of the present values with signage reversed.
B65: 22 | C65: This is an output from the RCV adjustments model.

Sheet App23
B1: App23 - Inflation measures | Y1: =[14]AppValidation!$D$2 -> Yorkshire Water | AA1: Data validation
B3: Line description | D3: Item reference | E3: Units | F3: DPs | G3: 2011-12 | H3: 2012-13 | I3: 2013-14 | J3: 2014-15 | K3: 2015-16 | L3: 2016-17 | M3: 2017-18 | N3: 2018-19 | O3: 2019-20 | P3: 2020-21 | Q3: 2021-22 | R3: 2022-23 | S3: 2023-24 | T3: 2024-25 | U3: 2025-26 | V3: 2026-27 | W3: 2027-28 | X3: 2028-29 | Y3: 2029-30 | AA3: Calculation, copy or download rule | AB3: Validation description | AD3: Completion | AE3: Validation
AH4: Completion checks | AW4: Validation flags
B5: A | C5: Retail price index | AH5: Please complete all cells in row | AW5: Values required for all months in all years
B6: 1 | C6: RPI: Months of actual data for Financial Year | D6: PB00000 | E6: nr | F6: 0 | G6: =[14]F_Inputs!I22 -> 12 | H6: =[14]F_Inputs!N22 -> 12 | I6: =[14]F_Inputs!S22 -> 12 | J6: =[14]F_Inputs!X22 -> 12 | K6: =[14]F_Inputs!AC22 -> 12 | L6: =[14]F_Inputs!AH22 -> 12 | M6: =COUNT(M7:M18) -> 12 | N6: 12 | O6: 12 | P6: 12 | Q6: 12 | R6: 12 | S6: 12 | T6: 12 | U6: 12 | V6: 12 | W6: 12 | X6: 12 | Y6: 12 | AA6: Counts the number of entries in lines 2 to 13. | AB6: Must equal 12. | AE6: =IF( SUM( AX6:BJ6 ) = 0, 0,$AW$5 ) -> 0 | AX6: =IF( M6 = 12, 0, 1 ) -> 0 | AY6: =IF( N6 = 12, 0, 1 ) -> 0 | AZ6: 0 | BA6: 0 | BB6: 0 | BC6: 0 | BD6: 0 | BE6: 0 | BF6: 0 | BG6: 0 | BH6: 0 | BI6: 0 | BJ6: =IF( Y6 = 12, 0, 1 ) -> 0
B7: 2 | C7: Retail Price Index for April | D7: BB3805AL | E7: nr | F7: 1 | G7: 234.4 | H7: 242.5 | I7: 249.5 | J7: 255.7 | K7: 258 | L7: 261.4 | M7: 270.6 | N7: 279.8 | O7: 288.4 | P7: 297.052 | Q7: 305.96356 | R7: 315.1424668 | S7: 324.5967408 | T7: 334.334643 | U7: 344.3646823 | V7: 354.6956228 | W7: 365.3364915 | X7: 376.2965862 | Y7: 387.5854838 | AD7: =IF( SUM( AH7:AS7 ) = 0, 0,$AH$5 ) -> 0 | AH7: =IF( ISNUMBER(N7), 0, 1 ) -> 0 | AI7: 0 | AJ7: 0 | AK7: 0 | AL7: 0 | AM7: 0 | AN7: 0 | AO7: 0 | AP7: 0 | AQ7: 0 | AR7: 0 | AS7: 0
B8: 3 | C8: Retail Price Index for May | D8: BB3805MY | E8: nr | F8: 1 | G8: 235.2 | H8: 242.4 | I8: 250 | J8: 255.9 | K8: 258.5 | L8: 262.1 | M8: 271.7 | N8: 280.8 | O8: 289.3 | P8: 297.979 | Q8: 306.91837 | R8: 316.1259211 | S8: 325.6096987 | T8: 335.3779897 | U8: 345.4393294 | V8: 355.8025093 | W8: 366.4765845 | X8: 377.4708821 | Y8: 388.7950085 | AD8: =IF( SUM( AH8:AS8 ) = 0, 0,$AH$5 ) -> 0 | AH8: 0 | AI8: 0 | AJ8: 0 | AK8: 0 | AL8: 0 | AM8: 0 | AN8: 0 | AO8: 0 | AP8: 0 | AQ8: 0 | AR8: 0 | AS8: 0
B9: 4 | C9: Retail Price Index for June | D9: BB3805JN | E9: nr | F9: 1 | G9: 235.2 | H9: 241.8 | I9: 249.7 | J9: 256.3 | K9: 258.9 | L9: 263.1 | M9: 272.3 | N9: 281.8 | O9: 290.2 | P9: 298.906 | Q9: 307.87318 | R9: 317.1093754 | S9: 326.6226567 | T9: 336.4213364 | U9: 346.5139765 | V9: 356.9093957 | W9: 367.6166776 | X9: 378.6451779 | Y9: 390.0045333 | AD9: 0 | AH9: 0 | AI9: 0 | AJ9: 0 | AK9: 0 | AL9: 0 | AM9: 0 | AN9: 0 | AO9: 0 | AP9: 0 | AQ9: 0 | AR9: 0 | AS9: 0
B10: 5 | C10: Retail Price Index for July | D10: BB3805JL | E10: nr | F10: 1 | G10: 234.7 | H10: 242.1 | I10: 249.7 | J10: 256 | K10: 258.6 | L10: 263.4 | M10: 272.9 | N10: 282.2 | O10: 290.7 | P10: 299.421 | Q10: 308.40363 | R10: 317.6557389 | S10: 327.1854111 | T10: 337.0009734 | U10: 347.1110026 | V10: 357.5243327 | W10: 368.2500627 | X10: 379.2975645 | Y10: 390.6764915 | AD10: 0 | AH10: 0 | AI10: 0 | AJ10: 0 | AK10: 0 | AL10: 0 | AM10: 0 | AN10: 0 | AO10: 0 | AP10: 0 | AQ10: 0 | AR10: 0 | AS10: 0
B11: 6 | C11: Retail Price Index for August | D11: BB3805AT | E11: nr | F11: 1 | G11: 236.1 | H11: 243 | I11: 251 | J11: 257 | K11: 259.8 | L11: 264.4 | M11: 274.7 | N11: 283.8 | O11: 292.2 | P11: 300.966 | Q11: 309.99498 | R11: 319.2948294 | S11: 328.8736743 | T11: 338.7398845 | U11: 348.902081 | V11: 359.3691435 | W11: 370.1502178 | X11: 381.2547243 | Y11: 392.692366 | AD11: 0 | AH11: 0 | AI11: 0 | AJ11: 0 | AK11: 0 | AL11: 0 | AM11: 0 | AN11: 0 | AO11: 0 | AP11: 0 | AQ11: 0 | AR11: 0 | AS11: 0
B12: 7 | C12: Retail Price Index for September | D12: BB3805SR | E12: nr | F12: 1 | G12: 237.9 | H12: 244.2 | I12: 251.9 | J12: 257.6 | K12: 259.6 | L12: 264.9 | M12: 275.1 | N12: 284 | O12: 292.5 | P12: 301.275 | Q12: 310.31325 | R12: 319.6226475 | S12: 329.2113269 | T12: 339.0876667 | U12: 349.2602967 | V12: 359.7381056 | W12: 370.5302488 | X12: 381.6461563 | Y12: 393.095541 | AD12: 0 | AH12: 0 | AI12: 0 | AJ12: 0 | AK12: 0 | AL12: 0 | AM12: 0 | AN12: 0 | AO12: 0 | AP12: 0 | AQ12: 0 | AR12: 0 | AS12: 0
B13: 8 | C13: Retail Price Index for October | D13: BB3805OR | E13: nr | F13: 1 | G13: 238 | H13: 245.6 | I13: 251.9 | J13: 257.7 | K13: 259.5 | L13: 264.8 | M13: 275.3 | N13: 284.1 | O13: 292.7 | P13: 301.481 | Q13: 310.52543 | R13: 319.8411929 | S13: 329.4364287 | T13: 339.3195215 | U13: 349.4991072 | V13: 359.9840804 | W13: 370.7836028 | X13: 381.9071109 | Y13: 393.3643242 | AD13: 0 | AH13: 0 | AI13: 0 | AJ13: 0 | AK13: 0 | AL13: 0 | AM13: 0 | AN13: 0 | AO13: 0 | AP13: 0 | AQ13: 0 | AR13: 0 | AS13: 0
B14: 9 | C14: Retail Price Index for November | D14: BB3805NR | E14: nr | F14: 1 | G14: 238.5 | H14: 245.6 | I14: 252.1 | J14: 257.1 | K14: 259.8 | L14: 265.5 | M14: 275.8 | N14: 284.4 | O14: 293 | P14: 301.79 | Q14: 310.8437 | R14: 320.169011 | S14: 329.7740813 | T14: 339.6673038 | U14: 349.8573229 | V14: 360.3530426 | W14: 371.1636338 | X14: 382.2985429 | Y14: 393.7674991 | AD14: 0 | AH14: 0 | AI14: 0 | AJ14: 0 | AK14: 0 | AL14: 0 | AM14: 0 | AN14: 0 | AO14: 0 | AP14: 0 | AQ14: 0 | AR14: 0 | AS14: 0
B15: 10 | C15: Retail Price Index for December | D15: BB3805DR | E15: nr | F15: 1 | G15: 239.4 | H15: 246.8 | I15: 253.4 | J15: 257.5 | K15: 260.6 | L15: 267.1 | M15: 278.1 | N15: 286.5 | O15: 295.1 | P15: 303.953 | Q15: 313.07159 | R15: 322.4637377 | S15: 332.1376498 | T15: 342.1017793 | U15: 352.3648327 | V15: 362.9357777 | W15: 373.823851 | X15: 385.0385665 | Y15: 396.5897235 | AD15: 0 | AH15: 0 | AI15: 0 | AJ15: 0 | AK15: 0 | AL15: 0 | AM15: 0 | AN15: 0 | AO15: 0 | AP15: 0 | AQ15: 0 | AR15: 0 | AS15: 0
B16: 11 | C16: Retail Price Index for January | D16: BB3805JY | E16: nr | F16: 1 | G16: 238 | H16: 245.8 | I16: 252.6 | J16: 255.4 | K16: 258.8 | L16: 265.5 | M16: 276 | N16: 284.4 | O16: 293.2164 | P16: 302.012892 | Q16: 311.0732788 | R16: 320.4054771 | S16: 330.0176414 | T16: 339.9181707 | U16: 350.1157158 | V16: 360.6191873 | W16: 371.4377629 | X16: 382.5808958 | Y16: 394.0583227 | AD16: 0 | AH16: 0 | AI16: 0 | AJ16: 0 | AK16: 0 | AL16: 0 | AM16: 0 | AN16: 0 | AO16: 0 | AP16: 0 | AQ16: 0 | AR16: 0 | AS16: 0
B17: 12 | C17: Retail Price Index for February | D17: BB3805FY | E17: nr | F17: 1 | G17: 239.9 | H17: 247.6 | I17: 254.2 | J17: 256.7 | K17: 260 | L17: 268.4 | M17: 278.1 | N17: 286.5 | O17: 295.3815 | P17: 304.242945 | Q17: 313.3702333 | R17: 322.7713404 | S17: 332.4544806 | T17: 342.428115 | U17: 352.7009584 | V17: 363.2819872 | W17: 374.1804468 | X17: 385.4058602 | Y17: 396.968036 | AD17: 0 | AH17: 0 | AI17: 0 | AJ17: 0 | AK17: 0 | AL17: 0 | AM17: 0 | AN17: 0 | AO17: 0 | AP17: 0 | AQ17: 0 | AR17: 0 | AS17: 0
B18: 13 | C18: Retail Price Index for March | D18: BB3805MH | E18: nr | F18: 1 | G18: 240.8 | H18: 248.7 | I18: 254.8 | J18: 257.1 | K18: 261.1 | L18: 269.3 | M18: 278.3 | N18: 287.1 | O18: 296.0001 | P18: 304.880103 | Q18: 314.0265061 | R18: 323.4473013 | S18: 333.1507203 | T18: 343.1452419 | U18: 353.4395992 | V18: 364.0427872 | W18: 374.9640708 | X18: 386.2129929 | Y18: 397.7993827 | AD18: 0 | AH18: 0 | AI18: 0 | AJ18: 0 | AK18: 0 | AL18: 0 | AM18: 0 | AN18: 0 | AO18: 0 | AP18: 0 | AQ18: 0 | AR18: 0 | AS18: 0
B20: B | C20: Consumer price index (including housing costs)
B21: 14 | C21: CPIH: Months of actual data for Financial Year | D21: PB00003 | E21: nr | F21: 0 | G21: =[14]F_Inputs!I35 -> 12 | H21: =[14]F_Inputs!N35 -> 12 | I21: =[14]F_Inputs!S35 -> 12 | J21: =[14]F_Inputs!X35 -> 12 | K21: =[14]F_Inputs!AC35 -> 12 | L21: =[14]F_Inputs!AH35 -> 12 | M21: =COUNT(M22:M33) -> 12 | N21: 12 | O21: 12 | P21: 12 | Q21: 12 | R21: 12 | S21: 12 | T21: 12 | U21: 12 | V21: 12 | W21: 12 | X21: 12 | Y21: =COUNT(Y22:Y33) -> 12 | AA21: Counts the number of entries in lines 15 to 26. | AB21: Must equal 12. | AE21: =IF( SUM( AX21:BJ21 ) = 0, 0,$AW$5 ) -> 0 | AX21: =IF( M21 = 12, 0, 1 ) -> 0 | AY21: 0 | AZ21: 0 | BA21: 0 | BB21: 0 | BC21: 0 | BD21: 0 | BE21: 0 | BF21: 0 | BG21: 0 | BH21: 0 | BI21: 0 | BJ21: 0
B22: 15 | C22: Consumer Price Index (with housing) for April | D22: BB3905AL | E22: nr | F22: 1 | G22: 93.3 | H22: 95.9 | I22: 98 | J22: 99.6 | K22: 99.9 | L22: 100.6 | M22: 103.2 | N22: 105.85224 | O22: 108.3185972 | P22: 110.4849691 | Q22: 112.6946685 | R22: 114.9485619 | S22: 117.2475331 | T22: 119.5924838 | U22: 121.9843335 | V22: 124.4240201 | W22: 126.9125005 | X22: 129.4507505 | Y22: 132.0397656 | AD22: =IF( SUM( AH22:AS22 ) = 0, 0,$AH$5 ) -> 0 | AH22: =IF( ISNUMBER(N22), 0, 1 ) -> 0 | AI22: =IF( ISNUMBER(O22), 0, 1 ) -> 0 | AJ22: =IF( ISNUMBER(P22), 0, 1 ) -> 0 | AK22: 0 | AL22: 0 | AM22: 0 | AN22: 0 | AO22: 0 | AP22: 0 | AQ22: 0 | AR22: 0 | AS22: 0
B23: 16 | C23: Consumer Price Index (with housing) for May | D23: BB3905MY | E23: nr | F23: 1 | G23: 93.5 | H23: 95.9 | I23: 98.2 | J23: 99.6 | K23: 100.1 | L23: 100.8 | M23: 103.5 | N23: 106.11855 | O23: 108.5274411 | P23: 110.6979899 | Q23: 112.9119497 | R23: 115.1701887 | S23: 117.4735925 | T23: 119.8230643 | U23: 122.2195256 | V23: 124.6639161 | W23: 127.1571944 | X23: 129.7003383 | Y23: 132.2943451 | AD23: 0 | AH23: =IF( ISNUMBER(N23), 0, 1 ) -> 0 | AI23: 0 | AJ23: 0 | AK23: 0 | AL23: 0 | AM23: 0 | AN23: 0 | AO23: 0 | AP23: 0 | AQ23: 0 | AR23: 0 | AS23: 0
B24: 17 | C24: Consumer Price Index (with housing) for June | D24: BB3905JN | E24: nr | F24: 1 | G24: 93.5 | H24: 95.6 | I24: 98 | J24: 99.8 | K24: 100.1 | L24: 101 | M24: 103.5 | N24: 106.191 | O24: 108.6015357 | P24: 110.7735664 | Q24: 112.9890377 | R24: 115.2488185 | S24: 117.5537949 | T24: 119.9048708 | U24: 122.3029682 | V24: 124.7490275 | W24: 127.2440081 | X24: 129.7888883 | Y24: 132.384666 | AD24: 0 | AH24: 0 | AI24: 0 | AJ24: 0 | AK24: 0 | AL24: 0 | AM24: 0 | AN24: 0 | AO24: 0 | AP24: 0 | AQ24: 0 | AR24: 0 | AS24: 0
B25: 18 | C25: Consumer Price Index (with housing) for July | D25: BB3905JL | E25: nr | F25: 1 | G25: 93.5 | H25: 95.7 | I25: 98 | J25: 99.6 | K25: 100 | L25: 100.9 | M25: 103.5 | N25: 106.11855 | O25: 108.5062174 | P25: 110.6763417 | Q25: 112.8898686 | R25: 115.1476659 | S25: 117.4506192 | T25: 119.7996316 | U25: 122.1956243 | V25: 124.6395367 | W25: 127.1323275 | X25: 129.674974 | Y25: 132.2684735 | AD25: 0 | AH25: 0 | AI25: 0 | AJ25: 0 | AK25: 0 | AL25: 0 | AM25: 0 | AN25: 0 | AO25: 0 | AP25: 0 | AQ25: 0 | AR25: 0 | AS25: 0
B26: 19 | C26: Consumer Price Index (with housing) for August | D26: BB3905AT | E26: nr | F26: 1 | G26: 93.9 | H26: 96.1 | I26: 98.4 | J26: 99.9 | K26: 100.3 | L26: 101.2 | M26: 104 | N26: 106.6 | O26: 108.9985 | P26: 111.17847 | Q26: 113.4020394 | R26: 115.6700802 | S26: 117.9834818 | T26: 120.3431514 | U26: 122.7500145 | V26: 125.2050147 | W26: 127.709115 | X26: 130.2632973 | Y26: 132.8685633 | AD26: 0 | AH26: 0 | AI26: 0 | AJ26: 0 | AK26: 0 | AL26: 0 | AM26: 0 | AN26: 0 | AO26: 0 | AP26: 0 | AQ26: 0 | AR26: 0 | AS26: 0
B27: 20 | C27: Consumer Price Index (with housing) for September | D27: BB3905SR | E27: nr | F27: 1 | G27: 94.5 | H27: 96.4 | I27: 98.7 | J27: 100 | K27: 100.2 | L27: 101.5 | M27: 104.3 | N27: 106.83449 | O27: 109.238266 | P27: 111.4230313 | Q27: 113.651492 | R27: 115.9245218 | S27: 118.2430122 | T27: 120.6078725 | U27: 123.0200299 | V27: 125.4804305 | W27: 127.9900392 | X27: 130.5498399 | Y27: 133.1608367 | AD27: 0 | AH27: 0 | AI27: 0 | AJ27: 0 | AK27: 0 | AL27: 0 | AM27: 0 | AN27: 0 | AO27: 0 | AP27: 0 | AQ27: 0 | AR27: 0 | AS27: 0
B28: 21 | C28: Consumer Price Index (with housing) for October | D28: BB3905OR | E28: nr | F28: 1 | G28: 94.5 | H28: 96.8 | I28: 98.8 | J28: 100.1 | K28: 100.3 | L28: 101.6 | M28: 104.4 | N28: 106.97868 | O28: 109.332211 | P28: 111.5188552 | Q28: 113.7492323 | R28: 116.0242169 | S28: 118.3447013 | T28: 120.7115953 | U28: 123.1258272 | V28: 125.5883437 | W28: 128.1001106 | X28: 130.6621128 | Y28: 133.2753551 | AD28: 0 | AH28: 0 | AI28: 0 | AJ28: 0 | AK28: 0 | AL28: 0 | AM28: 0 | AN28: 0 | AO28: 0 | AP28: 0 | AQ28: 0 | AR28: 0 | AS28: 0
B29: 22 | C29: Consumer Price Index (with housing) for November | D29: BB3905NR | E29: nr | F29: 1 | G29: 94.7 | H29: 97 | I29: 98.8 | J29: 99.9 | K29: 100.3 | L29: 101.8 | M29: 104.7 | N29: 107.13951 | O29: 109.4965792 | P29: 111.6865108 | Q29: 113.920241 | R29: 116.1986458 | S29: 118.5226188 | T29: 120.8930711 | U29: 123.3109326 | V29: 125.7771512 | W29: 128.2926942 | X29: 130.8585481 | Y29: 133.4757191 | AD29: 0 | AH29: 0 | AI29: 0 | AJ29: 0 | AK29: 0 | AL29: 0 | AM29: 0 | AN29: 0 | AO29: 0 | AP29: 0 | AQ29: 0 | AR29: 0 | AS29: 0
B30: 23 | C30: Consumer Price Index (with housing) for December | D30: BB3905DR | E30: nr | F30: 1 | G30: 95 | H30: 97.3 | I30: 99.2 | J30: 99.9 | K30: 100.4 | L30: 102.2 | M30: 105 | N30: 107.4885 | O30: 109.7995028 | P30: 111.9954928 | Q30: 114.2354027 | R30: 116.5201107 | S30: 118.8505129 | T30: 121.2275232 | U30: 123.6520737 | V30: 126.1251151 | W30: 128.6476174 | X30: 131.2205698 | Y30: 133.8449812 | AD30: 0 | AH30: 0 | AI30: 0 | AJ30: 0 | AK30: 0 | AL30: 0 | AM30: 0 | AN30: 0 | AO30: 0 | AP30: 0 | AQ30: 0 | AR30: 0 | AS30: 0
B31: 24 | C31: Consumer Price Index (with housing) for January | D31: BB3905JY | E31: nr | F31: 1 | G31: 94.7 | H31: 97 | I31: 98.7 | J31: 99.2 | K31: 99.9 | L31: 101.8 | M31: 104.5 | N31: 107.0576656 | O31: 109.3058766 | P31: 111.4919941 | Q31: 113.721834 | R31: 115.9962707 | S31: 118.3161961 | T31: 120.68252 | U31: 123.0961704 | V31: 125.5580938 | W31: 128.0692557 | X31: 130.6306408 | Y31: 133.2432536 | AD31: 0 | AH31: 0 | AI31: 0 | AJ31: 0 | AK31: 0 | AL31: 0 | AM31: 0 | AN31: 0 | AO31: 0 | AP31: 0 | AQ31: 0 | AR31: 0 | AS31: 0
B32: 25 | C32: Consumer Price Index (with housing) for February | D32: BB3905FY | E32: nr | F32: 1 | G32: 95.2 | H32: 97.5 | I32: 99.1 | J32: 99.5 | K32: 100.1 | L32: 102.4 | M32: 104.9 | N32: 107.5524403 | O32: 109.8110416 | P32: 112.0072624 | Q32: 114.2474076 | R32: 116.5323558 | S32: 118.8630029 | T32: 121.240263 | U32: 123.6650682 | V32: 126.1383696 | W32: 128.661137 | X32: 131.2343597 | Y32: 133.8590469 | AD32: 0 | AH32: 0 | AI32: 0 | AJ32: 0 | AK32: 0 | AL32: 0 | AM32: 0 | AN32: 0 | AO32: 0 | AP32: 0 | AQ32: 0 | AR32: 0 | AS32: 0
B33: 26 | C33: Consumer Price Index (with housing) for March | D33: BB3905MH | E33: nr | F33: 1 | G33: 95.4 | H33: 97.8 | I33: 99.3 | J33: 99.6 | K33: 100.4 | L33: 102.7 | M33: 105.1 | N33: 107.8570589 | O33: 110.1220572 | P33: 112.3244983 | Q33: 114.5709883 | R33: 116.862408 | S33: 119.1996562 | T33: 121.5836493 | U33: 124.0153223 | V33: 126.4956288 | W33: 129.0255413 | X33: 131.6060522 | Y33: 134.2381732 | AD33: 0 | AH33: 0 | AI33: 0 | AJ33: 0 | AK33: 0 | AL33: 0 | AM33: 0 | AN33: 0 | AO33: 0 | AP33: 0 | AQ33: 0 | AR33: 0 | AS33: 0
B35: C | C35: Indexation rate for index linked debt percentage increase
B36: 27 | C36: Indexation rate for index linked debt percentage increase | D36: A9001 | E36: % | F36: 2 | N36: =+N14/M14-1 -> 0.03118201595 | O36: =+O14/N14-1 -> 0.03023909986 | P36: 0.03 | Q36: 0.03 | R36: 0.03 | S36: 0.03 | T36: 0.03 | U36: 0.03 | V36: 0.03 | W36: 0.03 | X36: 0.03 | Y36: 0.03 | AD36: =IF( SUM( AH36:AS36 ) = 0, 0,$AH$5 ) -> 0 | AH36: =IF( ISNUMBER(N36), 0, 1 ) -> 0 | AI36: 0 | AJ36: 0 | AK36: 0 | AL36: 0 | AM36: 0 | AN36: 0 | AO36: 0 | AP36: 0 | AQ36: 0 | AR36: 0 | AS36: 0
B38: D | C38: Financial year average indices | AW38: =SUM(AX6:BJ6,AX21:BJ21) -> 0
B39: 28 | C39: RPI: Financial year average indices | D39: PB00113BP | E39: nr | F39: 1 | G39: =IFERROR(AVERAGE(G7:G18),0) -> 237.3416667 | H39: 244.675 | I39: 251.7333333 | J39: 256.6666667 | K39: 259.4333333 | L39: 264.9916667 | M39: 274.9083333 | N39: 283.7833333 | O39: 292.3915 | P39: 301.163245 | Q39: 310.1981424 | R39: 319.5040866 | S39: 329.0892092 | T39: 338.9618855 | U39: 349.1307421 | V39: 359.6046643 | W39: 370.3928043 | X39: 381.5045884 | Y39: 392.949726 | AA39: Average of lines 2 to 13.
B40: 29 | C40: CPIH: Financial year average indices | D40: PB00200 | E40: nr | F40: 1 | G40: =IFERROR(AVERAGE(G22:G33),0) -> 94.30833333 | H40: 96.58333333 | I40: 98.6 | J40: 99.725 | K40: 100.1666667 | L40: 101.5416667 | M40: 104.2166667 | N40: 106.8157237 | O40: 109.1714855 | P40: 111.3549152 | Q40: 113.5820135 | R40: 115.8536538 | S40: 118.1707268 | T40: 120.5341414 | U40: 122.9448242 | V40: 125.4037207 | W40: 127.9117951 | X40: 130.470031 | Y40: =IFERROR(AVERAGE(Y22:Y33),0) -> 133.0794316 | AA40: Average of lines 15 to 26.
B42: E | C42: Year on year % change
B43: 30 | C43: RPI: November year on year % | D43: APP23001 | E43: % | F43: 2 | H43: =IF(G14=0,0,H14 / G14 -1) -> 0.02976939203 | I43: 0.02646579805 | J43: 0.01983339944 | K43: 0.01050175029 | L43: 0.02193995381 | M43: 0.03879472693 | N43: 0.03118201595 | O43: 0.03023909986 | P43: 0.03 | Q43: 0.03 | R43: 0.03 | S43: 0.03 | T43: 0.03 | U43: 0.03 | V43: 0.03 | W43: 0.03 | X43: 0.03 | Y43: 0.03 | AA43: Year on year change in line 9.
B44: 31 | C44: RPI: Financial year average indices year on year % | D44: APP23002 | E44: % | F44: 2 | H44: =IF(G39=0,0,H39 / G39 -1) -> 0.03089779151 | I44: =IF(H39=0,0,I39 / H39 -1) -> 0.02884779129 | J44: 0.01959745763 | K44: 0.01077922078 | L44: 0.02142490042 | M44: 0.03742256046 | N44: 0.03228348844 | O44: 0.03033358783 | P44: 0.03 | Q44: 0.03 | R44: 0.03 | S44: 0.03 | T44: 0.03 | U44: 0.03 | V44: 0.03 | W44: 0.03 | X44: 0.03 | Y44: 0.03 | AA44: Year on year change in line 28.
B45: 32 | C45: RPI: Financial year end indices year on year % | D45: APP23003 | E45: % | F45: 2 | H45: =IF(G18=0,0,H18 / G18 -1) -> 0.03280730897 | I45: 0.02452754322 | J45: 0.009026687598 | K45: 0.01555814858 | L45: 0.03140559173 | M45: 0.03341997772 | N45: 0.03162055336 | O45: 0.031 | P45: 0.03 | Q45: 0.03 | R45: 0.03 | S45: 0.03 | T45: 0.03 | U45: 0.03 | V45: 0.03 | W45: 0.03 | X45: 0.03 | Y45: =IF(X18=0,0,Y18 / X18 -1) -> 0.03 | AA45: Year on year change in line 13.
B46: 33 | C46: CPIH: November year on year % | D46: APP23004 | E46: % | F46: 2 | H46: =IF(G29=0,0,H29 / G29 -1) -> 0.02428722281 | I46: 0.01855670103 | J46: 0.01113360324 | K46: 0.004004004004 | L46: 0.0149551346 | M46: 0.02848722986 | N46: 0.0233 | O46: 0.022 | P46: 0.02 | Q46: 0.02 | R46: 0.02 | S46: 0.02 | T46: 0.02 | U46: 0.02 | V46: 0.02 | W46: 0.02 | X46: 0.02 | Y46: =IF(X29=0,0,Y29 / X29 -1) -> 0.02 | AA46: Year on year change in line 22.
B47: 34 | C47: CPIH: Financial year average indices year on year % | D47: APP23005 | E47: % | F47: 2 | H47: =IF(G40=0,0,H40 / G40 -1) -> 0.0241230008 | I47: =IF(H40=0,0,I40 / H40 -1) -> 0.02088006903 | J47: 0.01140973631 | K47: 0.004428845993 | L47: 0.01372712146 | M47: 0.02634386541 | N47: 0.02493897719 | O47: 0.02205444712 | P47: 0.02 | Q47: 0.02 | R47: 0.02 | S47: 0.02 | T47: 0.02 | U47: 0.02 | V47: 0.02 | W47: 0.02 | X47: 0.02 | Y47: =IF(X40=0,0,Y40 / X40 -1) -> 0.02 | AA47: Year on year change in line 29.
B48: 35 | C48: CPIH: Financial year end indices year on year % | D48: APP23006 | E48: % | F48: 2 | H48: =IF(G33=0,0,H33 / G33 -1) -> 0.0251572327 | I48: 0.01533742331 | J48: 0.003021148036 | K48: 0.008032128514 | L48: 0.02290836653 | M48: 0.02336903603 | N48: 0.02623272058 | O48: 0.021 | P48: 0.02 | Q48: 0.02 | R48: 0.02 | S48: 0.02 | T48: 0.02 | U48: 0.02 | V48: 0.02 | W48: 0.02 | X48: 0.02 | Y48: =IF(X33=0,0,Y33 / X33 -1) -> 0.02 | AA48: Year on year change in line 26.
B49: 36 | C49: Wedge between RPI and CPIH | D49: APP23007 | E49: % | F49: 2 | H49: =H44 - H47 -> 0.006774790715 | I49: =I44 - I47 -> 0.007967722263 | J49: =J44 - J47 -> 0.008187721319 | K49: =K44 - K47 -> 0.006350374786 | L49: =L44 - L47 -> 0.00769777896 | M49: =M44 - M47 -> 0.01107869505 | N49: 0.007344511248 | O49: 0.008279140711 | P49: 0.01 | Q49: 0.01 | R49: 0.01 | S49: 0.01 | T49: 0.01 | U49: =U44 - U47 -> 0.01 | V49: 0.01 | W49: 0.01 | X49: 0.01 | Y49: =Y44 - Y47 -> 0.01 | AA49: Line 31 - line 34.
B51: F | C51: Long term inflation rates
B52: 37 | C52: Long term RPI inflation rate | D52: APP23008 | E52: % | F52: 2 | P52: 0.03 | Q52: 0.03 | R52: 0.03 | S52: 0.03 | T52: 0.03 | U52: 0.03 | V52: 0.03 | W52: 0.03 | X52: 0.03 | Y52: 0.03 | AD52: =IF( SUM( AH52:AS52 ) = 0, 0,$AH$5 ) -> 0 | AJ52: =IF( ISNUMBER(P52), 0, 1 ) -> 0 | AK52: 0 | AL52: 0 | AM52: 0 | AN52: 0 | AO52: 0 | AP52: 0 | AQ52: 0 | AR52: 0 | AS52: 0
B53: 38 | C53: Long term CPIH inflation rate | D53: APP23009 | E53: % | F53: 2 | P53: 0.02 | Q53: 0.02 | R53: 0.02 | S53: 0.02 | T53: 0.02 | U53: 0.02 | V53: 0.02 | W53: 0.02 | X53: 0.02 | Y53: 0.02 | AD53: =IF( SUM( AH53:AS53 ) = 0, 0,$AH$5 ) -> 0 | AJ53: 0 | AK53: 0 | AL53: 0 | AM53: 0 | AN53: 0 | AO53: 0 | AP53: 0 | AQ53: 0 | AR53: 0 | AS53: 0
B55: KEY
C56: Input | AH56: =SUM(AH24:AS54) -> 0
C57: Copy
C58: Calculation
C59: Pre populated
B61: App23 guidance and line definitions
B63: This table contains companies' assumptions about inflation during the price control period. The information allows us to adjust the price base of companies' business plan projections and compare across companies on a consistent basis without prescribing assumptions about inflation.
B65: Line | C65: Definition
B66: Block A | C66: =$C$5 -> Retail price index
B67: 1-13 | C67: Pre-populated data in green cells are published values for the retail price index (RPI) available on the ONS website. For 2017-18 onwards in lines 2 to 13, companies should enter forecast RPI values for each month. Line 1 will update automatically and should equal 12 to indicate that forecasts have been completed for all months of the financial year.
B68: Block B | C68: =$C$20 -> Consumer price index (including housing costs)
B69: 14-26 | C69: Pre-populated data in green cells are published values for the consumer price index including housing costs (CPIH) available on the ONS website. For 2017-18 onwards in lines 15 to 26, companies should enter forecast CPIH values for each month. Line 14 will update automatically and should equal 12 to indicate that forecasts have been completed for all months of the financial year.
B70: Block C | C70: =$C$35 -> Indexation rate for index linked debt percentage increase
B71: 27 | C71: The percentage uplift of index-linked debt by indexation. The financial model works on year average prices, so a year average inflation rate for index linked debt is more appropriate.
B72: Block D | C72: =$C$38 -> Financial year average indices
B73: 28-29 | C73: The financial year average indices calculated by taking an average over 12 months from April to March.
B74: Block E | C74: =$C$42 -> Year on year % change
B75: 30-35 | C75: The year on year % change in the indices.
B76: 36 | C76: The annual % change in RPI average minus the annual change in CPI(H) average.
B77: Block F | C77: =$C$51 -> Long term inflation rates
B78: 37 | C78: The company's view of the long term inflation rate for RPI. Long term inflation rate is the rate used to discount the nominal WACC into a real WACC.
B79: 38 | C79: The company's view of the long term inflation rate for CPI(H). Long term inflation rate is the rate used to discount the nominal WACC into a real WACC.

Sheet App 25
B1: App25 - PR14 reconciliation adjustments summary | M1: Yorkshire Water | O1: Data validation
B3: Line description | D3: Item reference | E3: Units | F3: DPs | G3: Price base | H3: 2015-16 | I3: 2016-17 | J3: 2017-18 | K3: 2018-19 | L3: 2019-20 | M3: 2015-20 | O3: Calculation, copy or download rule | P3: Validation description | R3: Completion
U4: Completion checks
B5: A | C5: Further 2010-15 reconciliation adjustments | U5: Please complete all cells in row
B6: 1 | C6: Water ~ Total Adjustment RCV carry forward to PR19 | D6: C00572_L021 | E6: £m | F6: 3 | G6: 2012-13 FYA (RPI) | M6: 3.029302235 | O6: Pre populated cell. Final 2010-15 reconciliation adjustments.
B7: 2 | C7: Water ~ Total Adjustment Revenue carry forward to PR19 | D7: C00578_L021 | E7: £m | F7: 3 | G7: 2012-13 FYA (RPI) | M7: 1.286584625 | O7: Pre populated cell. Final 2010-15 reconciliation adjustments.
B8: 3 | C8: Wastewater ~ Total Adjustment RCV carry forward to PR19 | D8: C00579_L021 | E8: £m | F8: 3 | G8: 2012-13 FYA (RPI) | M8: 3.198466915 | O8: Pre populated cell. Final 2010-15 reconciliation adjustments.
B9: 4 | C9: Wastewater ~ Total Adjustment Revenue carry forward to PR19 | D9: C00585_L021 | E9: £m | F9: 3 | G9: 2012-13 FYA (RPI) | M9: 2.648558875 | O9: Pre populated cell. Final 2010-15 reconciliation adjustments.
B10: 5 | C10: Water ~ CIS RCV inflation correction | D10: APP25001 | E10: £m | F10: 3 | G10: 2012-13 FYA (RPI) | M10: -40.0099985 | O10: Pre populated cell. Final 2010-15 reconciliation adjustments.
B11: 6 | C11: Wastewater ~ CIS RCV inflation correction | D11: APP25002 | E11: £m | F11: 3 | G11: 2012-13 FYA (RPI) | M11: -61.17497836 | O11: Pre populated cell. Final 2010-15 reconciliation adjustments.
B12: 7 | C12: Water ~ Total Adjustment RCV carry forward to PR19 at 2017-18 FYA CPIH deflated price base | D12: APP25003 | E12: £m | F12: 3 | G12: 2017-18 FYA (CPIH deflated) | M12: =+Summary_Output!F34 -> 3.468228707 | O12: This is an output from the RCV adjustments model. | R12: =IF( SUM( U12:Z12 ) = 0, 0,$U$5 ) -> 0 | U12: =IF( ISNUMBER(M12), 0, 1 ) -> 0
B13: 8 | C13: Water ~ Total Adjustment Revenue carry forward to PR19 at 2017-18 FYA CPIH deflated price base | D13: APP25004 | E13: £m | F13: 3 | G13: 2017-18 FYA (CPIH deflated) | O13: This is an output from the revenue adjustments model. | R13: Please complete all cells in row | U13: =IF( ISNUMBER(M13), 0, 1 ) -> 1
B14: 9 | C14: Wastewater ~ Total Adjustment RCV carry forward to PR19 at 2017-18 FYA CPIH deflated price base | D14: APP25005 | E14: £m | F14: 3 | G14: 2017-18 FYA (CPIH deflated) | M14: =+Summary_Output!F72 -> 3.661904265 | O14: This is an output from the RCV adjustments model. | R14: 0 | U14: =IF('[15]Validation flags'!$H$3=1,0, IF( ISNUMBER(M14), 0, 1 )) -> 0
B15: 10 | C15: Wastewater ~ Total Adjustment Revenue carry forward to PR19 at 2017-18 FYA CPIH deflated price base | D15: APP25006 | E15: £m | F15: 3 | G15: 2017-18 FYA (CPIH deflated) | O15: This is an output from the revenue adjustments model. | R15: Please complete all cells in row | U15: =IF('[15]Validation flags'!$H$3=1,0, IF( ISNUMBER(M15), 0, 1 )) -> 1
B16: 11 | C16: Water ~ CIS RCV inflation correction at 2017-18 FYA CPIH deflated price base | D16: APP25007 | E16: £m | F16: 3 | G16: 2017-18 FYA (CPIH deflated) | M16: =+Summary_Output!F35 -> -45.80719076 | O16: This is an output from the RCV adjustments model. | R16: 0 | U16: =IF( ISNUMBER(M16), 0, 1 ) -> 0
B17: 12 | C17: Wastewater ~ CIS RCV inflation correction at 2017-18 FYA CPIH deflated price base | D17: APP25008 | E17: £m | F17: 3 | G17: 2017-18 FYA (CPIH deflated) | M17: =+Summary_Output!F73 -> -70.03884051 | O17: This is an output from the RCV adjustments model. | R17: 0 | U17: =IF('[15]Validation flags'!$H$3=1,0, IF( ISNUMBER(M17), 0, 1 )) -> 0
B19: B | C19: Adjustment to RCV from disposal of land
B20: 13 | C20: =[15]App9!C$16 -> Water ~ NPV effect of 50% of proceeds from disposals of interest in land at 2017-18 FYA CPIH deflated price base | D20: A7011W_CPY | E20: =[15]App9!E$16 -> £m | F20: =[15]App9!F$16 -> 3 | G20: =[15]App9!G$16 -> 2017-18 FYA (CPIH deflated) | M20: 0 | O20: Copied from App9 line 11.
B21: 14 | C21: =[15]App9!C$29 -> Wastewater ~ NPV effect of 50% of proceeds from disposals of interest in land at 2017-18 FYA CPIH deflated price base | D21: A7011WW_CPY | E21: =[15]App9!E$29 -> £m | F21: =[15]App9!F$29 -> 3 | G21: =[15]App9!G$29 -> 2017-18 FYA (CPIH deflated) | M21: 0 | O21: Copied from App9 line 22.
B23: C | C23: Outcome delivery incentive reconciliation adjustments to be applied at PR19
B24: 15 | C24: =[15]App27!C57 -> ODI in~period revenue adjustment ~ Total net revenue adjustment at 2017~18 FYA CPIH deflated price base | D24: APP27040_CPY | E24: =[15]App27!E57 -> £m | F24: =[15]App27!F57 -> 3 | G24: 2017-18 FYA (CPIH deflated) | M24: 0 | O24: Copied from App27 line 40.
B25: 16 | C25: =[15]App27!C66 -> ODI end of period revenue adjustment ~ Total net revenue adjustment at 2017~18 FYA CPIH deflated price base | D25: APP27047_CPY | E25: =[15]App27!E66 -> £m | F25: =[15]App27!F66 -> 3 | G25: 2017-18 FYA (CPIH deflated) | M25: 0 | O25: Copied from App27 line 47
B26: 17 | C26: =[15]App27!C73 -> ODI end of period RCV adjustment ~ Total net adjustment at 2017~18 FYA CPIH deflated price base | D26: APP27052_CPY | E26: =[15]App27!E73 -> £m | F26: =[15]App27!F73 -> 3 | G26: 2017-18 FYA (CPIH deflated) | M26: 0 | O26: Copied from App27 line 53
B28: D | C28: Wholesale total expenditure outperformance sharing
B29: 18 | C29: =[15]WS15!C$43 -> Water: Totex menu revenue adjustment at 2017-18 FYA CPIH deflated price base | D29: WS15026_CPY | E29: =[15]WS15!E$43 -> £m | F29: =[15]WS15!F$43 -> 3 | G29: =[15]WS15!G$43 -> 2017-18 FYA (CPIH deflated) | L29: 0 | O29: Copied from WS15 line 26.
B30: 19 | C30: =[15]WS15!C$44 -> Water: Totex menu RCV adjustment at 2017-18 FYA CPIH deflated price base | D30: WS15027_CPY | E30: =[15]WS15!E$44 -> £m | F30: =[15]WS15!F$44 -> 3 | G30: =[15]WS15!G$44 -> 2017-18 FYA (CPIH deflated) | L30: 0 | O30: Copied from WS15 line 27.
B31: 20 | C31: =[15]WWS15!C$38 -> Wastewater: Totex menu revenue adjustment at 2017-18 FYA CPIH deflated price base | D31: WWS15021_CPY | E31: =[15]WWS15!E$38 -> £m | F31: =[15]WWS15!F$38 -> 3 | G31: =[15]WWS15!G$38 -> 2017-18 FYA (CPIH deflated) | L31: 0 | O31: Copied from WWS15 line 21.
B32: 21 | C32: =[15]WWS15!C$39 -> Wastewater: Totex menu RCV adjustment at 2017-18 FYA CPIH deflated price base | D32: WWS15022_CPY | E32: =[15]WWS15!E$39 -> £m | F32: =[15]WWS15!F$39 -> 3 | G32: =[15]WWS15!G$39 -> 2017-18 FYA (CPIH deflated) | L32: 0 | O32: Copied from WWS15 line 22.
B34: E | C34: Wholesale revenue forecasting incentive mechanism
B35: 22 | C35: =[15]WS13!C$48 -> WRFIM Total reward / (penalty) at the end of AMP6 ~ water network plus | D35: WS13027_CPY | E35: =[15]WS13!E$48 -> £m | F35: =[15]WS13!F$48 -> 3 | G35: =[15]WS13!G$48 -> 2017-18 FYA (CPIH deflated) | L35: 0 | O35: Copied from WS13 line 31.
B36: 23 | C36: =[15]WWS13!C$48 -> WRFIM Total reward / (penalty) at the end of AMP6 ~ wastewater network plus | D36: WWS13027_CPY | E36: =[15]WWS13!E$48 -> £m | F36: =[15]WWS13!F$48 -> 3 | G36: =[15]WWS13!G$48 -> 2017-18 FYA (CPIH deflated) | L36: 0 | O36: Copied from WWS13 line 31.
B38: F | C38: Reconciliation of household retail revenue
B39: 24 | C39: =[15]R9!C$67 -> Residential retail revenue adjustment at 2017-18 FYA CPIH deflated price base | D39: R9046_CPY | E39: =[15]R9!E$67 -> £m | F39: =[15]R9!F$67 -> 3 | G39: =[15]R9!G$67 -> 2017-18 FYA (CPIH deflated) | L39: 0 | O39: Copied from R9 line 46.
B41: G | C41: Water trading incentive reconciliation
B42: 25 | C42: =[15]WS17!C85 -> Total value of export incentive - water resources at 2017-18 FYA CPIH deflated price base | D42: WS17028_CPY | E42: =[15]WS17!E85 -> £m | F42: =[15]WS17!F85 -> 3 | G42: =[15]WS17!G85 -> 2017-18 FYA (CPIH deflated) | L42: 0 | O42: Copied from WS17 line 56.
B43: 26 | C43: =[15]WS17!C86 -> Total value of export incentive - water network plus at 2017-18 FYA CPIH deflated price base | D43: WS17029_CPY | E43: =[15]WS17!E86 -> £m | F43: =[15]WS17!F86 -> 3 | G43: =[15]WS17!G86 -> 2017-18 FYA (CPIH deflated) | L43: 0 | O43: Copied from WS17 line 57.
B44: 27 | C44: =[15]WS17!C87 -> Total value of export incentive to be paid after PR19 at 2017-18 FYA CPIH deflated price base | D44: WS17030_CPY | E44: =[15]WS17!E87 -> £m | F44: =[15]WS17!F87 -> 3 | G44: =[15]WS17!G87 -> 2017-18 FYA (CPIH deflated) | L44: 0 | O44: Copied from WS17 line 58.
B45: 28 | C45: =[15]WS17!C88 -> Total value of import incentive - water resources at 2017-18 FYA CPIH deflated price base | D45: WS17031_CPY | E45: =[15]WS17!E88 -> £m | F45: =[15]WS17!F88 -> 3 | G45: =[15]WS17!G88 -> 2017-18 FYA (CPIH deflated) | L45: 0 | O45: Copied from WS17 line 59.
B46: 29 | C46: =[15]WS17!C89 -> Total value of import incentive - water network plus at 2017-18 FYA CPIH deflated price base | D46: WS17032_CPY | E46: =[15]WS17!E89 -> £m | F46: =[15]WS17!F89 -> 3 | G46: =[15]WS17!G89 -> 2017-18 FYA (CPIH deflated) | L46: 0 | O46: Copied from WS17 line 60.
B48: H | C48: Service incentive mechanism
B49: 30 | C49: =[15]R10!C$22 -> SIM forecast revenue adjustment at 2017-18 FYA CPIH deflated price base | D49: R10009_CPY | E49: =[15]R10!E$22 -> £m | F49: =[15]R10!F$22 -> 3 | G49: =[15]R10!L$5 -> 2017-18 FYA (CPIH deflated) | M49: 0 | O49: Copied from R10 line 9.
B51: KEY
C52: Input
C53: Copy
C54: Calculation
C55: Pre populated
B57: App25 guidance and line definitions
B59: This table summarises the adjustments arising from the 2010-15 reconciliation and from each of the PR14 reconciliations of performance in the period ending 31 March 2020. This table copies values entered in the tables for each of the PR14 reconciliation mechanisms. Block A relates to the further adjustments arising from the 2010-15 reconciliation to reflect the updated information for 2014-15. These are residual to the adjustments already recovered through the 2015-20 price controls. All input and copied values are in 2017-18 prices.
B61: Line | C61: Definition
B62: Block A | C62: =$C$5 -> Further 2010-15 reconciliation adjustments
B63: 1-4 | C63: 2010-15 reconciliation adjustments. These are the further adjustments arising from the update to take account of actual 2014-15 performance. Note – lines 2 and 4 relate to CIS revenue adjustments only, as per the PR09 legacy blind year adjustments model (published in December 2017).
B64: 5-6 | C64: The adjustments to ensure consistency in how we apply inflation indices for the PR09 capital expenditure incentive scheme, we published the adjustments in October 2016.
B65: 7 | C65: Line 1 inflated to 2017-18 prices.This is an output from the RCV adjustments model.
B66: 8 | C66: Line 2 inflated to 2017-18 prices.This is an output from the revenue adjustments model.
B67: 9 | C67: Line 3 inflated to 2017-18 prices.This is an output from the RCV adjustments model.
B68: 10 | C68: Line 4 inflated to 2017-18 prices.This is an output from the revenue adjustments model.
B69: 11 | C69: Line 5 inflated to 2017-18 prices.This is an output from the RCV adjustments model.
B70: 12 | C70: Line 6 inflated to 2017-18 prices.This is an output from the RCV adjustments model.

Sheet App27
B1: App27 - PR14 reconciliation - financial outcome delivery incentives summary | K1: =[12]AppValidation!$D$2 -> Yorkshire Water | O1: Data validation
B3: Line description | D3: Item reference | E3: Units | F3: DPs | G3: 2015-16 | H3: 2016-17 | I3: 2017-18 | J3: 2018-19 | K3: 2019-20 | M3: Total to be applied at PR19 | O3: Calculation, copy or download rule | P3: Validation description | R3: Completion | S3: Validation
V4: Completion checks | AF4: Validation checks
B5: A | C5: In-period ODI revenue adjustments by PR14 price control units (2012-13 prices) | V5: Please complete all cells in row | AF5: This line should equal line 21
B6: 1 | C6: Net performance payment / (penalty) applied to revenue for in-period ODI adjustments ~ Wholesale water | D6: APP27001 | E6: £m | F6: 3 | G6: 0 | H6: 0 | I6: 0 | J6: 0 | K6: 0 | M6: 0 | R6: =IF( SUM( V6:AB6 ) = 0, 0,$V$5 ) -> 0 | V6: =IF( ISNUMBER(G6), 0, 1 ) -> 0 | W6: 0 | X6: 0 | Y6: 0 | Z6: 0 | AB6: =IF( ISNUMBER(M6), 0, 1 ) -> 0
B7: 2 | C7: Net performance payment / (penalty) applied to revenue for in-period ODI adjustments ~ Wholesale wastewater | D7: APP27002 | E7: £m | F7: 3 | G7: 0 | H7: 0 | I7: 0 | J7: 0 | K7: 0 | M7: 0 | R7: =IF( SUM( V7:AB7 ) = 0, 0,$V$5 ) -> 0 | V7: =IF('[12]Validation flags'!$H$3=1,0, IF( ISNUMBER(G7), 0, 1 )) -> 0 | W7: =IF('[12]Validation flags'!$H$3=1,0, IF( ISNUMBER(H7), 0, 1 )) -> 0 | X7: =IF('[12]Validation flags'!$H$3=1,0, IF( ISNUMBER(I7), 0, 1 )) -> 0 | Y7: =IF('[12]Validation flags'!$H$3=1,0, IF( ISNUMBER(J7), 0, 1 )) -> 0 | Z7: =IF('[12]Validation flags'!$H$3=1,0, IF( ISNUMBER(K7), 0, 1 )) -> 0 | AB7: =IF('[12]Validation flags'!$H$3=1,0, IF( ISNUMBER(M7), 0, 1 )) -> 0
B8: 3 | C8: Net performance payment / (penalty) applied to revenue for in-period ODI adjustments ~ Retail (household) | D8: APP27003 | E8: £m | F8: 3 | G8: 0 | H8: 0 | I8: 0 | J8: 0 | K8: 0 | M8: 0 | R8: =IF( SUM( V8:AB8 ) = 0, 0,$V$5 ) -> 0 | V8: 0 | W8: 0 | X8: 0 | Y8: 0 | Z8: 0 | AB8: =IF( ISNUMBER(M8), 0, 1 ) -> 0
B9: 4 | C9: Net performance payment / (penalty) applied to revenue for in-period ODI adjustments ~ Retail (non-household) | D9: APP27004 | E9: £m | F9: 3 | G9: 0 | H9: 0 | I9: 0 | J9: 0 | K9: 0 | M9: 0 | R9: =IF( SUM( V9:AB9 ) = 0, 0,$V$5 ) -> 0 | V9: 0 | W9: 0 | X9: 0 | Y9: 0 | Z9: 0 | AB9: =IF( ISNUMBER(M9), 0, 1 ) -> 0
B10: 5 | C10: Total net performance payment / (penalty) applied to revenue for in-period ODI adjustments ~ PR14 controls | D10: APP27005 | E10: £m | F10: 3 | G10: =SUM(G6:G9) -> 0 | H10: =SUM(H6:H9) -> 0 | I10: =SUM(I6:I9) -> 0 | J10: =SUM(J6:J9) -> 0 | K10: =SUM(K6:K9) -> 0 | M10: =SUM(M6:M9) -> 0 | O10: Calculated. Sum of lines 1 to 4 | P10: Line 21 = Line 5 | S10: =IF( SUM( AF10:AL10 ) = 0, 0,AF5 ) -> 0 | AF10: =IF(G32 = G10, 0, 1) -> 0 | AG10: =IF(H32 = H10, 0, 1) -> 0 | AH10: 0 | AI10: 0 | AJ10: 0 | AL10: 0
B12: B | C12: End of period ODI revenue adjustments by PR14 price control units (2012-13 prices) | AF12: This line should equal line 28
B13: 6 | C13: Net performance payment / (penalty) applied to revenue for end of period ODI adjustments ~ Wholesale water | D13: APP27006 | E13: £m | F13: 3 | G13: 0 | H13: 5.792 | I13: 10.281 | J13: 10.24 | K13: 12.52 | M13: 38.83353243 | R13: =IF( SUM( V13:AB13 ) = 0, 0,$V$5 ) -> 0 | V13: =IF( ISNUMBER(G13), 0, 1 ) -> 0 | W13: 0 | X13: 0 | Y13: 0 | Z13: 0 | AB13: =IF( ISNUMBER(M13), 0, 1 ) -> 0
B14: 7 | C14: Net performance payment / (penalty) applied to revenue for end of period ODI adjustments ~ Wholesale wastewater | D14: APP27007 | E14: £m | F14: 3 | G14: 5.739 | H14: 2.984 | I14: 8.947 | J14: 6.437 | K14: 19.471 | M14: 43.57808033 | R14: =IF( SUM( V14:AB14 ) = 0, 0,$V$5 ) -> 0 | V14: =IF('[12]Validation flags'!$H$3=1,0, IF( ISNUMBER(G14), 0, 1 )) -> 0 | W14: =IF('[12]Validation flags'!$H$3=1,0, IF( ISNUMBER(H14), 0, 1 )) -> 0 | X14: =IF('[12]Validation flags'!$H$3=1,0, IF( ISNUMBER(I14), 0, 1 )) -> 0 | Y14: =IF('[12]Validation flags'!$H$3=1,0, IF( ISNUMBER(J14), 0, 1 )) -> 0 | Z14: =IF('[12]Validation flags'!$H$3=1,0, IF( ISNUMBER(K14), 0, 1 )) -> 0 | AB14: =IF('[12]Validation flags'!$H$3=1,0, IF( ISNUMBER(M14), 0, 1 )) -> 0
B15: 8 | C15: Net performance payment / (penalty) applied to revenue for end of period ODI adjustments ~ Retail (household) | D15: APP27008 | E15: £m | F15: 3 | G15: 0 | H15: 0 | I15: 0 | J15: 0 | K15: 0 | M15: 0 | R15: =IF( SUM( V15:AB15 ) = 0, 0,$V$5 ) -> 0 | V15: 0 | W15: 0 | X15: 0 | Y15: 0 | Z15: 0 | AB15: =IF( ISNUMBER(M15), 0, 1 ) -> 0
B16: 9 | C16: Net performance payment / (penalty) applied to revenue for end of period ODI adjustments ~ Retail (non-household) | D16: APP27009 | E16: £m | F16: 3 | G16: 0 | H16: 0 | I16: 0 | J16: 0 | K16: 0 | M16: 0 | R16: =IF( SUM( V16:AB16 ) = 0, 0,$V$5 ) -> 0 | V16: 0 | W16: 0 | X16: 0 | Y16: 0 | Z16: 0 | AB16: =IF( ISNUMBER(M16), 0, 1 ) -> 0
B17: 10 | C17: Total net performance payment / (penalty) applied to revenue for end of period ODI adjustments ~ PR14 controls | D17: APP27010 | E17: £m | F17: 3 | G17: =SUM(G13:G16) -> 5.739 | H17: =SUM(H13:H16) -> 8.776 | I17: =SUM(I13:I16) -> 19.228 | J17: =SUM(J13:J16) -> 16.677 | K17: =SUM(K13:K16) -> 31.991 | M17: =SUM(M13:M16) -> 82.41161275 | O17: Calculated. Sum of lines 6 to 9 | P17: Line 28 = Line 10 | S17: =IF( SUM( AF17:AL17 ) = 0, 0,AF12 ) -> 0 | AF17: =IF(G41 = G17, 0, 1) -> 0 | AG17: =IF(H41 = H17, 0, 1) -> 0 | AH17: 0 | AI17: 0 | AJ17: 0 | AL17: 0
B19: C | C19: End of period ODI RCV adjustments by PR14 price control units (2012-13 prices) | AF19: This line should equal line 33
B20: 11 | C20: Net performance payment / (penalty) applied to RCV for end of period ODI adjustments ~ Wholesale water | D20: APP27011 | E20: £m | F20: 3 | G20: 0 | H20: 0 | I20: 0 | J20: 0 | K20: 0 | M20: 0 | R20: =IF( SUM( V20:AB20 ) = 0, 0,$V$5 ) -> 0 | V20: =IF( ISNUMBER(G20), 0, 1 ) -> 0 | W20: =IF( ISNUMBER(H20), 0, 1 ) -> 0 | X20: =IF( ISNUMBER(I20), 0, 1 ) -> 0 | Y20: =IF( ISNUMBER(J20), 0, 1 ) -> 0 | Z20: =IF( ISNUMBER(K20), 0, 1 ) -> 0 | AB20: =IF( ISNUMBER(M20), 0, 1 ) -> 0
B21: 12 | C21: Net performance payment / (penalty) applied to RCV for end of period ODI adjustments ~ Wholesale wastewater | D21: APP27012 | E21: £m | F21: 3 | G21: 0 | H21: 0 | I21: 0 | J21: 0 | K21: 0 | M21: 0 | R21: =IF( SUM( V21:AB21 ) = 0, 0,$V$5 ) -> 0 | V21: =IF('[12]Validation flags'!$H$3=1,0, IF( ISNUMBER(G21), 0, 1 )) -> 0 | W21: =IF('[12]Validation flags'!$H$3=1,0, IF( ISNUMBER(H21), 0, 1 )) -> 0 | X21: =IF('[12]Validation flags'!$H$3=1,0, IF( ISNUMBER(I21), 0, 1 )) -> 0 | Y21: =IF('[12]Validation flags'!$H$3=1,0, IF( ISNUMBER(J21), 0, 1 )) -> 0 | Z21: =IF('[12]Validation flags'!$H$3=1,0, IF( ISNUMBER(K21), 0, 1 )) -> 0 | AB21: =IF('[12]Validation flags'!$H$3=1,0, IF( ISNUMBER(M21), 0, 1 )) -> 0
B22: 13 | C22: Net performance payment / (penalty) applied to RCV for end of period ODI adjustments ~ Thames Tideway | D22: APP27013 | E22: £m | F22: 3 | G22: 0 | H22: 0 | I22: 0 | J22: 0 | K22: 0 | M22: 0 | R22: =IF( SUM( V22:AB22 ) = 0, 0,$V$5 ) -> 0 | V22: =IF('[12]Validation flags'!$B$3<>"Thames Water",0, IF( ISNUMBER(G22), 0, 1 )) -> 0 | W22: =IF('[12]Validation flags'!$B$3<>"Thames Water",0, IF( ISNUMBER(H22), 0, 1 )) -> 0 | X22: =IF('[12]Validation flags'!$B$3<>"Thames Water",0, IF( ISNUMBER(I22), 0, 1 )) -> 0 | Y22: =IF('[12]Validation flags'!$B$3<>"Thames Water",0, IF( ISNUMBER(J22), 0, 1 )) -> 0 | Z22: =IF('[12]Validation flags'!$B$3<>"Thames Water",0, IF( ISNUMBER(K22), 0, 1 )) -> 0 | AB22: =IF('[12]Validation flags'!$B$3<>"Thames Water",0, IF( ISNUMBER(M22), 0, 1 )) -> 0
B23: 14 | C23: Total net performance payment / (penalty) applied to RCV for end of period ODI adjustments ~ PR14 controls | D23: APP27014 | E23: £m | F23: 3 | G23: =SUM(G20:G22) -> 0 | H23: =SUM(H20:H22) -> 0 | I23: =SUM(I20:I22) -> 0 | J23: =SUM(J20:J22) -> 0 | K23: =SUM(K20:K22) -> 0 | M23: =SUM(M20:M22) -> 0 | O23: Calculated. Sum of lines 11 to 13 | P23: Line 33 = Line 14 | R23: =IF( SUM( V23:AB23 ) = 0, 0,$V$5 ) -> 0 | S23: =IF( SUM( AF23:AL23 ) = 0, 0,AF19 ) -> 0 | AF23: =IF(G48 = G23, 0, 1) -> 0 | AG23: =IF(H48 = H23, 0, 1) -> 0 | AH23: =IF(I48 = I23, 0, 1) -> 0 | AI23: =IF(J48 = J23, 0, 1) -> 0 | AJ23: =IF(K48 = K23, 0, 1) -> 0 | AL23: =IF(M48 = M23, 0, 1) -> 0
B25: D | C25: In-period ODI revenue adjustments allocated to PR19 price controls (2012-13 prices) | AF25: This line should equal line 5
B26: 15 | C26: Net performance payment / (penalty) applied to revenue for in-period ODI adjustments ~ Water resources | D26: APP27015 | E26: £m | F26: 3 | G26: 0 | H26: 0 | I26: 0 | J26: 0 | K26: 0 | M26: 0 | R26: =IF( SUM( V26:AB26 ) = 0, 0,$V$5 ) -> 0 | V26: =IF( ISNUMBER(G26), 0, 1 ) -> 0 | W26: 0 | X26: 0 | Y26: 0 | Z26: 0 | AB26: =IF( ISNUMBER(M26), 0, 1 ) -> 0
B27: 16 | C27: Net performance payment / (penalty) applied to revenue for in-period ODI adjustments ~ Water network plus | D27: APP27016 | E27: £m | F27: 3 | G27: 0 | H27: 0 | I27: 0 | J27: 0 | K27: 0 | M27: 0 | R27: 0 | V27: 0 | W27: 0 | X27: 0 | Y27: 0 | Z27: 0 | AB27: 0
B28: 17 | C28: Net performance payment / (penalty) applied to revenue for in-period ODI adjustments ~ Wastewater network plus | D28: APP27017 | E28: £m | F28: 3 | G28: 0 | H28: 0 | I28: 0 | J28: 0 | K28: 0 | M28: 0 | R28: 0 | V28: =IF('[12]Validation flags'!$H$3=1,0, IF( ISNUMBER(G28), 0, 1 )) -> 0 | W28: =IF('[12]Validation flags'!$H$3=1,0, IF( ISNUMBER(H28), 0, 1 )) -> 0 | X28: =IF('[12]Validation flags'!$H$3=1,0, IF( ISNUMBER(I28), 0, 1 )) -> 0 | Y28: =IF('[12]Validation flags'!$H$3=1,0, IF( ISNUMBER(J28), 0, 1 )) -> 0 | Z28: =IF('[12]Validation flags'!$H$3=1,0, IF( ISNUMBER(K28), 0, 1 )) -> 0 | AB28: =IF('[12]Validation flags'!$H$3=1,0, IF( ISNUMBER(M28), 0, 1 )) -> 0
B29: 18 | C29: Net performance payment / (penalty) applied to revenue for in-period ODI adjustments ~ Bioresources | D29: APP27018 | E29: £m | F29: 3 | G29: 0 | H29: 0 | I29: 0 | J29: 0 | K29: 0 | M29: 0 | R29: 0 | V29: =IF('[12]Validation flags'!$H$3=1,0, IF( ISNUMBER(G29), 0, 1 )) -> 0 | W29: =IF('[12]Validation flags'!$H$3=1,0, IF( ISNUMBER(H29), 0, 1 )) -> 0 | X29: =IF('[12]Validation flags'!$H$3=1,0, IF( ISNUMBER(I29), 0, 1 )) -> 0 | Y29: =IF('[12]Validation flags'!$H$3=1,0, IF( ISNUMBER(J29), 0, 1 )) -> 0 | Z29: =IF('[12]Validation flags'!$H$3=1,0, IF( ISNUMBER(K29), 0, 1 )) -> 0 | AB29: =IF('[12]Validation flags'!$H$3=1,0, IF( ISNUMBER(M29), 0, 1 )) -> 0
B30: 19 | C30: Net performance payment / (penalty) applied to revenue for in-period ODI adjustments ~ Residential retail | D30: APP27019 | E30: £m | F30: 3 | G30: 0 | H30: 0 | I30: 0 | J30: 0 | K30: 0 | M30: 0 | R30: 0 | V30: 0 | W30: 0 | X30: 0 | Y30: 0 | Z30: 0 | AB30: 0
B31: 20 | C31: Net performance payment / (penalty) applied to revenue for in-period ODI adjustments ~ Business retail | D31: APP27020 | E31: £m | F31: 3 | G31: 0 | H31: 0 | I31: 0 | J31: 0 | K31: 0 | M31: 0 | R31: 0 | V31: 0 | W31: 0 | X31: 0 | Y31: 0 | Z31: 0 | AB31: 0
B32: 21 | C32: Total net performance payment / (penalty) applied to revenue for in-period ODI adjustments ~ PR19 controls | D32: APP27021 | E32: £m | F32: 3 | G32: =SUM(G26:G31) -> 0 | H32: =SUM(H26:H31) -> 0 | I32: =SUM(I26:I31) -> 0 | J32: =SUM(J26:J31) -> 0 | K32: =SUM(K26:K31) -> 0 | M32: =SUM(M26:M31) -> 0 | O32: Calculated. Sum of lines 15 to 20 | P32: Line 21 = Line 5 | S32: =IF( SUM( AF32:AL32 ) = 0, 0,AF25 ) -> 0 | AF32: =IF(G32 = G10, 0, 1) -> 0 | AG32: =IF(H32 = H10, 0, 1) -> 0 | AH32: 0 | AI32: 0 | AJ32: 0 | AL32: 0
B34: E | C34: End of period ODI revenue adjustments allocated to PR19 price controls (2012-13 prices) | AF34: This line should equal line 10
B35: 22 | C35: Net performance payment / (penalty) applied to revenue for end of period ODI adjustments ~ Water resources | D35: APP27022 | E35: £m | F35: 3 | G35: 0 | H35: 0 | I35: 0.038 | J35: 0.009 | K35: 0.306 | M35: =[13]App27!M35 -> 0.3534927073 | R35: =IF( SUM( V35:AB35 ) = 0, 0,$V$5 ) -> 0 | V35: =IF( ISNUMBER(G35), 0, 1 ) -> 0 | W35: 0 | X35: 0 | Y35: 0 | Z35: 0 | AB35: =IF( ISNUMBER(M35), 0, 1 ) -> 0
B36: 23 | C36: Net performance payment / (penalty) applied to revenue for end of period ODI adjustments ~ Water network plus | D36: APP27023 | E36: £m | F36: 3 | G36: 0 | H36: 5.792 | I36: 10.243 | J36: 10.231 | K36: 12.214 | M36: =[13]App27!M36 -> 38.48003972 | R36: 0 | V36: 0 | W36: 0 | X36: 0 | Y36: 0 | Z36: 0 | AB36: 0
B37: 24 | C37: Net performance payment / (penalty) applied to revenue for end of period ODI adjustments ~ Wastewater network plus | D37: APP27024 | E37: £m | F37: 3 | G37: 5.739 | H37: 2.984 | I37: 8.947 | J37: 6.437 | K37: 19.471 | M37: =[13]App27!M37 -> 43.57808033 | R37: 0 | V37: =IF('[12]Validation flags'!$H$3=1,0, IF( ISNUMBER(G37), 0, 1 )) -> 0 | W37: =IF('[12]Validation flags'!$H$3=1,0, IF( ISNUMBER(H37), 0, 1 )) -> 0 | X37: =IF('[12]Validation flags'!$H$3=1,0, IF( ISNUMBER(I37), 0, 1 )) -> 0 | Y37: =IF('[12]Validation flags'!$H$3=1,0, IF( ISNUMBER(J37), 0, 1 )) -> 0 | Z37: =IF('[12]Validation flags'!$H$3=1,0, IF( ISNUMBER(K37), 0, 1 )) -> 0 | AB37: =IF('[12]Validation flags'!$H$3=1,0, IF( ISNUMBER(M37), 0, 1 )) -> 0
B38: 25 | C38: Net performance payment / (penalty) applied to revenue for end of period ODI adjustments ~ Bioresources | D38: APP27025 | E38: £m | F38: 3 | G38: 0 | H38: 0 | I38: 0 | J38: 0 | K38: 0 | M38: 0 | R38: 0 | V38: =IF('[12]Validation flags'!$H$3=1,0, IF( ISNUMBER(G38), 0, 1 )) -> 0 | W38: =IF('[12]Validation flags'!$H$3=1,0, IF( ISNUMBER(H38), 0, 1 )) -> 0 | X38: =IF('[12]Validation flags'!$H$3=1,0, IF( ISNUMBER(I38), 0, 1 )) -> 0 | Y38: =IF('[12]Validation flags'!$H$3=1,0, IF( ISNUMBER(J38), 0, 1 )) -> 0 | Z38: =IF('[12]Validation flags'!$H$3=1,0, IF( ISNUMBER(K38), 0, 1 )) -> 0 | AB38: =IF('[12]Validation flags'!$H$3=1,0, IF( ISNUMBER(M38), 0, 1 )) -> 0
B39: 26 | C39: Net performance payment / (penalty) applied to revenue for end of period ODI adjustments ~ Residential retail | D39: APP27026 | E39: £m | F39: 3 | G39: 0 | H39: 0 | I39: 0 | J39: 0 | K39: 0 | M39: 0 | R39: 0 | V39: 0 | W39: 0 | X39: 0 | Y39: 0 | Z39: 0 | AB39: 0
B40: 27 | C40: Net performance payment / (penalty) applied to revenue for end of period ODI adjustments ~ Business retail | D40: APP27027 | E40: £m | F40: 3 | G40: 0 | H40: 0 | I40: 0 | J40: 0 | K40: 0 | M40: 0 | R40: 0 | V40: 0 | W40: 0 | X40: 0 | Y40: 0 | Z40: 0 | AB40: 0
B41: 28 | C41: Total net performance payment / (penalty) applied to revenue for end of period ODI adjustments ~ PR19 controls | D41: APP27028 | E41: £m | F41: 3 | G41: =SUM(G35:G40) -> 5.739 | H41: =SUM(H35:H40) -> 8.776 | I41: =SUM(I35:I40) -> 19.228 | J41: =SUM(J35:J40) -> 16.677 | K41: =SUM(K35:K40) -> 31.991 | M41: =SUM(M35:M40) -> 82.41161275 | O41: Calculated. Sum of lines 22 to 27 | P41: Line 28 = Line 10 | S41: =IF( SUM( AF41:AL41 ) = 0, 0,AF34 ) -> 0 | AF41: =IF(G41 = G17, 0, 1) -> 0 | AG41: =IF(H41 = H17, 0, 1) -> 0 | AH41: 0 | AI41: 0 | AJ41: 0 | AL41: 0
B43: F | C43: End of period ODI RCV adjustments allocated to PR19 price controls (2012-13 prices) | AF43: This line should equal line 14
B44: 29 | C44: Net performance payment / (penalty) applied to RCV for end of period ODI adjustments ~ Water resources | D44: APP27029 | E44: £m | F44: 3 | G44: 0 | H44: 0 | I44: 0 | J44: 0 | K44: 0 | M44: 0 | R44: =IF( SUM( V44:AB44 ) = 0, 0,$V$5 ) -> 0 | V44: =IF( ISNUMBER(G44), 0, 1 ) -> 0 | W44: 0 | X44: 0 | Y44: 0 | Z44: 0 | AB44: =IF( ISNUMBER(M44), 0, 1 ) -> 0
B45: 30 | C45: Net performance payment / (penalty) applied to RCV for end of period ODI adjustments ~ Water network plus | D45: APP27030 | E45: £m | F45: 3 | G45: 0 | H45: 0 | I45: 0 | J45: 0 | K45: 0 | M45: 0 | R45: =IF( SUM( V45:AB45 ) = 0, 0,$V$5 ) -> 0 | V45: 0 | W45: 0 | X45: 0 | Y45: 0 | Z45: 0 | AB45: =IF( ISNUMBER(M45), 0, 1 ) -> 0
B46: 31 | C46: Net performance payment / (penalty) applied to RCV for end of period ODI adjustments ~ Wastewater network plus | D46: APP27031 | E46: £m | F46: 3 | G46: 0 | H46: 0 | I46: 0 | J46: 0 | K46: 0 | M46: 0 | R46: =IF( SUM( V46:AB46 ) = 0, 0,$V$5 ) -> 0 | V46: =IF('[12]Validation flags'!$H$3=1,0, IF( ISNUMBER(G46), 0, 1 )) -> 0 | W46: =IF('[12]Validation flags'!$H$3=1,0, IF( ISNUMBER(H46), 0, 1 )) -> 0 | X46: =IF('[12]Validation flags'!$H$3=1,0, IF( ISNUMBER(I46), 0, 1 )) -> 0 | Y46: =IF('[12]Validation flags'!$H$3=1,0, IF( ISNUMBER(J46), 0, 1 )) -> 0 | Z46: =IF('[12]Validation flags'!$H$3=1,0, IF( ISNUMBER(K46), 0, 1 )) -> 0 | AB46: =IF('[12]Validation flags'!$H$3=1,0, IF( ISNUMBER(M46), 0, 1 )) -> 0
B47: 32 | C47: Net performance payment / (penalty) applied to RCV for end of period ODI adjustments ~ Thames Tideway | D47: APP27032 | E47: £m | F47: 3 | G47: 0 | H47: 0 | I47: 0 | J47: 0 | K47: 0 | M47: 0 | R47: =IF( SUM( V47:AB47 ) = 0, 0,$V$5 ) -> 0 | V47: =IF('[12]Validation flags'!$B$3<>"Thames Water",0, IF( ISNUMBER(G47), 0, 1 )) -> 0 | W47: =IF('[12]Validation flags'!$B$3<>"Thames Water",0, IF( ISNUMBER(H47), 0, 1 )) -> 0 | X47: =IF('[12]Validation flags'!$B$3<>"Thames Water",0, IF( ISNUMBER(I47), 0, 1 )) -> 0 | Y47: =IF('[12]Validation flags'!$B$3<>"Thames Water",0, IF( ISNUMBER(J47), 0, 1 )) -> 0 | Z47: =IF('[12]Validation flags'!$B$3<>"Thames Water",0, IF( ISNUMBER(K47), 0, 1 )) -> 0 | AB47: =IF('[12]Validation flags'!$B$3<>"Thames Water",0, IF( ISNUMBER(M47), 0, 1 )) -> 0
B48: 33 | C48: Total net performance payment / (penalty) applied to RCV for end of period ODI adjustments ~ PR19 controls | D48: APP27033 | E48: £m | F48: 3 | G48: =SUM(G44:G47) -> 0 | H48: =SUM(H44:H47) -> 0 | I48: =SUM(I44:I47) -> 0 | J48: =SUM(J44:J47) -> 0 | K48: =SUM(K44:K47) -> 0 | M48: =SUM(M44:M47) -> 0 | O48: Calculated. Sum of lines 29 to 32 | P48: Line 33 = Line 14 | S48: =IF( SUM( AF48:AL48 ) = 0, 0,AF43 ) -> 0 | AF48: =IF(G48 = G23, 0, 1) -> 0 | AG48: =IF(H48 = H23, 0, 1) -> 0 | AH48: 0 | AI48: 0 | AJ48: 0 | AL48: 0
B50: G | C50: In-period ODI revenue adjustments input to PR19 financial model (2017-18 prices)
B51: 34 | C51: ODI in~period revenue adjustment ~ Water resources at 2017~18 FYA CPIH deflated price base | D51: APP27034 | E51: £m | F51: 3 | M51: 0 | O51: Output item from revenue adjustments feeder model. | R51: =IF( SUM( V51:AB51 ) = 0, 0,$V$5 ) -> 0 | AB51: =IF( ISNUMBER(M51), 0, 1 ) -> 0
B52: 35 | C52: ODI in~period revenue adjustment ~ Water network plus at 2017~18 FYA CPIH deflated price base | D52: APP27035 | E52: £m | F52: 3 | M52: 0 | O52: Output item from revenue adjustments feeder model. | R52: 0 | AB52: 0
B53: 36 | C53: ODI in~period revenue adjustment ~ Wastewater network plus at 2017~18 FYA CPIH deflated price base | D53: APP27036 | E53: £m | F53: 3 | M53: 0 | O53: Output item from revenue adjustments feeder model. | R53: 0 | AB53: =IF('[12]Validation flags'!$H$3=1,0, IF( ISNUMBER(M53), 0, 1 )) -> 0
B54: 37 | C54: ODI in~period revenue adjustment ~ Bioresources at 2017~18 FYA CPIH deflated price base | D54: APP27037 | E54: £m | F54: 3 | M54: 0 | O54: Output item from revenue adjustments feeder model. | R54: 0 | AB54: =IF('[12]Validation flags'!$H$3=1,0, IF( ISNUMBER(M54), 0, 1 )) -> 0
B55: 38 | C55: ODI in~period revenue adjustment ~ Residential retail at 2017~18 FYA CPIH deflated price base | D55: APP27038 | E55: £m | F55: 3 | M55: 0 | O55: Output item from revenue adjustments feeder model. | R55: 0 | AB55: 0
B56: 39 | C56: ODI in~period revenue adjustment ~ Business retail at 2017~18 FYA CPIH deflated price base | D56: APP27039 | E56: £m | F56: 3 | M56: 0 | O56: Output item from revenue adjustments feeder model. | R56: 0 | AB56: 0
B57: 40 | C57: ODI in~period revenue adjustment ~ Total net revenue adjustment at 2017~18 FYA CPIH deflated price base | D57: APP27040 | E57: £m | F57: 3 | M57: =SUM(M51:M56) -> 0 | O57: Calculated. Sum of lines 34 to 39
B59: H | C59: End of period ODI revenue adjustments input to PR19 financial model (2017-18 prices)
B60: 41 | C60: ODI end of period revenue adjustment ~ Water resources at 2017~18 FYA CPIH deflated price base | D60: APP27041 | E60: £m | F60: 3 | M60: 0.405 | O60: Output item from revenue adjustments feeder model. | R60: =IF( SUM( V60:AB60 ) = 0, 0,$V$5 ) -> 0 | AB60: =IF( ISNUMBER(M60), 0, 1 ) -> 0
B61: 42 | C61: ODI end of period revenue adjustment ~ Water network plus at 2017~18 FYA CPIH deflated price base | D61: APP27042 | E61: £m | F61: 3 | M61: 44.07 | O61: Output item from revenue adjustments feeder model. | R61: 0 | AB61: 0
B62: 43 | C62: ODI end of period revenue adjustment ~ Wastewater network plus at 2017~18 FYA CPIH deflated price base | D62: APP27043 | E62: £m | F62: 3 | M62: 49.909 | O62: Output item from revenue adjustments feeder model. | R62: 0 | AB62: =IF('[12]Validation flags'!$H$3=1,0, IF( ISNUMBER(M62), 0, 1 )) -> 0
B63: 44 | C63: ODI end of period revenue adjustment ~ Bioresources at 2017~18 FYA CPIH deflated price base | D63: APP27044 | E63: £m | F63: 3 | M63: 0 | O63: Output item from revenue adjustments feeder model. | R63: 0 | AB63: =IF('[12]Validation flags'!$H$3=1,0, IF( ISNUMBER(M63), 0, 1 )) -> 0
B64: 45 | C64: ODI end of period revenue adjustment ~ Residential retail at 2017~18 FYA CPIH deflated price base | D64: APP27045 | E64: £m | F64: 3 | M64: 0 | O64: Output item from revenue adjustments feeder model. | R64: 0 | AB64: 0
B65: 46 | C65: ODI end of period revenue adjustment ~ Business retail at 2017~18 FYA CPIH deflated price base | D65: APP27046 | E65: £m | F65: 3 | M65: 0 | O65: Output item from revenue adjustments feeder model. | R65: 0 | AB65: 0
B66: 47 | C66: ODI end of period revenue adjustment ~ Total net revenue adjustment at 2017~18 FYA CPIH deflated price base | D66: APP27047 | E66: £m | F66: 3 | M66: =SUM(M60:M65) -> 94.384 | O66: Calculated. Sum of lines 41 to 46
B68: I | C68: End of period ODI RCV adjustments input to PR19 financial model (2017-18 prices)
B69: 48 | C69: ODI end of period RCV adjustment ~ Water resources at 2017~18 FYA CPIH deflated price base | D69: APP27048 | E69: £m | F69: 3 | M69: 0 | O69: Output item from RCV adjustments feeder model. | R69: =IF( SUM( V69:AB69 ) = 0, 0,$V$5 ) -> 0 | AB69: =IF( ISNUMBER(M69), 0, 1 ) -> 0
B70: 49 | C70: ODI end of period RCV adjustment ~ Water network plus at 2017~18 FYA CPIH deflated price base | D70: APP27049 | E70: £m | F70: 3 | M70: 0 | O70: Output item from RCV adjustments feeder model. | R70: =IF( SUM( V70:AB70 ) = 0, 0,$V$5 ) -> 0 | AB70: =IF( ISNUMBER(M70), 0, 1 ) -> 0
B71: 50 | C71: ODI end of period RCV adjustment ~ Wastewater network plus at 2017~18 FYA CPIH deflated price base | D71: APP27050 | E71: £m | F71: 3 | M71: 0 | O71: Output item from RCV adjustments feeder model. | R71: =IF( SUM( V71:AB71 ) = 0, 0,$V$5 ) -> 0 | AB71: =IF('[12]Validation flags'!$H$3=1,0, IF( ISNUMBER(M71), 0, 1 )) -> 0
B72: 51 | C72: ODI end of period RCV adjustment ~ Thames Tideway at 2017~18 FYA CPIH deflated price base | D72: APP27051 | E72: £m | F72: 3 | M72: 0 | O72: Output item from RCV adjustments feeder model. | R72: =IF( SUM( V72:AB72 ) = 0, 0,$V$5 ) -> 0 | AB72: =IF('[12]Validation flags'!$B$3<>"Thames Water",0, IF( ISNUMBER(M72), 0, 1 )) -> 0
B73: 52 | C73: ODI end of period RCV adjustment ~ Total net adjustment at 2017~18 FYA CPIH deflated price base | D73: APP27052 | E73: £m | F73: 3 | M73: =SUM(M69:M72) -> 0 | O73: Calculated. Sum of lines 48 to 51 | AF73: =SUM(AF10:AL10,AF17:AL17,AF23:AL23,AF32:AL32,AF41:AL41,AF48:AL48) -> 0
B75: KEY
C76: Input
C77: Copy
C78: Calculation
C79: Pre populated
B81: App27 guidance
B83: Companies should enter a summary of the financial adjustments arising from the actual and forecast performance levels as calculated under the PR14 reconciliation rulebook methodology. The table includes both in-period and end-of-period adjustments with a breakdown by PR14 price control element and a breakdown by the proposed allocation to the PR19 price controls. For end-of-period ODIs companies should show how they accrue year by year, where appropriate, and confirm, in the "total to be applied at PR19" column, the adjustments they want to make to the various PR19 price controls. Blocks A to F are in 2012-13 prices. Blocks A to C show the total amounts relating to each of the PR14 price control elements (see table App5 column D). Blocks D to F show the amounts allocated to the PR19 price controls. As set out in chapter 12, we will apply revenue adjustments to the network plus control except where an ODI is wholly aligned to water resources, bioresources or retail. RCV adjustments for water will be applied to the network plus control except where an ODI is wholly aligned to water resources. RCV adjustments for wastewater will be applied in full to wastewater network plus. The “total to be applied at PR19” column in blocks D to E are inputs to the revenue adjustments feeder model and the “total to be applied at PR19” of block F are inputs to the RCV adjustments feeder model. Blocks G to I are in 2017-18 prices. These are outputs from the revenue adjustments feeder model and RCV adjustments feeder model. Block A In relation to the in-period ODIs for the three companies with in-period ODIs in 2015-20, those three companies should complete the in-period ODI blocks with the actual amounts determined by Ofwat in December 2016 (for 2015-16) and December 2017 (for 2016-17) for each price control. Companies should also include forecasts for 2017-18, 2018-19 and 2019-20. However when completing the “total to be applied at PR19” column companies should be careful to ensure they only enter the amount they want to claim for PR19. We will carry out in-period ODI determinations in December 2018 and December 2020 where some of the forecast ODI payments will be determined. For all companies we expect Table App27 to be consistent with the information submitted in Tables App5 and App6. If this is not the case a company must provide a full explanation.

Sheet WS15 - adj Ofwat
B1: WS15 - PR14 wholesale total expenditure outperformance sharing for the water service | N1: Yorkshire Water | P1: Data validation
B3: Line description | D3: Item reference | E3: Units | F3: DPs | G3: Price base | H3: 2014-15 | I3: 2015-16 | J3: 2016-17 | K3: 2017-18 | L3: 2018-19 | M3: 2019-20 | N3: 2015-20 | P3: Calculation, copy or download rule | Q3: Validation description | S3: Completion | W3: Completion checks
W4: Please complete all cells in row
B5: A | C5: Company details
B6: 1 | C6: Company type | D6: BF200 | E6: Nr | F6: 0 | N6: 2 | P6: Pre-populate cell. Key: 1=WoC, 2=WaSC
B7: 2 | C7: Is company enhanced? | D7: WS15001 | E7: text | F7: 0 | N7: No | P7: FD14 data pre-populated cell | Q7: Yes or No
B8: 3 | C8: Financing rate | D8: WS15003 | E8: % | F8: 2 | N8: 0.036 | P8: FD14 data pre-populated cell
B10: B | C10: Menu choices
B11: 4 | C11: Water: Implied menu choice | D11: C00729_W004 | E11: Nr | F11: 1 | G11: 0 | I11: ` | N11: 94.3322813 | P11: FD14 data pre-populated cell
B12: 5 | C12: Water: FD pension deficit recovery costs allowance | D12: C00558 | E12: £m | F12: 3 | G12: 2012-13 FYA (RPI) | I12: 4.542531953 | J12: 4.542531953 | K12: 4.542531953 | L12: 4.542531953 | M12: 4.542531953 | P12: FD14 data pre-populated cells
B13: 6 | C13: Water: Final menu choice | D13: WS15006 | E13: nr | F13: 1 | G13: - | N13: 94.3322813 | P13: FD14 data pre-populated cell
B15: C | C15: TOTEX
B16: 7 | C16: Water: Baseline Totex | D16: C00007_W011 | E16: £m | F16: 3 | G16: 2012-13 FYA (RPI) | I16: 344.3392375 | J16: 309.1394405 | K16: 281.3564146 | L16: 281.8747584 | M16: 288.2862259 | P16: FD14 data pre-populated cells
B17: 8 | C17: Water: FD allowed totex inclusive of menu cost exclusions, less PDRC allowance | D17: C00772_A001 | E17: £m | F17: 3 | G17: 2012-13 FYA (RPI) | I17: 346.1748899 | J17: 311.2665255 | K17: 283.8771655 | L17: 284.3881647 | M17: 290.7087863 | P17: FD14 data pre-populated cells
B18: 9 | C18: Water: Actual Totex | D18: W3026MTIN | E18: £m | F18: 3 | G18: Outturn (nominal) | I18: 279.795 | J18: 328.9235315 | K18: 369.596 | L18: 424.87 | M18: 412.691 | P18: APR data pre-populated | S18: =IF(SUM(Z18:AB18)=0,0,$W$4) -> 0 | Z18: =IF(ISNUMBER(K18),0,1) -> 0 | AA18: =IF(ISNUMBER(L18),0,1) -> 0 | AB18: =IF(ISNUMBER(M18),0,1) -> 0
B20: D | C20: Adjustments to TOTEX
B21: 10 | C21: Water: Third party services (opex) | D21: BM323TASIN | E21: £m | F21: 3 | G21: Outturn (nominal) | I21: 1.628 | J21: 1.705 | K21: 2.251 | L21: 2.582 | M21: 2.66 | P21: APR data pre-populated | S21: =IF(SUM(Z21:AB21)=0,0,$W$4) -> 0 | Z21: =IF(ISNUMBER(K21),0,1) -> 0 | AA21: 0 | AB21: 0
B22: 11 | C22: Water: Third party services (capex) | D22: BM333TASIN | E22: £m | F22: 3 | G22: Outturn (nominal) | I22: 0 | J22: 0 | K22: 0 | L22: 0 | M22: 0 | P22: APR data pre-populated | S22: =IF(SUM(Z22:AB22)=0,0,$W$4) -> 0 | Z22: 0 | AA22: 0 | AB22: 0
B23: 12 | C23: Water: Pension deficit recovery costs | D23: CRW003 | E23: £m | F23: 3 | G23: Outturn (nominal) | I23: 7.509 | J23: 5.178 | K23: 5.562 | L23: 5.735 | M23: 5.909 | P23: APR data pre-populated | S23: =IF(SUM(Z23:AB23)=0,0,$W$4) -> 0 | Z23: 0 | AA23: 0 | AB23: 0
B24: 13 | C24: Water: Other cash items | D24: CR00561TOT | E24: £m | F24: 3 | G24: Outturn (nominal) | I24: 0.401 | J24: 0.653 | K24: 1.014342873 | L24: 1.047 | M24: 1.079 | S24: =IF(SUM(X24:AB24)=0,0,$W$4) -> 0 | X24: =IF(ISNUMBER(I24),0,1) -> 0 | Y24: =IF(ISNUMBER(J24),0,1) -> 0 | Z24: 0 | AA24: 0 | AB24: 0
B25: 14 | C25: Water: Disallowables | D25: WS15014 | E25: £m | F25: 3 | G25: Outturn (nominal) | I25: 0 | J25: 0 | K25: 0 | L25: 0 | M25: 0 | S25: =IF(SUM(X25:AB25)=0,0,$W$4) -> 0 | X25: =IF(ISNUMBER(I25),0,1) -> 0 | Y25: =IF(ISNUMBER(J25),0,1) -> 0 | Z25: 0 | AA25: 0 | AB25: 0
B26: 15 | C26: Water: Transition expenditure | D26: BP767NTIN | E26: £m | F26: 3 | G26: 2012-13 FYA (RPI) | H26: 9.688 | P26: Final 2010-15 reconciliation data pre-populated
B28: E | C28: PAYG
B29: 16 | C29: Water: PAYG ratio | D29: C00766_A001 | E29: % | F29: 2 | G29: - | I29: 0.59762 | J29: 0.60158 | K29: 0.6447 | L29: 0.6568 | M29: 0.6477 | P29: FD14 PAYG ratio. Pre-populate cells
B31: F | C31: Business rates IDoK
B32: 17 | C32: Company specific water business rate sharing rate | D32: WS15017 | E32: % | F32: 2 | G32: - | N32: 0.75 | S32: =IF(SUM(AC32:AC32)=0,0,$W$4) -> 0 | AC32: =IF(ISNUMBER(N32),0,1) -> 0
B33: 18 | C33: Menu Cost Sharing Rate | D33: WS15018 | E33: nr | F33: 2 | G33: - | N33: 0.5 | P33: PR14 reconciliation rulebook specified value. Generic
B34: 19 | C34: Menu Choice Expenditure Factor | D34: WS15019 | E34: % | F34: 2 | G34: - | N34: 1 | P34: PR14 reconciliation rulebook specified value. Generic
B35: 20 | C35: Water business rate constant 2017, 2018, 2019 | D35: WS15020 | E35: nr | F35: 3 | G35: 2012-13 FYA (RPI) | K35: 0 | L35: 0 | M35: 0 | S35: =IF(SUM(Z35:AB35)=0,0,$W$4) -> 0 | Z35: =IF(ISNUMBER(K35),0,1) -> 0 | AA35: =IF(ISNUMBER(L35),0,1) -> 0 | AB35: =IF(ISNUMBER(M35),0,1) -> 0
B36: 21 | C36: Water business rate constant 2017, 2018, 2019 | D36: WS15021 | E36: nr | F36: 3 | G36: Outturn | K36: 0 | L36: 0 | M36: 0 | P36: Calculated. Line 20 inflated from 2012-13 FYA RPI prices to year FYA RPI prices
B37: 22 | C37: Applicable Water Business Rate Costs | D37: WS15022 | E37: nr | F37: 3 | G37: Outturn | K37: 0 | L37: 0 | M37: 0 | S37: =IF(SUM(Z37:AB37)=0,0,$W$4) -> 0 | Z37: =IF(ISNUMBER(K37),0,1) -> 0 | AA37: 0 | AB37: 0
B38: 23 | C38: Water: IDoK Business rates adjustment | D38: WS15023 | E38: nr | F38: 3 | G38: Outturn | K38: 0 | L38: 0 | M38: 0 | S38: =IF(SUM(Z38:AB38)=0,0,$W$4) -> 0 | Z38: 0 | AA38: 0 | AB38: 0
B40: G | C40: Totex menu adjustments
B41: 24 | C41: Water: revenue adjustment from totex menu model | D41: WS15024 | E41: £m | F41: 3 | G41: 2012-13 FYA (RPI) | M41: 3.338355245 | P41: Output item from totex menu model | S41: =IF(SUM(AB41)=0,0,$W$4) -> 0 | AB41: =IF(ISNUMBER(M41),0,1) -> 0
B42: 25 | C42: Water: RCV adjustment from totex menu model | D42: WS15025 | E42: £m | F42: 3 | G42: 2012-13 FYA (RPI) | M42: 32.77115488 | P42: Output item from totex menu model | S42: =IF(SUM(AB42)=0,0,$W$4) -> 0 | AB42: =IF(ISNUMBER(M42),0,1) -> 0
B43: 26 | C43: Water: Totex menu revenue adjustment at 2017-18 FYA CPIH deflated price base | D43: WS15026 | E43: £m | F43: 3 | G43: 2017-18 FYA (CPIH deflated) | P43: Output item from revenue adjustments model. | S43: =IF(SUM(AB43)=0,0,$W$4) -> Please complete all cells in row | AB43: =IF(ISNUMBER(M43),0,1) -> 1
B44: 27 | C44: Water: Totex menu RCV adjustment at 2017-18 FYA CPIH deflated price base | D44: WS15027 | E44: £m | F44: 3 | G44: 2017-18 FYA (CPIH deflated) | M44: =+Summary_Output!F40 -> 37.51948511 | P44: Output item from RCV adjustments model. | S44: =IF(SUM(AB44)=0,0,$W$4) -> 0 | AB44: =IF(ISNUMBER(M44),0,1) -> 0
AC45: =SUM(X18:AC44) -> 1
B46: KEY
C47: Input
C48: Copy
C49: Calculation
C50: Pre populated
B52: WS15 guidance and line definitions
B54: This table contains the water service inputs used for populating the totex menu model and the total reward / (penalty) arising as calculated by the totex menu model. The totex menu model calculates in 2012-13 prices and the adjustments are converted to 2017-18 prices in the revenue adjustments model and the RCV adjustments model. We expect companies to publish their populated totex menu models with associated explanation with the regulatory accounts reporting in July 2018.
B56: Line | C56: Definition
B57: Block A | C57: =$C$5 -> Company details
B58: 1 | C58: Company type is either WaSC or WoC.
B59: 2 | C59: Enhanced or Non-enhanced status in PR14.
B60: 3 | C60: Financing rate. The PR14 final determination weighted average cost of capital.
B61: Block B | C61: =$C$10 -> Menu choices
B62: 4 | C62: The implied menu choice number for water from PR14 final determination company specific appendix.
B63: 5 | C63: The final determinations pension deficit recovery costs allowance for water from PR14 final determination – company specific appendix.
B64: 6 | C64: The submitted final menu choice for water from Menu choice confirmation letter 16th January 2015.
B65: Block C | C65: =$C$15 -> TOTEX
B66: 7 | C66: Ofwat’s view of the menu cost baseline at final determinations from PR14 populated final determination menu model.
B67: 8 | C67: The allowed expenditure in final determinations for input to PAYG from PR14 populated final determination menu model.
B68: 9 | C68: Reported actual totex for water from annual regulatory reporting.
B69: Block D | C69: =$C$20 -> Adjustments to TOTEX
B70: 10-14 | C70: Totex exclusions. Actual totex line items to be excluded in menu totex: third party costs, pension deficit recovery costs, other cash items, disallowables as set out in the PR14 reconciliation rulebook guidance.
B71: 15 | C71: Totex inclusions – Transition expenditure in 2014-15 (confirmed in final 2010-15 reconciliation decision document).
B72: Block E | C72: =$C$28 -> PAYG
B73: 16 | C73: The profile of PAYG ratio allowed in final determinations from PR14 final determination – company specific appendix.
B74: Block F | C74: =$C$31 -> Business rates IDoK
B75: 17-23 | C75: Business rates IDoK. Mechanism to account for the notified item on business rates. Only activated if after successful IDoK. See Annex of company FD letters and section 5.1 of this report for further details.
B76: Block G | C76: =$C$40 -> Totex menu adjustments
B77: 24 | C77: Output item from totex menu model as appears on the Totex menu adjustments sheet.
B78: 25 | C78: Output item from totex menu model as appears on the Totex menu adjustments sheet.
B79: 26 | C79: Output item from revenue adjustments model. Totex menu revenue adjustment - Water network at 2017-18 FYA CPIH deflated price base. The value entered is prior to profiling.
B80: 27 | C80: Output item from RCV adjustments model. Water: Totex menu RCV adjustment at 2017-18 FYA CPIH deflated price base.

Sheet WWS15 - adj ofwat
B1: WWS15 - PR14 wholesale total expenditure outperformance sharing for the wastewater service | N1: Yorkshire Water | P1: Data validation
V2: Completion checks
B3: Line description | D3: Item reference | E3: Units | F3: DPs | G3: Price base | H3: 2014-15 | I3: 2015-16 | J3: 2016-17 | K3: 2017-18 | L3: 2018-19 | M3: 2019-20 | N3: 2015-20 | P3: Calculation, copy or download rule | Q3: Validation description | S3: Completion | V3: Please complete all cells in row
B5: A | C5: Company details
B6: 1 | C6: Company type | D6: BF200 | E6: Nr | F6: 0 | G6: - | N6: 2 | P6: Pre-populate cell. Key: 1=WoC, 2=WaSC
B7: 2 | C7: Is company enhanced? | D7: WWS15001 | E7: text | F7: 0 | G7: - | N7: No | P7: FD14 data pre-populated cell | Q7: Yes or No
B8: 3 | C8: Financing rate | D8: WWS15003 | E8: % | F8: 2 | G8: - | N8: 0.036 | P8: FD14 data pre-populated cell
B10: B | C10: Menu choices
B11: 4 | C11: Sewerage: Implied menu choice | D11: C00728_S004 | E11: Nr | F11: 1 | G11: - | N11: 99.50486988 | P11: FD14 data pre-populated cell
B12: 5 | C12: Sewerage: FD pension deficit recovery costs allowance | D12: C00559 | E12: £m | F12: 3 | G12: 2012-13 FYA (RPI) | I12: 5.93409594 | J12: 5.93409594 | K12: 5.93409594 | L12: 5.93409594 | M12: 5.93409594 | P12: FD14 data pre-populated cells
B13: 6 | C13: Sewerage: Final menu choice | D13: WWS15006 | E13: nr | F13: 1 | G13: - | N13: 99.5 | P13: FD14 data pre-populated cell
B15: C | C15: TOTEX
B16: 7 | C16: Sewerage: Baseline Totex | D16: C00008_S011 | E16: £m | F16: 3 | G16: 2012-13 FYA (RPI) | I16: 388.1276433 | J16: 388.1276433 | K16: 388.1276433 | L16: 388.1276433 | M16: 388.1276433 | P16: FD14 data pre-populated cells
B17: 8 | C17: Sewerage: FD allowed totex inclusive of menu cost exclusions, less PDRC allowance | D17: C00768_A001 | E17: £m | F17: 3 | G17: 2012-13 FYA (RPI) | I17: 387.8878032 | J17: 387.6527026 | K17: 387.6527026 | L17: 387.6527026 | M17: 387.6527026 | P17: FD14 data pre-populated cells
B18: 9 | C18: Sewerage: Actual Totex | D18: S3040MTIN | E18: £m | F18: 3 | G18: Outturn (nominal) | I18: 320.9175 | J18: 417.5456725 | K18: 423.8595192 | L18: 534.687 | M18: 479.651 | P18: APR data pre-populated | S18: =IF( SUM( V18:Z18 ) = 0, 0, $V$3 ) -> 0 | X18: =IF('[15]Validation flags'!$H$3=1,0, IF( ISNUMBER(K18), 0, 1 )) -> 0 | Y18: =IF('[15]Validation flags'!$H$3=1,0, IF( ISNUMBER(L18), 0, 1 )) -> 0 | Z18: =IF('[15]Validation flags'!$H$3=1,0, IF( ISNUMBER(M18), 0, 1 )) -> 0
B20: D | C20: ADJUSTMENTS TO TOTEX
B21: 10 | C21: Sewerage: Third party services (opex) | D21: BM823TASIN | E21: £m | F21: 3 | G21: Outturn (nominal) | I21: 0.002 | J21: 0 | K21: 0 | L21: 0 | M21: 0 | P21: APR data pre-populated | S21: =IF( SUM( V21:Z21 ) = 0, 0, $V$3 ) -> 0 | X21: =IF('[15]Validation flags'!$H$3=1,0, IF( ISNUMBER(K21), 0, 1 )) -> 0 | Y21: =IF('[15]Validation flags'!$H$3=1,0, IF( ISNUMBER(L21), 0, 1 )) -> 0 | Z21: =IF('[15]Validation flags'!$H$3=1,0, IF( ISNUMBER(M21), 0, 1 )) -> 0
B22: 11 | C22: Sewerage: Third party services (capex) | D22: BM833TASIN | E22: £m | F22: 3 | G22: Outturn (nominal) | I22: 0 | J22: 0 | K22: 0 | L22: 0 | M22: 0 | P22: APR data pre-populated | S22: =IF( SUM( V22:Z22 ) = 0, 0, $V$3 ) -> 0 | X22: =IF('[15]Validation flags'!$H$3=1,0, IF( ISNUMBER(K22), 0, 1 )) -> 0 | Y22: =IF('[15]Validation flags'!$H$3=1,0, IF( ISNUMBER(L22), 0, 1 )) -> 0 | Z22: =IF('[15]Validation flags'!$H$3=1,0, IF( ISNUMBER(M22), 0, 1 )) -> 0
B23: 12 | C23: Sewerage: Pension deficit recovery costs | D23: CRS003 | E23: £m | F23: 3 | G23: Outturn (nominal) | I23: 9.786 | J23: 6.482 | K23: 6.086 | L23: 6.276 | M23: 6.465403014 | P23: APR data pre-populated | S23: 0 | X23: =IF('[15]Validation flags'!$H$3=1,0, IF( ISNUMBER(K23), 0, 1 )) -> 0 | Y23: =IF('[15]Validation flags'!$H$3=1,0, IF( ISNUMBER(L23), 0, 1 )) -> 0 | Z23: =IF('[15]Validation flags'!$H$3=1,0, IF( ISNUMBER(M23), 0, 1 )) -> 0
B24: 13 | C24: Sewerage: Other cash items | D24: CR00562TOT | E24: £m | F24: 3 | G24: Outturn (nominal) | I24: 0.544 | J24: 0.883 | K24: 1.388617127 | L24: 1.433 | M24: 1.477 | S24: 0 | V24: =IF('[15]Validation flags'!$H$3=1,0, IF( ISNUMBER(I24), 0, 1 )) -> 0 | W24: =IF('[15]Validation flags'!$H$3=1,0, IF( ISNUMBER(J24), 0, 1 )) -> 0 | X24: =IF('[15]Validation flags'!$H$3=1,0, IF( ISNUMBER(K24), 0, 1 )) -> 0 | Y24: =IF('[15]Validation flags'!$H$3=1,0, IF( ISNUMBER(L24), 0, 1 )) -> 0 | Z24: =IF('[15]Validation flags'!$H$3=1,0, IF( ISNUMBER(M24), 0, 1 )) -> 0
B25: 14 | C25: Sewerage: Disallowables | D25: WWS15014 | E25: £m | F25: 3 | G25: Outturn (nominal) | I25: 10 | J25: 46 | K25: 0 | L25: 0 | M25: 0 | S25: 0 | V25: =IF('[15]Validation flags'!$H$3=1,0, IF( ISNUMBER(I25), 0, 1 )) -> 0 | W25: =IF('[15]Validation flags'!$H$3=1,0, IF( ISNUMBER(J25), 0, 1 )) -> 0 | X25: =IF('[15]Validation flags'!$H$3=1,0, IF( ISNUMBER(K25), 0, 1 )) -> 0 | Y25: =IF('[15]Validation flags'!$H$3=1,0, IF( ISNUMBER(L25), 0, 1 )) -> 0 | Z25: =IF('[15]Validation flags'!$H$3=1,0, IF( ISNUMBER(M25), 0, 1 )) -> 0
B26: 15 | C26: TTT control: logging up / (down) of scope swaps | D26: WWS15015 | E26: £m | F26: 3 | G26: Outturn (nominal) | I26: 0 | J26: 0 | K26: 0 | L26: 0 | M26: 0 | S26: 0 | V26: =IF('[15]Validation flags'!$H$3=1,0, IF( ISNUMBER(I26), 0, 1 )) -> 0 | W26: =IF('[15]Validation flags'!$H$3=1,0, IF( ISNUMBER(J26), 0, 1 )) -> 0 | X26: =IF('[15]Validation flags'!$H$3=1,0, IF( ISNUMBER(K26), 0, 1 )) -> 0 | Y26: =IF('[15]Validation flags'!$H$3=1,0, IF( ISNUMBER(L26), 0, 1 )) -> 0 | Z26: =IF('[15]Validation flags'!$H$3=1,0, IF( ISNUMBER(M26), 0, 1 )) -> 0
B27: 16 | C27: TTT control: Land - 100:0 (customer: company) cost sharing factor | D27: WWS15016 | E27: £m | F27: 3 | G27: Outturn (nominal) | I27: 0 | J27: 0 | K27: 0 | L27: 0 | M27: 0 | S27: 0 | V27: =IF('[15]Validation flags'!$H$3=1,0, IF( ISNUMBER(I27), 0, 1 )) -> 0 | W27: =IF('[15]Validation flags'!$H$3=1,0, IF( ISNUMBER(J27), 0, 1 )) -> 0 | X27: =IF('[15]Validation flags'!$H$3=1,0, IF( ISNUMBER(K27), 0, 1 )) -> 0 | Y27: =IF('[15]Validation flags'!$H$3=1,0, IF( ISNUMBER(L27), 0, 1 )) -> 0 | Z27: =IF('[15]Validation flags'!$H$3=1,0, IF( ISNUMBER(M27), 0, 1 )) -> 0
B28: 17 | C28: Sewerage: Transition expenditure | D28: BP867NTIN | E28: £m | F28: 3 | G28: 2012-13 FYA (RPI) | H28: 4.79
B30: E | C30: PAYG
B31: 18 | C31: Sewerage: PAYG ratio | D31: C00770_A001 | E31: % | F31: 2 | G31: - | I31: 0.46617 | J31: 0.43584 | K31: 0.45222 | L31: 0.50477 | M31: 0.61279 | P31: FD14 PAYG ratio. Pre-populate cells
B33: F | C33: Business rates IDoK - Not applicable to wastewater service
B35: G | C35: Totex menu adjustments
B36: 19 | C36: Wastewater: revenue adjustment from totex menu model | D36: WWS15019 | E36: £m | F36: 3 | G36: 2012-13 FYA (RPI) | M36: -5.599195633 | P36: Output item from totex menu model | S36: =IF( SUM( V36:Z36 ) = 0, 0, $V$3 ) -> 0 | Z36: =IF('[15]Validation flags'!$H$3=1,0, IF( ISNUMBER(M36), 0, 1 )) -> 0
B37: 20 | C37: Wastewater: RCV adjustment from totex menu model | D37: WWS15020 | E37: £m | F37: 3 | G37: 2012-13 FYA (RPI) | M37: -57.50467532 | P37: Output item from totex menu model | S37: =IF( SUM( V37:Z37 ) = 0, 0, $V$3 ) -> 0 | Z37: =IF('[15]Validation flags'!$H$3=1,0, IF( ISNUMBER(M37), 0, 1 )) -> 0
B38: 21 | C38: Wastewater: Totex menu revenue adjustment at 2017-18 FYA CPIH deflated price base | D38: WWS15021 | E38: £m | F38: 3 | G38: 2017-18 FYA (CPIH deflated) | P38: Output item from revenue adjustments model. | S38: =IF( SUM( V38:Z38 ) = 0, 0, $V$3 ) -> Please complete all cells in row | Z38: =IF('[15]Validation flags'!$H$3=1,0, IF( ISNUMBER(M38), 0, 1 )) -> 1
B39: 22 | C39: Wastewater: Totex menu RCV adjustment at 2017-18 FYA CPIH deflated price base | D39: WWS15022 | E39: £m | F39: 3 | G39: 2017-18 FYA (CPIH deflated) | M39: =+Summary_Output!F77 -> -65.83673409 | P39: Output item from RCV adjustments model. | S39: =IF( SUM( V39:Z39 ) = 0, 0, $V$3 ) -> 0 | Z39: =IF('[15]Validation flags'!$H$3=1,0, IF( ISNUMBER(M39), 0, 1 )) -> 0
B41: KEY
C42: Input
C43: Copy
C44: Calculation
C45: Pre populated
B47: WWS15 guidance and line definitions
B49: This table contains the wastewater service inputs used for populating the totex menu model and the total reward / (penalty) arising as calculated by the totex menu model. The totex menu model calculates in 2012-13 prices and the adjustments are converted to 2017-18 prices in the revenue adjustments model and the RCV adjustments model. We expect companies to publish their populated totex menu models with associated explanation with the regulatory accounts reporting in July 2018.
B51: Line | C51: Definition
B52: Block A | C52: =$C$5 -> Company details
B53: 1 | C53: Company type is either WaSC or WoC.
B54: 2 | C54: Enhanced or Non-enhanced status in PR14.
B55: 3 | C55: Financing rate. The PR14 final determination weighted average cost of capital.
B56: Block B | C56: =$C$10 -> Menu choices
B57: 4 | C57: The implied menu choice number for water from PR14 final determination company specific appendix.
B58: 5 | C58: The final determinations pension deficit recovery costs allowance for water from PR14 final determination – company specific appendix.
B59: 6 | C59: The submitted final menu choice for water from Menu choice confirmation letter 16th January 2015.
B60: Block C | C60: =$C$15 -> TOTEX
B61: 7 | C61: Ofwat’s view of the menu cost baseline at final determinations from PR14 populated final determination menu model.
B62: 8 | C62: The allowed expenditure in final determinations for input to PAYG from PR14 populated final determination menu model.
B63: 9 | C63: Reported actual totex for water from annual regulatory reporting.
B64: Block D | C64: =$C$20 -> ADJUSTMENTS TO TOTEX
B65: 10-14 | C65: Totex exclusions. Actual totex line items to be excluded in menu totex: third party costs, pension deficit recovery costs, other cash items, disallowables as set out in the PR14 reconciliation rulebook guidance.
B66: 15 | C66: TTT Control: logging up / (down) of scope swaps. Costs associated with the reallocation of scope from the Infrastructure Provider to Thames Water that are subject to the logging up process.
B67: 16 | C67: TTT control: Land - 100:0 (customer: company) cost sharing factor. TTT control land costs are not subject to the standard menu incentives and have a customer sharing rate of 100:0 to ensure customers benefit from future land disposals.
B68: 17 | C68: Totex inclusions – Transition expenditure in 2014-15 (confirmed in final 2010-15 reconciliation decision document).
B69: Block E | C69: =$C$30 -> PAYG
B70: 18 | C70: The profile of PAYG ratio allowed in final determinations from PR14 final determination – company specific appendix.
B71: Block F | C71: =$C$33 -> Business rates IDoK - Not applicable to wastewater service
B72: Block G | C72: =$C$35 -> Totex menu adjustments
B73: 19 | C73: Output item from totex menu model as appears on the Totex menu adjustments sheet.
B74: 20 | C74: Output item from totex menu model as appears on the Totex menu adjustments sheet.
B75: 21 | C75: Output item from revenue adjustments model. Totex menu revenue adjustment - Wastewater network at 2017-18 FYA CPIH deflated price base. The value entered is prior to profiling.
B76: 22 | C76: Output item from RCV adjustments model. Wastewater: Totex menu RCV adjustment at 2017-18 FYA CPIH deflated price base.
